NUMERO_MANDATO;RIGA_MANDATO;QUIET;IMPORTO_RIGA;IMPORTO_MANDATO;BENEFICIARIO;CIG;TITOLO_PAGAMENTO;DATA_MANDATO;CAPITOLO;ARTICOLO;NUMERO_IMPEGNO;TITOLO;DESCR_TITOLO;LIVELLO_II;DESCR_LIVELLO_II;LIVELLO_III;DESCR_LIVELLO_III;LIVELLO_IV;DESCR_LIVELLO_IV;LIVELLO_V;DESCR_LIVELLO_V;DATA_PAG_EFF
1335;1;9999999;24,85;24,85;C/C/P 1039683022 -RISCOSSIONE COATTIVA EX ICP DPA; ;SPESE GESTIONE CONTI CORRENTI POSTALI RISCOSSIONE COATTIVA GENNAIO 2022 CCP 1039683022;01/04/2022;146;0;382;1;Spese correnti;3;Acquisto di beni e servizi;2;Acquisto di servizi;17;Servizi finanziari;999;Spese per servizi finanziari n.a.c.;05/04/2022
1336;1;9999999;24,51;24,51;C/C/P 1039683022 -RISCOSSIONE COATTIVA EX ICP DPA; ;SPESE GESTIONE CONTI CORRENTI POSTALI RISCOSSIONE COATTIVA FEBBRAIO 2022 CCP 1039683022;01/04/2022;146;0;382;1;Spese correnti;3;Acquisto di beni e servizi;2;Acquisto di servizi;17;Servizi finanziari;999;Spese per servizi finanziari n.a.c.;05/04/2022
1337;1;9999999;30,14;30,14;COMUNE DI S.MARIA DI SALA; ;CONTYRIBUTO IFEL RISCOSSIONE IMU RENDICONTO AL 31-03-2022;04/04/2022;332;0;0;1;Spese correnti;3;Acquisto di beni e servizi;2;Acquisto di servizi;3;Aggi di riscossione;999;Altri aggi di riscossione n.a.c.;12/04/2022
1339;1;9999999;25,53;252,35;ENEL ENERGIA SPA;8426072694;SALDO Fatt.n. 004205806758  del 07/03/2022 FEBBRAIO 2022 - CONSUMI ALLOGGIO VIA DON GALLERANI;05/04/2022;134;31;348;1;Spese correnti;3;Acquisto di beni e servizi;2;Acquisto di servizi;5;Utenze e canoni;4;Energia elettrica;07/04/2022
1339;2;9999999;35,75;252,35;ENEL ENERGIA SPA;8426072694;SALDO Fatt.n. 004205806800  del 07/03/2022 FEBBRAIO 2022- CONSUMI PARCHEGGIO C/O CENTRO PRISMA;05/04/2022;134;31;348;1;Spese correnti;3;Acquisto di beni e servizi;2;Acquisto di servizi;5;Utenze e canoni;4;Energia elettrica;07/04/2022
1339;3;9999999;47,86;252,35;ENEL ENERGIA SPA;8426072694;SALDO Fatt.n. 004205806768  del 07/03/2022 FEBBRAIO 2022 - CONSUMI FONTANA VETERNIGO;05/04/2022;134;31;348;1;Spese correnti;3;Acquisto di beni e servizi;2;Acquisto di servizi;5;Utenze e canoni;4;Energia elettrica;07/04/2022
1339;4;9999999;58,97;252,35;ENEL ENERGIA SPA;8426072694;SALDO Fatt.n. 004205806777  del 07/03/2022 FEBBRAIO 2022 - CONSUMI PARCHEGGIO OVALE CAPOLUOGO;05/04/2022;134;31;348;1;Spese correnti;3;Acquisto di beni e servizi;2;Acquisto di servizi;5;Utenze e canoni;4;Energia elettrica;07/04/2022
1339;5;9999999;84,24;252,35;ENEL ENERGIA SPA;8426072694;SALDO Fatt.n. 004205806773  del 07/03/2022 FEBBRAIO 2022 - CONSUMI PIAZZA SALVO D'ACQUISTO;05/04/2022;134;31;348;1;Spese correnti;3;Acquisto di beni e servizi;2;Acquisto di servizi;5;Utenze e canoni;4;Energia elettrica;07/04/2022
1340;1;9999999;36,43;143,03;ENEL ENERGIA SPA;8426072694;SALDO Fatt.n. 004205806730  del 07/03/2022 FEBBRAIO 2022- CONSUMI MERCATO CAPOLUOGO;05/04/2022;134;31;348;1;Spese correnti;3;Acquisto di beni e servizi;2;Acquisto di servizi;5;Utenze e canoni;4;Energia elettrica;07/04/2022
1340;2;9999999;37,69;143,03;ENEL ENERGIA SPA;8426072694;SALDO Fatt.n. 004205806802  del 07/03/2022 FEBBRAIO 2022 - CONSUMI MERCATO CALTANA;05/04/2022;134;31;348;1;Spese correnti;3;Acquisto di beni e servizi;2;Acquisto di servizi;5;Utenze e canoni;4;Energia elettrica;07/04/2022
1340;3;9999999;68,91;143,03;ENEL ENERGIA SPA;8426072694;SALDO Fatt.n. 004210959659  del 12/03/2022 FEBBRAIO 2022- CONSUMI MERCATO CASELLE;05/04/2022;134;31;348;1;Spese correnti;3;Acquisto di beni e servizi;2;Acquisto di servizi;5;Utenze e canoni;4;Energia elettrica;07/04/2022
1341;1;9999999;11,91;11,91;ENEL ENERGIA SPA;8426072694;SALDO Fatt.n. 004210959667  del 12/03/2022 CONSUMI FEBBRAIO 2022 - ALLOGGIO SERVIZI SOCIALI CAPOLUOGO;05/04/2022;134;31;348;1;Spese correnti;3;Acquisto di beni e servizi;2;Acquisto di servizi;5;Utenze e canoni;4;Energia elettrica;07/04/2022
1342;1;9999999;712,54;712,54;ENEL ENERGIA SPA;8426072694;SALDO Fatt.n. 004205806746  del 07/03/2022 FEBBRAIO 2022- CONSUMI SEDE MUNICIPALE;05/04/2022;134;31;348;1;Spese correnti;3;Acquisto di beni e servizi;2;Acquisto di servizi;5;Utenze e canoni;4;Energia elettrica;07/04/2022
1343;1;9999999;11,65;11,65;ENEL ENERGIA SPA;8426072694;ACCONTO Fatt.n. 004205806748  del 07/03/2022 FEBBRAIO 2022- CONSUMI CIMITERO CALTANA E LAMPADE VOTIVE;05/04/2022;134;31;348;1;Spese correnti;3;Acquisto di beni e servizi;2;Acquisto di servizi;5;Utenze e canoni;4;Energia elettrica;07/04/2022
1344;1;9999999;5,01;5,01;ENEL ENERGIA SPA;8426072694;ACCONTO Fatt.n. 004205806787  del 07/03/2022 FEBBRAIO 2022- CONSUMI CIMITERO DI S.ANGELO E LAMPADE VOTIVE;05/04/2022;134;31;348;1;Spese correnti;3;Acquisto di beni e servizi;2;Acquisto di servizi;5;Utenze e canoni;4;Energia elettrica;07/04/2022
1345;1;9999999;6,68;6,68;ENEL ENERGIA SPA;8426072694;ACCONTO Fatt.n. 004205806741  del 07/03/2022 FEBBRAIO 2022 - CONSUMI CIMITERO SMS - LAMPADE VOTIVE;05/04/2022;134;31;348;1;Spese correnti;3;Acquisto di beni e servizi;2;Acquisto di servizi;5;Utenze e canoni;4;Energia elettrica;07/04/2022
1346;1;9999999;4,58;4,58;ENEL ENERGIA SPA;8426072694;ACCONTO Fatt.n. 004205806791  del 07/03/2022 FEBBRAIO 2022 - CONSUMI CIMITERO VETERNIGO - LAMPADE VOTIVE;05/04/2022;134;31;348;1;Spese correnti;3;Acquisto di beni e servizi;2;Acquisto di servizi;5;Utenze e canoni;4;Energia elettrica;07/04/2022
1347;1;9999999;6,3;6,3;ENEL ENERGIA SPA;8426072694;ACCONTO Fatt.n. 004209275248  del 11/03/2022 FEBBRAIO 2022- CONSUMI CIMITERO DI CASELLE E LAMPADE VOTIVE;05/04/2022;134;31;348;1;Spese correnti;3;Acquisto di beni e servizi;2;Acquisto di servizi;5;Utenze e canoni;4;Energia elettrica;07/04/2022
1348;1;9999999;32,73;2.211,48;ENEL ENERGIA SPA;8426072694;SALDO Fatt.n. 004206201505  del 08/03/2022 FEBBRAIO 2022- CONSUMI SCUOLA ELEMENTARE CAPOLUOGO;05/04/2022;1334;30;349;1;Spese correnti;3;Acquisto di beni e servizi;2;Acquisto di servizi;5;Utenze e canoni;4;Energia elettrica;07/04/2022
1348;2;9999999;275,17;2.211,48;ENEL ENERGIA SPA;8426072694;SALDO Fatt.n. 004205806786  del 07/03/2022 FEBBRAIO 2022 - CONSUMI SCUOLA ELEMENTARE CALTANA;05/04/2022;1334;30;349;1;Spese correnti;3;Acquisto di beni e servizi;2;Acquisto di servizi;5;Utenze e canoni;4;Energia elettrica;07/04/2022
1348;3;9999999;305,45;2.211,48;ENEL ENERGIA SPA;8426072694;SALDO Fatt.n. 004208036953  del 10/03/2022 FEBBRAIO 2022- CONSUMI SCUOLA ELEMENTARE CASELLE;05/04/2022;1334;30;349;1;Spese correnti;3;Acquisto di beni e servizi;2;Acquisto di servizi;5;Utenze e canoni;4;Energia elettrica;07/04/2022
1348;4;9999999;1.598,13;2.211,48;ENEL ENERGIA SPA;8426072694;SALDO Fatt.n. 004205806796  del 07/03/2022 FEBBRAIO 2022 - CONSUMI SCUOLA ELEMENTARE E SCUOLA MEDIA CAPOLUOGO;05/04/2022;1334;30;349;1;Spese correnti;3;Acquisto di beni e servizi;2;Acquisto di servizi;5;Utenze e canoni;4;Energia elettrica;07/04/2022
1349;1;9999999;238,14;238,14;ENEL ENERGIA SPA;8426072694;ACCONTO Fatt.n. 004205806778  del 07/03/2022 FEBBRAIO 2022- CONSUMI PALESTRA CALTANA;05/04/2022;1334;30;349;1;Spese correnti;3;Acquisto di beni e servizi;2;Acquisto di servizi;5;Utenze e canoni;4;Energia elettrica;07/04/2022
1350;1;9999999;76,51;76,51;ENEL ENERGIA SPA;8426072694;ACCONTO Fatt.n. 004205806764  del 07/03/2022 FEBBRAIO 2022 - CONSUMI PALESTRA CASELLE;05/04/2022;1334;30;349;1;Spese correnti;3;Acquisto di beni e servizi;2;Acquisto di servizi;5;Utenze e canoni;4;Energia elettrica;07/04/2022
1351;1;9999999;180,39;180,39;ENEL ENERGIA SPA;8426072694;ACCONTO Fatt.n. 004205806809  del 07/03/2022 FEBBRAIO 2022 - CONSUMI PALESTRA CAPOLUOGO;05/04/2022;1334;30;349;1;Spese correnti;3;Acquisto di beni e servizi;2;Acquisto di servizi;5;Utenze e canoni;4;Energia elettrica;07/04/2022
1352;1;9999999;152;152;ENEL ENERGIA SPA;8426072694;ACCONTO Fatt.n. 004210959665  del 12/03/2022 FEBBRAIO 2022- CONSUMI SCUOLA ELEMENTARE E PALESTRA STIGLIANO;05/04/2022;1334;30;349;1;Spese correnti;3;Acquisto di beni e servizi;2;Acquisto di servizi;5;Utenze e canoni;4;Energia elettrica;07/04/2022
1353;1;9999999;131,2;131,2;ENEL ENERGIA SPA;8426072694;ACCONTO Fatt.n. 004210959665  del 12/03/2022 FEBBRAIO 2022- CONSUMI SCUOLA ELEMENTARE E PALESTRA STIGLIANO;05/04/2022;1334;30;349;1;Spese correnti;3;Acquisto di beni e servizi;2;Acquisto di servizi;5;Utenze e canoni;4;Energia elettrica;07/04/2022
1354;1;9999999;197;197;ENEL ENERGIA SPA;8426072694;ACCONTO Fatt.n. 004205806728  del 07/03/2022 FEBBRAIO 2022- CONSUMI SCUOLA ELEMENTARE E PALESTRA VETERNIGO;05/04/2022;1334;30;349;1;Spese correnti;3;Acquisto di beni e servizi;2;Acquisto di servizi;5;Utenze e canoni;4;Energia elettrica;07/04/2022
1355;1;9999999;322,12;322,12;ENEL ENERGIA SPA;8426072694;ACCONTO Fatt.n. 004205806728  del 07/03/2022 FEBBRAIO 2022- CONSUMI SCUOLA ELEMENTARE E PALESTRA VETERNIGO;05/04/2022;1334;30;349;1;Spese correnti;3;Acquisto di beni e servizi;2;Acquisto di servizi;5;Utenze e canoni;4;Energia elettrica;07/04/2022
1356;1;9999999;210;210;ENEL ENERGIA SPA;8426072694;ACCONTO Fatt.n. 004205806803  del 07/03/2022 FEBBRAIO 2022 - CONSUMI  SC. ELEM - PALESTRA - ASILO S.ANGELO;05/04/2022;1334;30;349;1;Spese correnti;3;Acquisto di beni e servizi;2;Acquisto di servizi;5;Utenze e canoni;4;Energia elettrica;07/04/2022
1357;1;9999999;631,35;631,35;ENEL ENERGIA SPA;8426072694;ACCONTO Fatt.n. 004205806803  del 07/03/2022 FEBBRAIO 2022 - CONSUMI  SC. ELEM - PALESTRA - ASILO S.ANGELO;05/04/2022;1334;30;349;1;Spese correnti;3;Acquisto di beni e servizi;2;Acquisto di servizi;5;Utenze e canoni;4;Energia elettrica;07/04/2022
1358;1;9999999;104,72;104,72;ENEL ENERGIA SPA;8426072694;SALDO Fatt.n. 004205806747  del 07/03/2022 FEBBRAIO 2022 - CONSUMI IMPIANTO SPORTIVO CASELLE;05/04/2022;1934;0;351;1;Spese correnti;3;Acquisto di beni e servizi;2;Acquisto di servizi;5;Utenze e canoni;4;Energia elettrica;07/04/2022
1359;1;9999999;59,41;59,41;ENEL ENERGIA SPA;8426072694;SALDO Fatt.n. 004210959669  del 12/03/2022 FEBBRAIO 2022- CONSUMI CAMPO CALCETTO CASELLE;05/04/2022;1934;0;351;1;Spese correnti;3;Acquisto di beni e servizi;2;Acquisto di servizi;5;Utenze e canoni;4;Energia elettrica;07/04/2022
1360;1;9999999;238,14;238,14;ENEL ENERGIA SPA;8426072694;SALDO Fatt.n. 004205806778  del 07/03/2022 FEBBRAIO 2022- CONSUMI PALESTRA CALTANA;05/04/2022;1934;0;351;1;Spese correnti;3;Acquisto di beni e servizi;2;Acquisto di servizi;5;Utenze e canoni;4;Energia elettrica;07/04/2022
1361;1;9999999;76,51;76,51;ENEL ENERGIA SPA;8426072694;SALDO Fatt.n. 004205806764  del 07/03/2022 FEBBRAIO 2022 - CONSUMI PALESTRA CASELLE;05/04/2022;1934;0;351;1;Spese correnti;3;Acquisto di beni e servizi;2;Acquisto di servizi;5;Utenze e canoni;4;Energia elettrica;07/04/2022
1362;1;9999999;156,66;156,66;ENEL ENERGIA SPA;8426072694;SALDO Fatt.n. 004208036955  del 10/03/2022 FEBBRAIO 2022- CONSUMI CAMPO DA CALCIO CAPOLUOGO;05/04/2022;1934;0;351;1;Spese correnti;3;Acquisto di beni e servizi;2;Acquisto di servizi;5;Utenze e canoni;4;Energia elettrica;07/04/2022
1363;1;9999999;180,4;180,4;ENEL ENERGIA SPA;8426072694;SALDO Fatt.n. 004205806809  del 07/03/2022 FEBBRAIO 2022 - CONSUMI PALESTRA CAPOLUOGO;05/04/2022;1934;0;351;1;Spese correnti;3;Acquisto di beni e servizi;2;Acquisto di servizi;5;Utenze e canoni;4;Energia elettrica;07/04/2022
1364;1;9999999;152;152;ENEL ENERGIA SPA;8426072694;SALDO Fatt.n. 004210959665  del 12/03/2022 FEBBRAIO 2022- CONSUMI SCUOLA ELEMENTARE E PALESTRA STIGLIANO;05/04/2022;1934;0;351;1;Spese correnti;3;Acquisto di beni e servizi;2;Acquisto di servizi;5;Utenze e canoni;4;Energia elettrica;07/04/2022
1365;1;9999999;197;197;ENEL ENERGIA SPA;8426072694;SALDO Fatt.n. 004205806728  del 07/03/2022 FEBBRAIO 2022- CONSUMI SCUOLA ELEMENTARE E PALESTRA VETERNIGO;05/04/2022;1934;0;351;1;Spese correnti;3;Acquisto di beni e servizi;2;Acquisto di servizi;5;Utenze e canoni;4;Energia elettrica;07/04/2022
1366;1;9999999;210;210;ENEL ENERGIA SPA;8426072694;SALDO Fatt.n. 004205806803  del 07/03/2022 FEBBRAIO 2022 - CONSUMI  SC. ELEM - PALESTRA - ASILO S.ANGELO;05/04/2022;1934;0;351;1;Spese correnti;3;Acquisto di beni e servizi;2;Acquisto di servizi;5;Utenze e canoni;4;Energia elettrica;07/04/2022
1367;1;9999999;97,36;97,36;ENEL ENERGIA SPA;8426072694;SALDO Fatt.n. 004205806767  del 07/03/2022 FEBBRAIO 2022 - CONSUMI MAGAZZINO;05/04/2022;3534;0;352;1;Spese correnti;3;Acquisto di beni e servizi;2;Acquisto di servizi;5;Utenze e canoni;4;Energia elettrica;07/04/2022
1368;1;9999999;19,41;19,41;ENEL ENERGIA SPA;8426072694;SALDO Fatt.n. 004205806722  del 07/03/2022 FEBBRAIO 2022 - CONSUMI ECOCENTRO COMUNALE;05/04/2022;3534;0;352;1;Spese correnti;3;Acquisto di beni e servizi;2;Acquisto di servizi;5;Utenze e canoni;4;Energia elettrica;07/04/2022
1369;1;9999999;-20,47;59,79;ENEL ENERGIA SPA;8426072694;SALDO Fatt.n. 004205806818  del 07/03/2022 FEBBRAIO 2022- NOTA ACCREDITO COMUNI ILLUMINAZIONE PUBBLICA;05/04/2022;3544;0;354;1;Spese correnti;3;Acquisto di beni e servizi;2;Acquisto di servizi;15;Contratti di servizio pubblico;15;Contratti di servizio per l'illuminazione pubblica;07/04/2022
1369;2;9999999;-17,32;59,79;ENEL ENERGIA SPA;8426072694;SALDO Fatt.n. 004205806808  del 07/03/2022 NOTA DI ACCREDITO CONSUMI ILLUMINAZIONE PUBBLICA;05/04/2022;3544;0;354;1;Spese correnti;3;Acquisto di beni e servizi;2;Acquisto di servizi;15;Contratti di servizio pubblico;15;Contratti di servizio per l'illuminazione pubblica;07/04/2022
1369;3;9999999;-0,11;59,79;ENEL ENERGIA SPA;8426072694;SALDO Fatt.n. 004209275255  del 11/03/2022 FEBBRAIO 2022- NOTA ACCREDITO CONSUMI CALCETTO CASELLE;05/04/2022;3544;0;354;1;Spese correnti;3;Acquisto di beni e servizi;2;Acquisto di servizi;15;Contratti di servizio pubblico;15;Contratti di servizio per l'illuminazione pubblica;07/04/2022
1369;4;9999999;97,69;59,79;ENEL ENERGIA SPA;8426072694;SALDO Fatt.n. 004205806762  del 07/03/2022 FEBBRAIO 2022 - CONSUMI ILLUMINAZIONE PUBBLICA;05/04/2022;3544;0;354;1;Spese correnti;3;Acquisto di beni e servizi;2;Acquisto di servizi;15;Contratti di servizio pubblico;15;Contratti di servizio per l'illuminazione pubblica;07/04/2022
1370;1;9999999;72,33;741,67;ENEL ENERGIA SPA;8426072694;SALDO Fatt.n. 004205806723  del 07/03/2022 FEBBRAIO 2022 - CONSUMI ILLUMINAZIONE PUBBLICA;05/04/2022;3544;0;354;1;Spese correnti;3;Acquisto di beni e servizi;2;Acquisto di servizi;15;Contratti di servizio pubblico;15;Contratti di servizio per l'illuminazione pubblica;07/04/2022
1370;2;9999999;73,97;741,67;ENEL ENERGIA SPA;8426072694;SALDO Fatt.n. 004205806752  del 07/03/2022 FEBBRAIO 2022 - CONSUMI ILLUMINAZIONE PUBBLICA;05/04/2022;3544;0;354;1;Spese correnti;3;Acquisto di beni e servizi;2;Acquisto di servizi;15;Contratti di servizio pubblico;15;Contratti di servizio per l'illuminazione pubblica;07/04/2022
1370;3;9999999;107,56;741,67;ENEL ENERGIA SPA;8426072694;SALDO Fatt.n. 004205806739  del 07/03/2022 FEBBRAIO 2022 - CONSUMI ILLUMINAZIONE PUBBLICA;05/04/2022;3544;0;354;1;Spese correnti;3;Acquisto di beni e servizi;2;Acquisto di servizi;15;Contratti di servizio pubblico;15;Contratti di servizio per l'illuminazione pubblica;07/04/2022
1370;4;9999999;157,45;741,67;ENEL ENERGIA SPA;8426072694;SALDO Fatt.n. 004205806736  del 07/03/2022 FEBBRAIO 2022 - CONSUMI ILLUMINAZIONE PUBBLICA;05/04/2022;3544;0;354;1;Spese correnti;3;Acquisto di beni e servizi;2;Acquisto di servizi;15;Contratti di servizio pubblico;15;Contratti di servizio per l'illuminazione pubblica;07/04/2022
1370;5;9999999;330,36;741,67;ENEL ENERGIA SPA;8426072694;SALDO Fatt.n. 004205806774  del 07/03/2022 FEBBRAIO 2022 - CONSUMI ILLUMINAZIONE PUBBLICA;05/04/2022;3544;0;354;1;Spese correnti;3;Acquisto di beni e servizi;2;Acquisto di servizi;15;Contratti di servizio pubblico;15;Contratti di servizio per l'illuminazione pubblica;07/04/2022
1371;1;9999999;20,73;311,85;ENEL ENERGIA SPA;8426072694;SALDO Fatt.n. 004205806766  del 07/03/2022 FEBBRAIO 2022 - CONSUMI ILLUMINAZIONE PUBBLICA;05/04/2022;3544;0;354;1;Spese correnti;3;Acquisto di beni e servizi;2;Acquisto di servizi;15;Contratti di servizio pubblico;15;Contratti di servizio per l'illuminazione pubblica;07/04/2022
1371;2;9999999;46,64;311,85;ENEL ENERGIA SPA;8426072694;SALDO Fatt.n. 004205806813  del 07/03/2022 FEBBRAIO 2022 - CONSUMI ILLUMINAZIONE PUBBLICA;05/04/2022;3544;0;354;1;Spese correnti;3;Acquisto di beni e servizi;2;Acquisto di servizi;15;Contratti di servizio pubblico;15;Contratti di servizio per l'illuminazione pubblica;07/04/2022
1371;3;9999999;53,16;311,85;ENEL ENERGIA SPA;8426072694;SALDO Fatt.n. 004205806760  del 07/03/2022 FEBBRAIO 2022 - CONSUMI ILLUMINAZIONE PUBBLICA;05/04/2022;3544;0;354;1;Spese correnti;3;Acquisto di beni e servizi;2;Acquisto di servizi;15;Contratti di servizio pubblico;15;Contratti di servizio per l'illuminazione pubblica;07/04/2022
1371;4;9999999;55,73;311,85;ENEL ENERGIA SPA;8426072694;SALDO Fatt.n. 004205806805  del 07/03/2022 FEBBRAIO 2022 - CONSUMI ILLUMINAZIONE PUBBLICA;05/04/2022;3544;0;354;1;Spese correnti;3;Acquisto di beni e servizi;2;Acquisto di servizi;15;Contratti di servizio pubblico;15;Contratti di servizio per l'illuminazione pubblica;07/04/2022
1371;5;9999999;57,29;311,85;ENEL ENERGIA SPA;8426072694;SALDO Fatt.n. 004205806793  del 07/03/2022 FEBBRAIO 2022 - CONSUMI ILLUMINAZIONE PUBBLICA;05/04/2022;3544;0;354;1;Spese correnti;3;Acquisto di beni e servizi;2;Acquisto di servizi;15;Contratti di servizio pubblico;15;Contratti di servizio per l'illuminazione pubblica;07/04/2022
1371;6;9999999;78,3;311,85;ENEL ENERGIA SPA;8426072694;SALDO Fatt.n. 004205806784  del 07/03/2022 FEBBRAIO 2022 - CONSUMI ILLUMINAZIONE PUBBLICA;05/04/2022;3544;0;354;1;Spese correnti;3;Acquisto di beni e servizi;2;Acquisto di servizi;15;Contratti di servizio pubblico;15;Contratti di servizio per l'illuminazione pubblica;07/04/2022
1372;1;9999999;7,08;1.320,93;ENEL ENERGIA SPA;8426072694;SALDO Fatt.n. 004205806735  del 07/03/2022 FEBBRAIO 2022 - CONSUMI ILLUMINAZIONE PUBBLICA;05/04/2022;3544;0;354;1;Spese correnti;3;Acquisto di beni e servizi;2;Acquisto di servizi;15;Contratti di servizio pubblico;15;Contratti di servizio per l'illuminazione pubblica;07/04/2022
1372;2;9999999;96,2;1.320,93;ENEL ENERGIA SPA;8426072694;SALDO Fatt.n. 004205806740  del 07/03/2022 FEBBRAIO 2022 - CONSUMI ILLUMINAZIONE PUBBLICA;05/04/2022;3544;0;354;1;Spese correnti;3;Acquisto di beni e servizi;2;Acquisto di servizi;15;Contratti di servizio pubblico;15;Contratti di servizio per l'illuminazione pubblica;07/04/2022
1372;3;9999999;246,38;1.320,93;ENEL ENERGIA SPA;8426072694;SALDO Fatt.n. 004205806771  del 07/03/2022 FEBBRAIO 2022 - CONSUMI ILLUMINAZIONE PUBBLICA;05/04/2022;3544;0;354;1;Spese correnti;3;Acquisto di beni e servizi;2;Acquisto di servizi;15;Contratti di servizio pubblico;15;Contratti di servizio per l'illuminazione pubblica;07/04/2022
1372;4;9999999;469,11;1.320,93;ENEL ENERGIA SPA;8426072694;SALDO Fatt.n. 004205806726  del 07/03/2022 FEBBRAIO 2022 - CONSUMI ILLUMINAZIONE PUBBLICA;05/04/2022;3544;0;354;1;Spese correnti;3;Acquisto di beni e servizi;2;Acquisto di servizi;15;Contratti di servizio pubblico;15;Contratti di servizio per l'illuminazione pubblica;07/04/2022
1372;5;9999999;502,16;1.320,93;ENEL ENERGIA SPA;8426072694;SALDO Fatt.n. 004205806782  del 07/03/2022 FEBBRAIO 2022 - CONSUMI ILLUMINAZIONE PUBBLICA;05/04/2022;3544;0;354;1;Spese correnti;3;Acquisto di beni e servizi;2;Acquisto di servizi;15;Contratti di servizio pubblico;15;Contratti di servizio per l'illuminazione pubblica;07/04/2022
1373;1;9999999;4,56;398,82;ENEL ENERGIA SPA;8426072694;SALDO Fatt.n. 004205806721  del 07/03/2022 FEBBRAIO 2022- CONSUMI ILLUMINAZIONE PUBBLICA;05/04/2022;3544;0;354;1;Spese correnti;3;Acquisto di beni e servizi;2;Acquisto di servizi;15;Contratti di servizio pubblico;15;Contratti di servizio per l'illuminazione pubblica;07/04/2022
1373;2;9999999;6,65;398,82;ENEL ENERGIA SPA;8426072694;SALDO Fatt.n. 004205806729  del 07/03/2022 FEBBRAIO 2022- CONSUMI ILLUMINAZIONE PUBBLICA;05/04/2022;3544;0;354;1;Spese correnti;3;Acquisto di beni e servizi;2;Acquisto di servizi;15;Contratti di servizio pubblico;15;Contratti di servizio per l'illuminazione pubblica;07/04/2022
1373;3;9999999;29,99;398,82;ENEL ENERGIA SPA;8426072694;SALDO Fatt.n. 004205806806  del 07/03/2022 FEBBRAIO 2022- CONSUMI ILLUMINAZIONE PUBBLICA;05/04/2022;3544;0;354;1;Spese correnti;3;Acquisto di beni e servizi;2;Acquisto di servizi;15;Contratti di servizio pubblico;15;Contratti di servizio per l'illuminazione pubblica;07/04/2022
1373;4;9999999;109,63;398,82;ENEL ENERGIA SPA;8426072694;SALDO Fatt.n. 004205806724  del 07/03/2022 FEBBRAIO 2022- CONSUMI ILLUMINAZIONE PUBBLICA;05/04/2022;3544;0;354;1;Spese correnti;3;Acquisto di beni e servizi;2;Acquisto di servizi;15;Contratti di servizio pubblico;15;Contratti di servizio per l'illuminazione pubblica;07/04/2022
1373;5;9999999;247,99;398,82;ENEL ENERGIA SPA;8426072694;SALDO Fatt.n. 004205806743  del 07/03/2022 FEBBRAIO 2022- CONSUMI ILLUMINAZIONE PUBBLICA;05/04/2022;3544;0;354;1;Spese correnti;3;Acquisto di beni e servizi;2;Acquisto di servizi;15;Contratti di servizio pubblico;15;Contratti di servizio per l'illuminazione pubblica;07/04/2022
1374;1;9999999;9,38;215,24;ENEL ENERGIA SPA;8426072694;SALDO Fatt.n. 004205806795  del 07/03/2022 FEBBRAIO 2022- CONSUMI ILLUMINAZIONE PUBBLICA;05/04/2022;3544;0;354;1;Spese correnti;3;Acquisto di beni e servizi;2;Acquisto di servizi;15;Contratti di servizio pubblico;15;Contratti di servizio per l'illuminazione pubblica;07/04/2022
1374;2;9999999;19,45;215,24;ENEL ENERGIA SPA;8426072694;SALDO Fatt.n. 004205806801  del 07/03/2022 FEBBRAIO 2022- CONSUMI ILLUMINAZIONE PUBBLICA;05/04/2022;3544;0;354;1;Spese correnti;3;Acquisto di beni e servizi;2;Acquisto di servizi;15;Contratti di servizio pubblico;15;Contratti di servizio per l'illuminazione pubblica;07/04/2022
1374;3;9999999;30,24;215,24;ENEL ENERGIA SPA;8426072694;SALDO Fatt.n. 004205806811  del 07/03/2022 FEBBRAIO 2022- CONSUMI ILLUMINAZIONE PUBBLICA;05/04/2022;3544;0;354;1;Spese correnti;3;Acquisto di beni e servizi;2;Acquisto di servizi;15;Contratti di servizio pubblico;15;Contratti di servizio per l'illuminazione pubblica;07/04/2022
1374;4;9999999;57,46;215,24;ENEL ENERGIA SPA;8426072694;SALDO Fatt.n. 004205806815  del 07/03/2022 FEBBRAIO 2022 - CONSUMI  ILLUMINAZIONE PUBBLICA;05/04/2022;3544;0;354;1;Spese correnti;3;Acquisto di beni e servizi;2;Acquisto di servizi;15;Contratti di servizio pubblico;15;Contratti di servizio per l'illuminazione pubblica;07/04/2022
1374;5;9999999;98,71;215,24;ENEL ENERGIA SPA;8426072694;SALDO Fatt.n. 004205806810  del 07/03/2022 FEBBRAIO 2022 - CONSUMI ILLUMINAZIONE PUBBLICA;05/04/2022;3544;0;354;1;Spese correnti;3;Acquisto di beni e servizi;2;Acquisto di servizi;15;Contratti di servizio pubblico;15;Contratti di servizio per l'illuminazione pubblica;07/04/2022
1375;1;9999999;4,14;416,63;ENEL ENERGIA SPA;8426072694;SALDO Fatt.n. 004205806733  del 07/03/2022 FEBBRAIO 2022 - CONSUMI ILLUMINAZIONE PUBBLICA;05/04/2022;3544;0;354;1;Spese correnti;3;Acquisto di beni e servizi;2;Acquisto di servizi;15;Contratti di servizio pubblico;15;Contratti di servizio per l'illuminazione pubblica;07/04/2022
1375;2;9999999;6,25;416,63;ENEL ENERGIA SPA;8426072694;SALDO Fatt.n. 004205806725  del 07/03/2022 FEBBRAIO 2022- CONSUMI ILLUMINAZIONE PUBBLICA;05/04/2022;3544;0;354;1;Spese correnti;3;Acquisto di beni e servizi;2;Acquisto di servizi;15;Contratti di servizio pubblico;15;Contratti di servizio per l'illuminazione pubblica;07/04/2022
1375;3;9999999;15,02;416,63;ENEL ENERGIA SPA;8426072694;SALDO Fatt.n. 004205806757  del 07/03/2022 FEBBRAIO 2022- CONSUMI ILLUMINAZIONE PUBBLICA;05/04/2022;3544;0;354;1;Spese correnti;3;Acquisto di beni e servizi;2;Acquisto di servizi;15;Contratti di servizio pubblico;15;Contratti di servizio per l'illuminazione pubblica;07/04/2022
1375;4;9999999;47,3;416,63;ENEL ENERGIA SPA;8426072694;SALDO Fatt.n. 004205806734  del 07/03/2022 FEBBRAIO 2022- CONSUMI ILLUMINAZIONE PUBBLICA;05/04/2022;3544;0;354;1;Spese correnti;3;Acquisto di beni e servizi;2;Acquisto di servizi;15;Contratti di servizio pubblico;15;Contratti di servizio per l'illuminazione pubblica;07/04/2022
1375;5;9999999;343,92;416,63;ENEL ENERGIA SPA;8426072694;SALDO Fatt.n. 004205806720  del 07/03/2022 FEBBRAIO 2022- CONSUMI ILLUMINAZIONE PUBBLICA;05/04/2022;3544;0;354;1;Spese correnti;3;Acquisto di beni e servizi;2;Acquisto di servizi;15;Contratti di servizio pubblico;15;Contratti di servizio per l'illuminazione pubblica;07/04/2022
1376;1;9999999;11,9;998,51;ENEL ENERGIA SPA;8426072694;SALDO Fatt.n. 004205806750  del 07/03/2022 FEBBRAIO 2022- CONSUMI ILLUMINAZIONE PUBBLICA;05/04/2022;3544;0;354;1;Spese correnti;3;Acquisto di beni e servizi;2;Acquisto di servizi;15;Contratti di servizio pubblico;15;Contratti di servizio per l'illuminazione pubblica;07/04/2022
1376;2;9999999;24,74;998,51;ENEL ENERGIA SPA;8426072694;SALDO Fatt.n. 004205806775  del 07/03/2022 FEBBRAIO 2022- CONSUMI ILLUMINAZIONE PUBBLICA;05/04/2022;3544;0;354;1;Spese correnti;3;Acquisto di beni e servizi;2;Acquisto di servizi;15;Contratti di servizio pubblico;15;Contratti di servizio per l'illuminazione pubblica;07/04/2022
1376;3;9999999;126,56;998,51;ENEL ENERGIA SPA;8426072694;SALDO Fatt.n. 004205806745  del 07/03/2022 FEBBRAIO 2022- CONSUMI ILLUMINAZIONE PUBBLICA;05/04/2022;3544;0;354;1;Spese correnti;3;Acquisto di beni e servizi;2;Acquisto di servizi;15;Contratti di servizio pubblico;15;Contratti di servizio per l'illuminazione pubblica;07/04/2022
1376;4;9999999;145,89;998,51;ENEL ENERGIA SPA;8426072694;SALDO Fatt.n. 004205806769  del 07/03/2022 FEBBRAIO 2022- CONSUMI ILLUMINAZIONE PUBBLICA;05/04/2022;3544;0;354;1;Spese correnti;3;Acquisto di beni e servizi;2;Acquisto di servizi;15;Contratti di servizio pubblico;15;Contratti di servizio per l'illuminazione pubblica;07/04/2022
1376;5;9999999;689,42;998,51;ENEL ENERGIA SPA;8426072694;SALDO Fatt.n. 004205806783  del 07/03/2022 FEBBRAIO 2022- CONSUMI ILLUMINAZIONE PUBBLICA;05/04/2022;3544;0;354;1;Spese correnti;3;Acquisto di beni e servizi;2;Acquisto di servizi;15;Contratti di servizio pubblico;15;Contratti di servizio per l'illuminazione pubblica;07/04/2022
1377;1;9999999;7,88;777,27;ENEL ENERGIA SPA;8426072694;SALDO Fatt.n. 004205806781  del 07/03/2022 FEBBRAIO 2022 - CONSUMI ILLUMINAZIONE PUBBLICA;05/04/2022;3544;0;354;1;Spese correnti;3;Acquisto di beni e servizi;2;Acquisto di servizi;15;Contratti di servizio pubblico;15;Contratti di servizio per l'illuminazione pubblica;07/04/2022
1377;2;9999999;39,15;777,27;ENEL ENERGIA SPA;8426072694;SALDO Fatt.n. 004205806742  del 07/03/2022 FEBBRAIO 2022 - CONSUMI ILLUMINAZIONE PUBBLICA;05/04/2022;3544;0;354;1;Spese correnti;3;Acquisto di beni e servizi;2;Acquisto di servizi;15;Contratti di servizio pubblico;15;Contratti di servizio per l'illuminazione pubblica;07/04/2022
1377;3;9999999;64,84;777,27;ENEL ENERGIA SPA;8426072694;SALDO Fatt.n. 004205806790  del 07/03/2022 FEBBRAIO 2022 - CONSUMI ILLUMINAZIONE PUBBLICA;05/04/2022;3544;0;354;1;Spese correnti;3;Acquisto di beni e servizi;2;Acquisto di servizi;15;Contratti di servizio pubblico;15;Contratti di servizio per l'illuminazione pubblica;07/04/2022
1377;4;9999999;298,99;777,27;ENEL ENERGIA SPA;8426072694;SALDO Fatt.n. 004205806731  del 07/03/2022 FEBBRAIO 2022 - CONSUMI ILLUMINAZIONE PUBBLICA;05/04/2022;3544;0;354;1;Spese correnti;3;Acquisto di beni e servizi;2;Acquisto di servizi;15;Contratti di servizio pubblico;15;Contratti di servizio per l'illuminazione pubblica;07/04/2022
1377;5;9999999;366,41;777,27;ENEL ENERGIA SPA;8426072694;SALDO Fatt.n. 004205806753  del 07/03/2022 FEBBRAIO 2022 - CONSUMI ILLUMINAZIONE PUBBLICA;05/04/2022;3544;0;354;1;Spese correnti;3;Acquisto di beni e servizi;2;Acquisto di servizi;15;Contratti di servizio pubblico;15;Contratti di servizio per l'illuminazione pubblica;07/04/2022
1378;1;9999999;28,28;465,72;ENEL ENERGIA SPA;8426072694;SALDO Fatt.n. 004205806761  del 07/03/2022 FEBBRAIO 2022 - CONSUMI  ILLUMINAZIONE PUBBLICA;05/04/2022;3544;0;354;1;Spese correnti;3;Acquisto di beni e servizi;2;Acquisto di servizi;15;Contratti di servizio pubblico;15;Contratti di servizio per l'illuminazione pubblica;07/04/2022
1378;2;9999999;31,74;465,72;ENEL ENERGIA SPA;8426072694;SALDO Fatt.n. 004205806776  del 07/03/2022 FEBBRAIO 2022 - CONSUMI  ILLUMINAZIONE PUBBLICA;05/04/2022;3544;0;354;1;Spese correnti;3;Acquisto di beni e servizi;2;Acquisto di servizi;15;Contratti di servizio pubblico;15;Contratti di servizio per l'illuminazione pubblica;07/04/2022
1378;3;9999999;41,14;465,72;ENEL ENERGIA SPA;8426072694;SALDO Fatt.n. 004205806755  del 07/03/2022 FEBBRAIO 2022 - CONSUMI ILLUMINAZIONE PUBBLICA;05/04/2022;3544;0;354;1;Spese correnti;3;Acquisto di beni e servizi;2;Acquisto di servizi;15;Contratti di servizio pubblico;15;Contratti di servizio per l'illuminazione pubblica;07/04/2022
1378;4;9999999;156,37;465,72;ENEL ENERGIA SPA;8426072694;SALDO Fatt.n. 004205806763  del 07/03/2022 FEBBRAIO 2022 - CONSUMI  ILLUMINAZIONE PUBBLICA;05/04/2022;3544;0;354;1;Spese correnti;3;Acquisto di beni e servizi;2;Acquisto di servizi;15;Contratti di servizio pubblico;15;Contratti di servizio per l'illuminazione pubblica;07/04/2022
1378;5;9999999;208,19;465,72;ENEL ENERGIA SPA;8426072694;SALDO Fatt.n. 004205806797  del 07/03/2022 FEBBRAIO 2022 - CONSUMI  ILLUMINAZIONE PUBBLICA;05/04/2022;3544;0;354;1;Spese correnti;3;Acquisto di beni e servizi;2;Acquisto di servizi;15;Contratti di servizio pubblico;15;Contratti di servizio per l'illuminazione pubblica;07/04/2022
1379;1;9999999;6,77;135,98;ENEL ENERGIA SPA;8426072694;SALDO Fatt.n. 004205806816  del 07/03/2022 FEBBRAIO 2022 - CONSUMI ILLUMINAZIONE PUBBLICA;05/04/2022;3544;0;354;1;Spese correnti;3;Acquisto di beni e servizi;2;Acquisto di servizi;15;Contratti di servizio pubblico;15;Contratti di servizio per l'illuminazione pubblica;07/04/2022
1379;2;9999999;10,58;135,98;ENEL ENERGIA SPA;8426072694;SALDO Fatt.n. 004205806812  del 07/03/2022 FEBBRAIO 2022 - CONSUMI ILLUMINAZIONE PUBBLICA;05/04/2022;3544;0;354;1;Spese correnti;3;Acquisto di beni e servizi;2;Acquisto di servizi;15;Contratti di servizio pubblico;15;Contratti di servizio per l'illuminazione pubblica;07/04/2022
1379;3;9999999;17,29;135,98;ENEL ENERGIA SPA;8426072694;SALDO Fatt.n. 004205806814  del 07/03/2022 FEBBRAIO 2022 - CONSUMI ILLUMINAZIONE PUBBLICA;05/04/2022;3544;0;354;1;Spese correnti;3;Acquisto di beni e servizi;2;Acquisto di servizi;15;Contratti di servizio pubblico;15;Contratti di servizio per l'illuminazione pubblica;07/04/2022
1379;4;9999999;36,64;135,98;ENEL ENERGIA SPA;8426072694;SALDO Fatt.n. 004205806754  del 07/03/2022 FEBBRAIO 2022 - CONSUMI ILLUMINAZIONE PUBBLICA;05/04/2022;3544;0;354;1;Spese correnti;3;Acquisto di beni e servizi;2;Acquisto di servizi;15;Contratti di servizio pubblico;15;Contratti di servizio per l'illuminazione pubblica;07/04/2022
1379;5;9999999;64,7;135,98;ENEL ENERGIA SPA;8426072694;SALDO Fatt.n. 004205806807  del 07/03/2022 FEBBRAIO 2022 - CONSUMI ILLUMINAZIONE PUBBLICA;05/04/2022;3544;0;354;1;Spese correnti;3;Acquisto di beni e servizi;2;Acquisto di servizi;15;Contratti di servizio pubblico;15;Contratti di servizio per l'illuminazione pubblica;07/04/2022
1380;1;9999999;5,58;163,41;ENEL ENERGIA SPA;8426072694;SALDO Fatt.n. 004205806770  del 07/03/2022 FEBBRAIO 2022 - CONSUMI ILLUMINAZIONE PUBBLICA;05/04/2022;3544;0;354;1;Spese correnti;3;Acquisto di beni e servizi;2;Acquisto di servizi;15;Contratti di servizio pubblico;15;Contratti di servizio per l'illuminazione pubblica;07/04/2022
1380;2;9999999;13,46;163,41;ENEL ENERGIA SPA;8426072694;SALDO Fatt.n. 004205806727  del 07/03/2022 FEBBRAIO 2022 - CONSUMI ILLUMINAZIONE PUBBLICA;05/04/2022;3544;0;354;1;Spese correnti;3;Acquisto di beni e servizi;2;Acquisto di servizi;15;Contratti di servizio pubblico;15;Contratti di servizio per l'illuminazione pubblica;07/04/2022
1380;3;9999999;17,47;163,41;ENEL ENERGIA SPA;8426072694;SALDO Fatt.n. 004205806799  del 07/03/2022 FEBBRAIO 2022 - CONSUMI ILLUMINAZIONE PUBBLICA;05/04/2022;3544;0;354;1;Spese correnti;3;Acquisto di beni e servizi;2;Acquisto di servizi;15;Contratti di servizio pubblico;15;Contratti di servizio per l'illuminazione pubblica;07/04/2022
1380;4;9999999;25,47;163,41;ENEL ENERGIA SPA;8426072694;SALDO Fatt.n. 004205806798  del 07/03/2022 FEBBRAIO 2022 - CONSUMI ILLUMINAZIONE PUBBLICA;05/04/2022;3544;0;354;1;Spese correnti;3;Acquisto di beni e servizi;2;Acquisto di servizi;15;Contratti di servizio pubblico;15;Contratti di servizio per l'illuminazione pubblica;07/04/2022
1380;5;9999999;101,43;163,41;ENEL ENERGIA SPA;8426072694;SALDO Fatt.n. 004205806765  del 07/03/2022 FEBBRAIO 2022 - CONSUMI ILLUMINAZIONE PUBBLICA;05/04/2022;3544;0;354;1;Spese correnti;3;Acquisto di beni e servizi;2;Acquisto di servizi;15;Contratti di servizio pubblico;15;Contratti di servizio per l'illuminazione pubblica;07/04/2022
1381;1;9999999;8,86;611,79;ENEL ENERGIA SPA;8426072694;SALDO Fatt.n. 004205806779  del 07/03/2022 FEBBRAIO 2022 - CONSUMI ILLUMINAZIONE PUBBLICA;05/04/2022;3544;0;354;1;Spese correnti;3;Acquisto di beni e servizi;2;Acquisto di servizi;15;Contratti di servizio pubblico;15;Contratti di servizio per l'illuminazione pubblica;07/04/2022
1381;2;9999999;20,12;611,79;ENEL ENERGIA SPA;8426072694;SALDO Fatt.n. 004205806788  del 07/03/2022 FEBBRAIO 2022 - CONSUMI ILLUMINAZIONE PUBBLICA;05/04/2022;3544;0;354;1;Spese correnti;3;Acquisto di beni e servizi;2;Acquisto di servizi;15;Contratti di servizio pubblico;15;Contratti di servizio per l'illuminazione pubblica;07/04/2022
1381;3;9999999;34;611,79;ENEL ENERGIA SPA;8426072694;SALDO Fatt.n. 004205806789  del 07/03/2022 FEBBRAIO 2022 - CONSUMI ILLUMINAZIONE PUBBLICA;05/04/2022;3544;0;354;1;Spese correnti;3;Acquisto di beni e servizi;2;Acquisto di servizi;15;Contratti di servizio pubblico;15;Contratti di servizio per l'illuminazione pubblica;07/04/2022
1381;4;9999999;81,72;611,79;ENEL ENERGIA SPA;8426072694;SALDO Fatt.n. 004205806772  del 07/03/2022 FEBBRAIO 2022 - CONSUMI ILLUMINAZIONE PUBBLICA;05/04/2022;3544;0;354;1;Spese correnti;3;Acquisto di beni e servizi;2;Acquisto di servizi;15;Contratti di servizio pubblico;15;Contratti di servizio per l'illuminazione pubblica;07/04/2022
1381;5;9999999;467,09;611,79;ENEL ENERGIA SPA;8426072694;SALDO Fatt.n. 004205806780  del 07/03/2022 FEBBRAIO 2022 - CONSUMI ILLUMINAZIONE PUBBLICA;05/04/2022;3544;0;354;1;Spese correnti;3;Acquisto di beni e servizi;2;Acquisto di servizi;15;Contratti di servizio pubblico;15;Contratti di servizio per l'illuminazione pubblica;07/04/2022
1382;1;9999999;9,64;626,6;ENEL ENERGIA SPA;8426072694;SALDO Fatt.n. 004205806737  del 07/03/2022 FEBBRAIO 2022 - CONSUMI ILLUMINAZIONE PUBBLICA;05/04/2022;3544;0;354;1;Spese correnti;3;Acquisto di beni e servizi;2;Acquisto di servizi;15;Contratti di servizio pubblico;15;Contratti di servizio per l'illuminazione pubblica;07/04/2022
1382;2;9999999;14,87;626,6;ENEL ENERGIA SPA;8426072694;SALDO Fatt.n. 004205806749  del 07/03/2022 FEBBRAIO 2022 - CONSUMI ILLUMINAZIONE PUBBLICA;05/04/2022;3544;0;354;1;Spese correnti;3;Acquisto di beni e servizi;2;Acquisto di servizi;15;Contratti di servizio pubblico;15;Contratti di servizio per l'illuminazione pubblica;07/04/2022
1382;3;9999999;40,17;626,6;ENEL ENERGIA SPA;8426072694;SALDO Fatt.n. 004205806794  del 07/03/2022 FEBBRAIO 2022 - CONSUMI ILLUMINAZIONE PUBBLICA;05/04/2022;3544;0;354;1;Spese correnti;3;Acquisto di beni e servizi;2;Acquisto di servizi;15;Contratti di servizio pubblico;15;Contratti di servizio per l'illuminazione pubblica;07/04/2022
1382;4;9999999;222,87;626,6;ENEL ENERGIA SPA;8426072694;SALDO Fatt.n. 004205806732  del 07/03/2022 FEBBRAIO 2022 - CONSUMI ILLUMINAZIONE PUBBLICA;05/04/2022;3544;0;354;1;Spese correnti;3;Acquisto di beni e servizi;2;Acquisto di servizi;15;Contratti di servizio pubblico;15;Contratti di servizio per l'illuminazione pubblica;07/04/2022
1382;5;9999999;339,05;626,6;ENEL ENERGIA SPA;8426072694;SALDO Fatt.n. 004205806792  del 07/03/2022 FEBBRAIO 2022 - CONSUMI ILLUMINAZIONE PUBBLICA;05/04/2022;3544;0;354;1;Spese correnti;3;Acquisto di beni e servizi;2;Acquisto di servizi;15;Contratti di servizio pubblico;15;Contratti di servizio per l'illuminazione pubblica;07/04/2022
1383;1;9999999;16,65;700,37;ENEL ENERGIA SPA;8426072694;SALDO Fatt.n. 004205806817  del 07/03/2022 FEBBRAIO 2022- CONSUMI ILLUMINAZIONE PUBBLICA;05/04/2022;3544;0;354;1;Spese correnti;3;Acquisto di beni e servizi;2;Acquisto di servizi;15;Contratti di servizio pubblico;15;Contratti di servizio per l'illuminazione pubblica;07/04/2022
1383;2;9999999;18,14;700,37;ENEL ENERGIA SPA;8426072694;SALDO Fatt.n. 004205806756  del 07/03/2022 FEBBRAIO 2022- CONSUMI ILLUMINAZIONE PUBBLICA;05/04/2022;3544;0;354;1;Spese correnti;3;Acquisto di beni e servizi;2;Acquisto di servizi;15;Contratti di servizio pubblico;15;Contratti di servizio per l'illuminazione pubblica;07/04/2022
1383;3;9999999;194,49;700,37;ENEL ENERGIA SPA;8426072694;SALDO Fatt.n. 004205806804  del 07/03/2022 FEBBRAIO 2022 - CONSUMI ILLUMINAZIONE PUBBLICA;05/04/2022;3544;0;354;1;Spese correnti;3;Acquisto di beni e servizi;2;Acquisto di servizi;15;Contratti di servizio pubblico;15;Contratti di servizio per l'illuminazione pubblica;07/04/2022
1383;4;9999999;213,6;700,37;ENEL ENERGIA SPA;8426072694;SALDO Fatt.n. 004207269935  del 09/03/2022 FEBBRAIO 2022- CONSUMI ILLUMINAZIONE PUBBLICA;05/04/2022;3544;0;354;1;Spese correnti;3;Acquisto di beni e servizi;2;Acquisto di servizi;15;Contratti di servizio pubblico;15;Contratti di servizio per l'illuminazione pubblica;07/04/2022
1383;5;9999999;257,49;700,37;ENEL ENERGIA SPA;8426072694;SALDO Fatt.n. 004205806751  del 07/03/2022 FEBBRAIO 2022- CONSUMI ILLUMINAZIONE PUBBLICA;05/04/2022;3544;0;354;1;Spese correnti;3;Acquisto di beni e servizi;2;Acquisto di servizi;15;Contratti di servizio pubblico;15;Contratti di servizio per l'illuminazione pubblica;07/04/2022
1384;1;9999999;10,13;649,32;ENEL ENERGIA SPA;8426072694;SALDO Fatt.n. 004207269939  del 09/03/2022 FEBBRAIO 2022- CONSUMI ILLUMINAZIONE PUBBLICA;05/04/2022;3544;0;354;1;Spese correnti;3;Acquisto di beni e servizi;2;Acquisto di servizi;15;Contratti di servizio pubblico;15;Contratti di servizio per l'illuminazione pubblica;07/04/2022
1384;2;9999999;60,28;649,32;ENEL ENERGIA SPA;8426072694;SALDO Fatt.n. 004207269940  del 09/03/2022 FEBBRAIO 2022- CONSUMI ILLUMINAZIONE PUBBLICA;05/04/2022;3544;0;354;1;Spese correnti;3;Acquisto di beni e servizi;2;Acquisto di servizi;15;Contratti di servizio pubblico;15;Contratti di servizio per l'illuminazione pubblica;07/04/2022
1384;3;9999999;66,61;649,32;ENEL ENERGIA SPA;8426072694;SALDO Fatt.n. 004207269937  del 09/03/2022 FEBBRAIO 2022- CONSUMI ILLUMINAZIONE PUBBLICA;05/04/2022;3544;0;354;1;Spese correnti;3;Acquisto di beni e servizi;2;Acquisto di servizi;15;Contratti di servizio pubblico;15;Contratti di servizio per l'illuminazione pubblica;07/04/2022
1384;4;9999999;107,69;649,32;ENEL ENERGIA SPA;8426072694;SALDO Fatt.n. 004207269941  del 09/03/2022 FEBBRAIO 2022- CONSUMI ILLUMINAZIONE PUBBLICA;05/04/2022;3544;0;354;1;Spese correnti;3;Acquisto di beni e servizi;2;Acquisto di servizi;15;Contratti di servizio pubblico;15;Contratti di servizio per l'illuminazione pubblica;07/04/2022
1384;5;9999999;404,61;649,32;ENEL ENERGIA SPA;8426072694;SALDO Fatt.n. 004207269942  del 09/03/2022 FEBBRAIO 2022- CONSUMI ILLUMINAZIONE PUBBLICA;05/04/2022;3544;0;354;1;Spese correnti;3;Acquisto di beni e servizi;2;Acquisto di servizi;15;Contratti di servizio pubblico;15;Contratti di servizio per l'illuminazione pubblica;07/04/2022
1385;1;9999999;5,1;523,11;ENEL ENERGIA SPA;8426072694;SALDO Fatt.n. 004207269943  del 09/03/2022 FEBBRAIO 2022- CONSUMI ILLUMINAZIONE PUBBLICA;05/04/2022;3544;0;354;1;Spese correnti;3;Acquisto di beni e servizi;2;Acquisto di servizi;15;Contratti di servizio pubblico;15;Contratti di servizio per l'illuminazione pubblica;07/04/2022
1385;2;9999999;55,12;523,11;ENEL ENERGIA SPA;8426072694;SALDO Fatt.n. 004207269938  del 09/03/2022 FEBBRAIO 2022- CONSUMI ILLUMINAZIONE PUBBLICA;05/04/2022;3544;0;354;1;Spese correnti;3;Acquisto di beni e servizi;2;Acquisto di servizi;15;Contratti di servizio pubblico;15;Contratti di servizio per l'illuminazione pubblica;07/04/2022
1385;3;9999999;124,61;523,11;ENEL ENERGIA SPA;8426072694;SALDO Fatt.n. 004207269946  del 09/03/2022 FEBBRAIO 2022- CONSUMI ILLUMINAZIONE PUBBLICA;05/04/2022;3544;0;354;1;Spese correnti;3;Acquisto di beni e servizi;2;Acquisto di servizi;15;Contratti di servizio pubblico;15;Contratti di servizio per l'illuminazione pubblica;07/04/2022
1385;4;9999999;139,49;523,11;ENEL ENERGIA SPA;8426072694;SALDO Fatt.n. 004207269936  del 09/03/2022 FEBBRAIO 2022- CONSUMI ILLUMINAZIONE PUBBLICA;05/04/2022;3544;0;354;1;Spese correnti;3;Acquisto di beni e servizi;2;Acquisto di servizi;15;Contratti di servizio pubblico;15;Contratti di servizio per l'illuminazione pubblica;07/04/2022
1385;5;9999999;198,79;523,11;ENEL ENERGIA SPA;8426072694;SALDO Fatt.n. 004207269944  del 09/03/2022 FEBBRAIO 2022- CONSUMI ILLUMINAZIONE PUBBLICA;05/04/2022;3544;0;354;1;Spese correnti;3;Acquisto di beni e servizi;2;Acquisto di servizi;15;Contratti di servizio pubblico;15;Contratti di servizio per l'illuminazione pubblica;07/04/2022
1386;1;9999999;5,83;540,44;ENEL ENERGIA SPA;8426072694;SALDO Fatt.n. 004206201506  del 08/03/2022 FEBBRAIO 2022- CONSUMI ILLUMINAZIONE PUBBLICA;05/04/2022;3544;0;354;1;Spese correnti;3;Acquisto di beni e servizi;2;Acquisto di servizi;15;Contratti di servizio pubblico;15;Contratti di servizio per l'illuminazione pubblica;07/04/2022
1386;2;9999999;19,04;540,44;ENEL ENERGIA SPA;8426072694;SALDO Fatt.n. 004206201503  del 08/03/2022 FEBBRAIO 2022- CONSUMI ILLUMINAZIONE PUBBLICA;05/04/2022;3544;0;354;1;Spese correnti;3;Acquisto di beni e servizi;2;Acquisto di servizi;15;Contratti di servizio pubblico;15;Contratti di servizio per l'illuminazione pubblica;07/04/2022
1386;3;9999999;39,15;540,44;ENEL ENERGIA SPA;8426072694;SALDO Fatt.n. 004208036952  del 10/03/2022 FEBBRAIO 2022- CONSUMI ILLUMINAZIONE PUBBLICA;05/04/2022;3544;0;354;1;Spese correnti;3;Acquisto di beni e servizi;2;Acquisto di servizi;15;Contratti di servizio pubblico;15;Contratti di servizio per l'illuminazione pubblica;07/04/2022
1386;4;9999999;164,93;540,44;ENEL ENERGIA SPA;8426072694;SALDO Fatt.n. 004206201504  del 08/03/2022 FEBBRAIO 2022- CONSUMI ILLUMINAZIONE PUBBLICA;05/04/2022;3544;0;354;1;Spese correnti;3;Acquisto di beni e servizi;2;Acquisto di servizi;15;Contratti di servizio pubblico;15;Contratti di servizio per l'illuminazione pubblica;07/04/2022
1386;5;9999999;311,49;540,44;ENEL ENERGIA SPA;8426072694;SALDO Fatt.n. 004206201502  del 08/03/2022 FEBBRAIO 2022- CONSUMI ILLUMINAZIONE PUBBLICA;05/04/2022;3544;0;354;1;Spese correnti;3;Acquisto di beni e servizi;2;Acquisto di servizi;15;Contratti di servizio pubblico;15;Contratti di servizio per l'illuminazione pubblica;07/04/2022
1387;1;9999999;5,23;711,55;ENEL ENERGIA SPA;8426072694;SALDO Fatt.n. 004208036948  del 10/03/2022 FEBBRAIO 2022- CONSUMI ILLUMINAZIONE PUBBLICA;05/04/2022;3544;0;354;1;Spese correnti;3;Acquisto di beni e servizi;2;Acquisto di servizi;15;Contratti di servizio pubblico;15;Contratti di servizio per l'illuminazione pubblica;07/04/2022
1387;2;9999999;57,84;711,55;ENEL ENERGIA SPA;8426072694;SALDO Fatt.n. 004208036950  del 10/03/2022 FEBBRAIO 2022- CONSUMI ILLUMINAZIONE PUBBLICA;05/04/2022;3544;0;354;1;Spese correnti;3;Acquisto di beni e servizi;2;Acquisto di servizi;15;Contratti di servizio pubblico;15;Contratti di servizio per l'illuminazione pubblica;07/04/2022
1387;3;9999999;167,6;711,55;ENEL ENERGIA SPA;8426072694;SALDO Fatt.n. 004208036946  del 10/03/2022 FEBBRAIO 2022- CONSUMI ILLUMINAZIONE PUBBLICA;05/04/2022;3544;0;354;1;Spese correnti;3;Acquisto di beni e servizi;2;Acquisto di servizi;15;Contratti di servizio pubblico;15;Contratti di servizio per l'illuminazione pubblica;07/04/2022
1387;4;9999999;170,56;711,55;ENEL ENERGIA SPA;8426072694;SALDO Fatt.n. 004208036949  del 10/03/2022 FEBBRAIO 2022- CONSUMI ILLUMINAZIONE PUBBLICA;05/04/2022;3544;0;354;1;Spese correnti;3;Acquisto di beni e servizi;2;Acquisto di servizi;15;Contratti di servizio pubblico;15;Contratti di servizio per l'illuminazione pubblica;07/04/2022
1387;5;9999999;310,32;711,55;ENEL ENERGIA SPA;8426072694;SALDO Fatt.n. 004208036947  del 10/03/2022 FEBBRAIO 2022- CONSUMI ILLUMINAZIONE PUBBLICA;05/04/2022;3544;0;354;1;Spese correnti;3;Acquisto di beni e servizi;2;Acquisto di servizi;15;Contratti di servizio pubblico;15;Contratti di servizio per l'illuminazione pubblica;07/04/2022
1388;1;9999999;28;684,65;ENEL ENERGIA SPA;8426072694;SALDO Fatt.n. 004208036954  del 10/03/2022 FEBBRAIO 2022- CONSUMI ILLUMINAZIONE PUBBLICA;05/04/2022;3544;0;354;1;Spese correnti;3;Acquisto di beni e servizi;2;Acquisto di servizi;15;Contratti di servizio pubblico;15;Contratti di servizio per l'illuminazione pubblica;07/04/2022
1388;2;9999999;29,12;684,65;ENEL ENERGIA SPA;8426072694;SALDO Fatt.n. 004208036957  del 10/03/2022 FEBBRAIO 2022- CONSUMI ILLUMINAZIONE PUBBLICA;05/04/2022;3544;0;354;1;Spese correnti;3;Acquisto di beni e servizi;2;Acquisto di servizi;15;Contratti di servizio pubblico;15;Contratti di servizio per l'illuminazione pubblica;07/04/2022
1388;3;9999999;73,82;684,65;ENEL ENERGIA SPA;8426072694;SALDO Fatt.n. 004209275247  del 11/03/2022 FEBBRAIO 2022- CONSUMI ILLUMINAZIONE PUBBLICA;05/04/2022;3544;0;354;1;Spese correnti;3;Acquisto di beni e servizi;2;Acquisto di servizi;15;Contratti di servizio pubblico;15;Contratti di servizio per l'illuminazione pubblica;07/04/2022
1388;4;9999999;153,17;684,65;ENEL ENERGIA SPA;8426072694;SALDO Fatt.n. 004208036951  del 10/03/2022 FEBBRAIO 2022- CONSUMI ILLUMINAZIONE PUBBLICA;05/04/2022;3544;0;354;1;Spese correnti;3;Acquisto di beni e servizi;2;Acquisto di servizi;15;Contratti di servizio pubblico;15;Contratti di servizio per l'illuminazione pubblica;07/04/2022
1388;5;9999999;400,54;684,65;ENEL ENERGIA SPA;8426072694;SALDO Fatt.n. 004208036956  del 10/03/2022 FEBBRAIO 2022- CONSUMI ILLUMINAZIONE PUBBLICA;05/04/2022;3544;0;354;1;Spese correnti;3;Acquisto di beni e servizi;2;Acquisto di servizi;15;Contratti di servizio pubblico;15;Contratti di servizio per l'illuminazione pubblica;07/04/2022
1389;1;9999999;3,89;583,94;ENEL ENERGIA SPA;8426072694;SALDO Fatt.n. 004209275254  del 11/03/2022 FEBBRAIO 2022- CONSUMI ILLUMINAZIONE PUBBLICA;05/04/2022;3544;0;354;1;Spese correnti;3;Acquisto di beni e servizi;2;Acquisto di servizi;15;Contratti di servizio pubblico;15;Contratti di servizio per l'illuminazione pubblica;07/04/2022
1389;2;9999999;28,68;583,94;ENEL ENERGIA SPA;8426072694;SALDO Fatt.n. 004209275250  del 11/03/2022 FEBBRAIO 2022- CONSUMI ILLUMINAZIONE PUBBLICA;05/04/2022;3544;0;354;1;Spese correnti;3;Acquisto di beni e servizi;2;Acquisto di servizi;15;Contratti di servizio pubblico;15;Contratti di servizio per l'illuminazione pubblica;07/04/2022
1389;3;9999999;34,18;583,94;ENEL ENERGIA SPA;8426072694;SALDO Fatt.n. 004209275253  del 11/03/2022 FEBBRAIO 2022- CONSUMI ILLUMINAZIONE PUBBLICA;05/04/2022;3544;0;354;1;Spese correnti;3;Acquisto di beni e servizi;2;Acquisto di servizi;15;Contratti di servizio pubblico;15;Contratti di servizio per l'illuminazione pubblica;07/04/2022
1389;4;9999999;117,73;583,94;ENEL ENERGIA SPA;8426072694;SALDO Fatt.n. 004209275251  del 11/03/2022 FEBBRAIO 2022- CONSUMI ILLUMINAZIONE PUBBLICA;05/04/2022;3544;0;354;1;Spese correnti;3;Acquisto di beni e servizi;2;Acquisto di servizi;15;Contratti di servizio pubblico;15;Contratti di servizio per l'illuminazione pubblica;07/04/2022
1389;5;9999999;187,62;583,94;ENEL ENERGIA SPA;8426072694;SALDO Fatt.n. 004209275249  del 11/03/2022 FEBBRAIO 2022- CONSUMI ILLUMINAZIONE PUBBLICA;05/04/2022;3544;0;354;1;Spese correnti;3;Acquisto di beni e servizi;2;Acquisto di servizi;15;Contratti di servizio pubblico;15;Contratti di servizio per l'illuminazione pubblica;07/04/2022
1389;6;9999999;211,84;583,94;ENEL ENERGIA SPA;8426072694;SALDO Fatt.n. 004209275252  del 11/03/2022 FEBBRAIO 2022- CONSUMI ILLUMINAZIONE PUBBLICA;05/04/2022;3544;0;354;1;Spese correnti;3;Acquisto di beni e servizi;2;Acquisto di servizi;15;Contratti di servizio pubblico;15;Contratti di servizio per l'illuminazione pubblica;07/04/2022
1390;1;9999999;10,54;407,4;ENEL ENERGIA SPA;8426072694;SALDO Fatt.n. 004210959658  del 12/03/2022 FEBBRAIO 2022- CONSUMI ILLUMINAZIONE PUBBLICA;05/04/2022;3544;0;354;1;Spese correnti;3;Acquisto di beni e servizi;2;Acquisto di servizi;15;Contratti di servizio pubblico;15;Contratti di servizio per l'illuminazione pubblica;07/04/2022
1390;2;9999999;17,87;407,4;ENEL ENERGIA SPA;8426072694;SALDO Fatt.n. 004210959664  del 12/03/2022 FEBBRAIO 2022- CONSUMI ILLUMINAZIONE PUBBLICA;05/04/2022;3544;0;354;1;Spese correnti;3;Acquisto di beni e servizi;2;Acquisto di servizi;15;Contratti di servizio pubblico;15;Contratti di servizio per l'illuminazione pubblica;07/04/2022
1390;3;9999999;67,78;407,4;ENEL ENERGIA SPA;8426072694;SALDO Fatt.n. 004210959661  del 12/03/2022 FEBBRAIO 2022- CONSUMI ILLUMINAZIONE PUBBLICA;05/04/2022;3544;0;354;1;Spese correnti;3;Acquisto di beni e servizi;2;Acquisto di servizi;15;Contratti di servizio pubblico;15;Contratti di servizio per l'illuminazione pubblica;07/04/2022
1390;4;9999999;89;407,4;ENEL ENERGIA SPA;8426072694;SALDO Fatt.n. 004210959663  del 12/03/2022 FEBBRAIO 2022- CONSUMI ILLUMINAZIONE PUBBLICA;05/04/2022;3544;0;354;1;Spese correnti;3;Acquisto di beni e servizi;2;Acquisto di servizi;15;Contratti di servizio pubblico;15;Contratti di servizio per l'illuminazione pubblica;07/04/2022
1390;5;9999999;109,76;407,4;ENEL ENERGIA SPA;8426072694;SALDO Fatt.n. 004210959662  del 12/03/2022 FEBBRAIO 2022- CONSUMI ILLUMINAZIONE PUBBLICA;05/04/2022;3544;0;354;1;Spese correnti;3;Acquisto di beni e servizi;2;Acquisto di servizi;15;Contratti di servizio pubblico;15;Contratti di servizio per l'illuminazione pubblica;07/04/2022
1390;6;9999999;112,45;407,4;ENEL ENERGIA SPA;8426072694;SALDO Fatt.n. 004210959660  del 12/03/2022 FEBBRAIO 2022- CONSUMI ILLUMINAZIONE PUBBLICA;05/04/2022;3544;0;354;1;Spese correnti;3;Acquisto di beni e servizi;2;Acquisto di servizi;15;Contratti di servizio pubblico;15;Contratti di servizio per l'illuminazione pubblica;07/04/2022
1391;1;9999999;25,45;702,74;ENEL ENERGIA SPA;8426072694;SALDO Fatt.n. 004212189614  del 13/03/2022 FEBBRAIO 2022- CONSUMI ILLUMINAZIONE PUBBLICA;05/04/2022;3544;0;354;1;Spese correnti;3;Acquisto di beni e servizi;2;Acquisto di servizi;15;Contratti di servizio pubblico;15;Contratti di servizio per l'illuminazione pubblica;07/04/2022
1391;2;9999999;69,87;702,74;ENEL ENERGIA SPA;8426072694;SALDO Fatt.n. 004210959666  del 12/03/2022 FEBBRAIO 2022- CONSUMI ILLUMINAZIONE PUBBLICA;05/04/2022;3544;0;354;1;Spese correnti;3;Acquisto di beni e servizi;2;Acquisto di servizi;15;Contratti di servizio pubblico;15;Contratti di servizio per l'illuminazione pubblica;07/04/2022
1391;3;9999999;83,14;702,74;ENEL ENERGIA SPA;8426072694;SALDO Fatt.n. 004212189615  del 13/03/2022 FEBBRAIO 2022- CONSUMI ILLUMINAZIONE PUBBLICA;05/04/2022;3544;0;354;1;Spese correnti;3;Acquisto di beni e servizi;2;Acquisto di servizi;15;Contratti di servizio pubblico;15;Contratti di servizio per l'illuminazione pubblica;07/04/2022
1391;4;9999999;209,93;702,74;ENEL ENERGIA SPA;8426072694;SALDO Fatt.n. 004212189612  del 13/03/2022 FEBBRAIO 2022- CONSUMI ILLUMINAZIONE PUBBLICA;05/04/2022;3544;0;354;1;Spese correnti;3;Acquisto di beni e servizi;2;Acquisto di servizi;15;Contratti di servizio pubblico;15;Contratti di servizio per l'illuminazione pubblica;07/04/2022
1391;5;9999999;314,35;702,74;ENEL ENERGIA SPA;8426072694;SALDO Fatt.n. 004212189613  del 13/03/2022 FEBBRAIO 2022 - CONSUMI ILLUMINAZIONE PUBBLICA;05/04/2022;3544;0;354;1;Spese correnti;3;Acquisto di beni e servizi;2;Acquisto di servizi;15;Contratti di servizio pubblico;15;Contratti di servizio per l'illuminazione pubblica;07/04/2022
1392;1;9999999;30,04;30,04;ENEL ENERGIA SPA;8426072694;SALDO Fatt.n. 004210959668  del 12/03/2022 FEBBRAIO 2022- CONSUMI ILLUMINAZIONE PUBBLICA;05/04/2022;3544;0;354;1;Spese correnti;3;Acquisto di beni e servizi;2;Acquisto di servizi;15;Contratti di servizio pubblico;15;Contratti di servizio per l'illuminazione pubblica;07/04/2022
1393;1;9999999;35,27;639,2;ENEL ENERGIA SPA;8426072694;SALDO Fatt.n. 004212895395  del 14/03/2022 FEBBRAIO 2022- CONSUMI ILLUMINAZIONE PUBBLICA;05/04/2022;3544;0;354;1;Spese correnti;3;Acquisto di beni e servizi;2;Acquisto di servizi;15;Contratti di servizio pubblico;15;Contratti di servizio per l'illuminazione pubblica;07/04/2022
1393;2;9999999;35,27;639,2;ENEL ENERGIA SPA;8426072694;SALDO Fatt.n. 004212895396  del 14/03/2022 FEBBRAIO 2022- CONSUMI ILLUMINAZIONE PUBBLICA;05/04/2022;3544;0;354;1;Spese correnti;3;Acquisto di beni e servizi;2;Acquisto di servizi;15;Contratti di servizio pubblico;15;Contratti di servizio per l'illuminazione pubblica;07/04/2022
1393;3;9999999;62,87;639,2;ENEL ENERGIA SPA;8426072694;SALDO Fatt.n. 004212189616  del 13/03/2022 FEBBRAIO 2022- CONSUMI ILLUMINAZIONE PUBBLICA;05/04/2022;3544;0;354;1;Spese correnti;3;Acquisto di beni e servizi;2;Acquisto di servizi;15;Contratti di servizio pubblico;15;Contratti di servizio per l'illuminazione pubblica;07/04/2022
1393;4;9999999;70,88;639,2;ENEL ENERGIA SPA;8426072694;SALDO Fatt.n. 004212895398  del 14/03/2022 FEBBRAIO 2022- CONSUMI ILLUMINAZIONE PUBBLICA;05/04/2022;3544;0;354;1;Spese correnti;3;Acquisto di beni e servizi;2;Acquisto di servizi;15;Contratti di servizio pubblico;15;Contratti di servizio per l'illuminazione pubblica;07/04/2022
1393;5;9999999;130,5;639,2;ENEL ENERGIA SPA;8426072694;SALDO Fatt.n. 004212895397  del 14/03/2022 FEBBRAIO 2022- CONSUMI ILLUMINAZIONE PUBBLICA;05/04/2022;3544;0;354;1;Spese correnti;3;Acquisto di beni e servizi;2;Acquisto di servizi;15;Contratti di servizio pubblico;15;Contratti di servizio per l'illuminazione pubblica;07/04/2022
1393;6;9999999;304,41;639,2;ENEL ENERGIA SPA;8426072694;SALDO Fatt.n. 004212895399  del 14/03/2022 FEBBRAIO 2022- CONSUMI ILLUMINAZIONE PUBBLICA;05/04/2022;3544;0;354;1;Spese correnti;3;Acquisto di beni e servizi;2;Acquisto di servizi;15;Contratti di servizio pubblico;15;Contratti di servizio per l'illuminazione pubblica;07/04/2022
1394;1;9999999;364,43;867,31;ENEL ENERGIA SPA;8426072694;SALDO Fatt.n. 004205806785  del 07/03/2022 FEBBRAIO 2022- CONSUMI VILLA FARSETTI;05/04/2022;4234;0;346;1;Spese correnti;3;Acquisto di beni e servizi;2;Acquisto di servizi;5;Utenze e canoni;4;Energia elettrica;07/04/2022
1394;2;9999999;502,88;867,31;ENEL ENERGIA SPA;8426072694;SALDO Fatt.n. 004207269945  del 09/03/2022 FEBBRAIO 2022- CONSUMI VILLA FARSETTI;05/04/2022;4234;0;346;1;Spese correnti;3;Acquisto di beni e servizi;2;Acquisto di servizi;5;Utenze e canoni;4;Energia elettrica;07/04/2022
1395;1;9999999;25,18;25,18;ENEL ENERGIA SPA;8426072694;SALDO Fatt.n. 004205806744  del 07/03/2022 FEBBRAIO 2022 - CONSUMI CIMITERO DI STIGLIANO - ILLUMINAZIONE VOTIVA;05/04/2022;4434;0;353;1;Spese correnti;3;Acquisto di beni e servizi;2;Acquisto di servizi;5;Utenze e canoni;4;Energia elettrica;07/04/2022
1396;1;9999999;67;67;ENEL ENERGIA SPA;8426072694;SALDO Fatt.n. 004205806748  del 07/03/2022 FEBBRAIO 2022- CONSUMI CIMITERO CALTANA E LAMPADE VOTIVE;05/04/2022;4434;0;353;1;Spese correnti;3;Acquisto di beni e servizi;2;Acquisto di servizi;5;Utenze e canoni;4;Energia elettrica;07/04/2022
1397;1;9999999;20;20;ENEL ENERGIA SPA;8426072694;SALDO Fatt.n. 004205806787  del 07/03/2022 FEBBRAIO 2022- CONSUMI CIMITERO DI S.ANGELO E LAMPADE VOTIVE;05/04/2022;4434;0;353;1;Spese correnti;3;Acquisto di beni e servizi;2;Acquisto di servizi;5;Utenze e canoni;4;Energia elettrica;07/04/2022
1398;1;9999999;25;25;ENEL ENERGIA SPA;8426072694;SALDO Fatt.n. 004205806741  del 07/03/2022 FEBBRAIO 2022 - CONSUMI CIMITERO SMS - LAMPADE VOTIVE;05/04/2022;4434;0;353;1;Spese correnti;3;Acquisto di beni e servizi;2;Acquisto di servizi;5;Utenze e canoni;4;Energia elettrica;07/04/2022
1399;1;9999999;18;18;ENEL ENERGIA SPA;8426072694;SALDO Fatt.n. 004205806791  del 07/03/2022 FEBBRAIO 2022 - CONSUMI CIMITERO VETERNIGO - LAMPADE VOTIVE;05/04/2022;4434;0;353;1;Spese correnti;3;Acquisto di beni e servizi;2;Acquisto di servizi;5;Utenze e canoni;4;Energia elettrica;07/04/2022
1400;1;9999999;30;30;ENEL ENERGIA SPA;8426072694;SALDO Fatt.n. 004209275248  del 11/03/2022 FEBBRAIO 2022- CONSUMI CIMITERO DI CASELLE E LAMPADE VOTIVE;05/04/2022;4434;0;353;1;Spese correnti;3;Acquisto di beni e servizi;2;Acquisto di servizi;5;Utenze e canoni;4;Energia elettrica;07/04/2022
1401;1;9999999;2.427,97;2.427,97;COOP.SOCIALE LIBERTA' ONLUS;Z05313C21F;ACCONTO Fatt.n. 187  del 28/02/2022 FEBBRAIO 2022  - SERVIZIO DI PULIZIA E SANIFICAZIONE UFFICI COMUNALI;05/04/2022;142;0;358;1;Spese correnti;3;Acquisto di beni e servizi;2;Acquisto di servizi;13;Servizi ausiliari per il funzionamento dell'ente;2;Servizi di pulizia e lavanderia;07/04/2022
1402;1;9999999;3.926,40;3.926,40;STUDIO INTERDONATO & ASSOCIATI;Z212797E81;SALDO Fatt.n. 133  del 09/03/2022 PROPOSIZIONE APPELLO AVANTI LA COMMISSIONE TRIBUTARIA REGIONALE SENTENZA N. 1011/18 DELLA COMMISSIONE TRIBUTARIA PROVINCIALE DI VENEZIA -CARRARO M. ANNO 2009;05/04/2022;340;0;209;1;Spese correnti;3;Acquisto di beni e servizi;2;Acquisto di servizi;11;Prestazioni professionali e specialistiche;6;Patrocinio legale;07/04/2022
1403;1;9999999;140,3;140,3;VEDETTA 2 MONDIALPOL SPA;ZD032B120B;SALDO Fatt.n. V9-454  del 08/03/2022 SERVIZIO DI VIGILANZA GENNAIO 2022 MAGAZZINO-PROTEZ.CIVILE V.LE FERRARIS - VILLA FARSETTI;05/04/2022;548;0;688;1;Spese correnti;3;Acquisto di beni e servizi;2;Acquisto di servizi;9;Manutenzione ordinaria e riparazioni;8;Manutenzione ordinaria e riparazioni di beni immobili;07/04/2022
1404;1;9999999;140,3;140,3;VEDETTA 2 MONDIALPOL SPA;ZD032B120B;SALDO Fatt.n. V9-453  del 08/03/2022 FEBBRAIO 2022 SERVIZIO DI VIGILANZA MAGAZZINO -PROTEZIONE CIVILE V.LE FERRARIS - VILLA FARSETTI;05/04/2022;548;0;688;1;Spese correnti;3;Acquisto di beni e servizi;2;Acquisto di servizi;9;Manutenzione ordinaria e riparazioni;8;Manutenzione ordinaria e riparazioni di beni immobili;07/04/2022
1405;1;9999999;210,11;210,11;ZIN FABIO;Z3B311D0DF;SALDO Fatt.n. 9  del 07/03/2022 SVINCOLO RITENUTA 0,5% SFALCIO ERBA BANCHINE STRADALI ANNO 2021;05/04/2022;2549;0;942;1;Spese correnti;3;Acquisto di beni e servizi;2;Acquisto di servizi;99;Altri servizi;9;Acquisto di sevizi per verde e arredo urbano;07/04/2022
1406;1;9999999;2.525,12;2.525,12;ZIN FABIO;Z3B311D0DF;SALDO Fatt.n. 10  del 07/03/2022 SFALCIO ERBA BANCHINE STRADALI SALDO SERVIZI ANNO 2021;05/04/2022;2549;0;942;1;Spese correnti;3;Acquisto di beni e servizi;2;Acquisto di servizi;99;Altri servizi;9;Acquisto di sevizi per verde e arredo urbano;07/04/2022
1407;1;9999999;779,71;779,71;MEB SRL;Z87350143F;SALDO Fatt.n. 010534  del 28/02/2022 MATERALE ELETTRICO PER MANUTENZIONI;05/04/2022;3538;0;120;1;Spese correnti;3;Acquisto di beni e servizi;2;Acquisto di servizi;9;Manutenzione ordinaria e riparazioni;4;Manutenzione ordinaria e riparazioni di impianti e macchinari;07/04/2022
1408;1;9999999;10.000,00;10.000,00;G.L.E.M. SRL;Z6632EC219;ACCONTO Fatt.n. FVL3  del 11/03/2022 LAVORI DI RIPRISTINO STRUTTURE E ADEGUAMENTO FABBRICATI COMUNALI;05/04/2022;7630;0;730;2;Spese in conto capitale;2;Investimenti fissi lordi e acquisto di terreni;1;Beni materiali;9;Beni immobili;3;Fabbricati ad uso scolastico;07/04/2022
1409;1;9999999;2.062,04;2.062,04;CARPENTERIA  SERRAMENTI FAVARETTO DI FAVARETTO MATTEO;8796437971;ACCONTO Fatt.n. 28  del 14/03/2022 SOSTITUZIONE INFISSI SCUOLE COMUNALI AI FINI DELL'EFFICENTAMENTO ENERGETICO ANNO 2021 - SAL N. 3 CORRISPONDENTE AL FINALE;05/04/2022;7630;1;612;2;Spese in conto capitale;2;Investimenti fissi lordi e acquisto di terreni;1;Beni materiali;9;Beni immobili;3;Fabbricati ad uso scolastico;07/04/2022
1410;1;9999999;1.723,38;1.723,38;CARPENTERIA  SERRAMENTI FAVARETTO DI FAVARETTO MATTEO;8796437971;SALDO Fatt.n. 28  del 14/03/2022 SOSTITUZIONE INFISSI SCUOLE COMUNALI AI FINI DELL'EFFICENTAMENTO ENERGETICO ANNO 2021 - SAL N. 3 CORRISPONDENTE AL FINALE;05/04/2022;7630;1;612;2;Spese in conto capitale;2;Investimenti fissi lordi e acquisto di terreni;1;Beni materiali;9;Beni immobili;3;Fabbricati ad uso scolastico;07/04/2022
1411;1;9999999;5.000,00;5.000,00;G.L.E.M. SRL;Z6632EC219;ACCONTO Fatt.n. FVL3  del 11/03/2022 LAVORI DI RIPRISTINO STRUTTURE E ADEGUAMENTO FABBRICATI COMUNALI;05/04/2022;7681;0;731;2;Spese in conto capitale;2;Investimenti fissi lordi e acquisto di terreni;1;Beni materiali;9;Beni immobili;3;Fabbricati ad uso scolastico;07/04/2022
1412;1;9999999;12.808,57;12.808,57;G.L.E.M. SRL;Z6632EC219;SALDO Fatt.n. FVL3  del 11/03/2022 LAVORI DI RIPRISTINO STRUTTURE E ADEGUAMENTO FABBRICATI COMUNALI;05/04/2022;8469;0;732;2;Spese in conto capitale;2;Investimenti fissi lordi e acquisto di terreni;1;Beni materiali;9;Beni immobili;16;Impianti sportivi;07/04/2022
1413;1;9999999;11.298,16;11.298,16;ASFALTI BARIZZA SNC;Z643488C09;SALDO Fatt.n. FPA 6/22  del 08/03/2022  I° SAL FINALE- INTERVENTI DI SISTEMAZIONE TERRENI NELLE AREE CONTERMINI ALLA NUOVA PISTA CICLO-PEDONALE LUNGO VIA NOALESE;05/04/2022;8558;0;1140;2;Spese in conto capitale;2;Investimenti fissi lordi e acquisto di terreni;1;Beni materiali;9;Beni immobili;12;Infrastrutture stradali;07/04/2022
1414;1;9999999;20.951,22;20.951,22;BASSO SAS DI BASSO SANDRO;ZA4332CC89;SALDO Fatt.n. 22  del 28/02/2022 I SAL FINALE LAVORI MESSA IN SICUREZZA CENTRO ABITATO SANTA MARIA DI SALA;05/04/2022;8692;0;1275;2;Spese in conto capitale;2;Investimenti fissi lordi e acquisto di terreni;1;Beni materiali;9;Beni immobili;12;Infrastrutture stradali;07/04/2022
1415;1;9999999;1.560,00;1.560,00;GOBBATO AMBRA MARIA;Z5133033F5;SALDO Fatt.n. 1PA  del 07/03/2022 PROGETTO MESSA IN SICUREZZA VIABILITA CENTRO S.MARIA DI SALA -1^INTERVENTO ABBATTIMENTO BARRIERE ARCHITTETONICHE;05/04/2022;8692;0;1275;2;Spese in conto capitale;2;Investimenti fissi lordi e acquisto di terreni;1;Beni materiali;9;Beni immobili;12;Infrastrutture stradali;07/04/2022
1416;1;9999999;808,42;808,42;COOP.SOCIALE LIBERTA' ONLUS;Z05313C21F;SALDO Fatt.n. 187  del 28/02/2022 FEBBRAIO 2022  - SERVIZIO DI PULIZIA E SANIFICAZIONE UFFICI COMUNALI;05/04/2022;142;0;358;1;Spese correnti;3;Acquisto di beni e servizi;2;Acquisto di servizi;13;Servizi ausiliari per il funzionamento dell'ente;2;Servizi di pulizia e lavanderia;07/04/2022
1417;1;9999999;951,6;951,6;STUDIO INTERDONATO & ASSOCIATI;Z3D2CC4EE2;SALDO Fatt.n. 134  del 09/03/2022 DIFESA IN GIUDIZIO AVANTI LA COMMISSIONE TRIBUTARIA PROVINCIALE DI VENEZIA AVVERSO AVVISI ACCERTAMENTO IMU/TASI -CAGNIN S.;05/04/2022;340;0;25;1;Spese correnti;3;Acquisto di beni e servizi;2;Acquisto di servizi;11;Prestazioni professionali e specialistiche;6;Patrocinio legale;12/04/2022
1418;1;9999999;500;500;STUDIO INTERDONATO & ASSOCIATI;ZBF24E3998;SALDO Fatt.n. 132  del 09/03/2022 PROPOSIZIONE APPELLO AVVERSO SENTENZA N. 505/2018 DELLA COMMISSIONE TRIBUTARIA DI VENEZIA -CARRARO M. ANNI 2010 E 2011;05/04/2022;340;0;953;1;Spese correnti;3;Acquisto di beni e servizi;2;Acquisto di servizi;11;Prestazioni professionali e specialistiche;6;Patrocinio legale;12/04/2022
1419;1;9999999;60;60;INTERAZIONE SRL;ZF635656D6;SALDO Fatt.n. 81/03  del 18/03/2022  PARTECIPAZIONE AL WEBINAR PRIMA GIORNATA DI FORMAZIONE FISCALE DEL 02.03.2022 SETTORE ECONOMICO;05/04/2022;833;0;211;1;Spese correnti;3;Acquisto di beni e servizi;2;Acquisto di servizi;4;Acquisto di servizi per formazione e addestramento del personale dell'ente;999;Acquisto di servizi per altre spese per formazione e addestramento n.a.c.;12/04/2022
1420;1;9999999;150;150;OMESSO NOMINATIVO NEL RISPETTO DELLA NORMATIVA SULLA PROTEZIONE DATI PERSONALI; ;APRILE 2022 AFFIDO FAMILIARE;05/04/2022;3757;50;225;1;Spese correnti;4;Trasferimenti correnti;2;Trasferimenti correnti a Famiglie;2;Interventi assistenziali;999;Altri assegni e sussidi assistenziali;12/04/2022
1421;1;9999999;1.000,00;1.000,00;OMESSO NOMINATIVO NEL RISPETTO DELLA NORMATIVA SULLA PROTEZIONE DATI PERSONALI; ;APRILE 2022 CONTRIBUTO A FAVORE DI UTENTE DISABILE A SOSTEGNO PROGETTO DI DOMICILIARIETA;05/04/2022;4157;0;328;1;Spese correnti;4;Trasferimenti correnti;2;Trasferimenti correnti a Famiglie;2;Interventi assistenziali;999;Altri assegni e sussidi assistenziali;12/04/2022
1422;1;9999999;115;115;OMESSO NOMINATIVO NEL RISPETTO DELLA NORMATIVA SULLA PROTEZIONE DATI PERSONALI; ;MARZO 2022 COMPETENZE TIROCINIO INSERIMENTO LAVORATIVO;05/04/2022;4157;0;355;1;Spese correnti;4;Trasferimenti correnti;2;Trasferimenti correnti a Famiglie;2;Interventi assistenziali;999;Altri assegni e sussidi assistenziali;12/04/2022
1423;1;9999999;8.320,00;8.320,00;ANDREATTA MARCO;Z4E352E050;SALDO Fatt.n. FPA 1/22  del 16/03/2022 PROGETTO REALIZZAZIONE DI NUOVO POLO CULTURALE BIBLIOTECA E SOCILAE NEL CAPOLUOGO-  PROGETTO PNRR;07/04/2022;540;0;155;1;Spese correnti;3;Acquisto di beni e servizi;2;Acquisto di servizi;11;Prestazioni professionali e specialistiche;999;Altre prestazioni professionali e specialistiche n.a.c.;12/04/2022
1424;1;9999999;490,44;490,44;ASSA ABLOY ENTRANCE SYSTEMS ITALY SRL;Z14350AD94;SALDO Fatt.n. 000018/PA  del 14/03/2022 CONTRATTO DI MANUTENZIONE PORTE AUTOMATICHE SCORREVOLI SEDE MUNICIPALE ANNO 2022;07/04/2022;548;0;132;1;Spese correnti;3;Acquisto di beni e servizi;2;Acquisto di servizi;9;Manutenzione ordinaria e riparazioni;4;Manutenzione ordinaria e riparazioni di impianti e macchinari;12/04/2022
1425;1;9999999;784,9;784,9;KYOCERA DOCUMENT SOLUTIONS ITALIA SPA;ZB93086395;SALDO Fatt.n. 1010750565  del 16/03/2022 FOTOCOPIATRICI 32 - LOTTO 5 - 60 MESI - CANONE PERIODO DAL  13.12.2021 AL 12.03.2022;07/04/2022;748;0;106;1;Spese correnti;3;Acquisto di beni e servizi;2;Acquisto di servizi;19;Servizi informatici e di telecomunicazioni;7;Servizi di gestione documentale;12/04/2022
1426;1;9999999;270,41;270,41;KYOCERA DOCUMENT SOLUTIONS ITALIA SPA;Z202CF11D4;SALDO Fatt.n. 1010751769  del 17/03/2022 FOTOCOPIATRICI 31 - LOTTO 3 - 60 MESI CANONE DAL 18/12/2021 AL 17/03/2022;07/04/2022;748;0;450;1;Spese correnti;3;Acquisto di beni e servizi;2;Acquisto di servizi;19;Servizi informatici e di telecomunicazioni;9;Servizi per le postazioni di lavoro e relativa manutenzione;12/04/2022
1427;1;9999999;21.533,00;21.533,00;HALLEY VENETO SRL;Z1E3500D84;SALDO Fatt.n. 1/220728  del 18/03/2022 CANONE DI MANTUTENZIONE SOFTWARE , ASSISTENZA IMMEDIA , CANONE MY NOTICE, CANONE MY CALENDAR, MANUTENZIONE SOFTWARE APPLICATIVO E GOVERNMENT , SERVIZIO  E-GOVERNMENT, SERVIZIO  VAOL, RICONCILIAZIONE  PAGOPA E GE;07/04/2022;748;0;125;1;Spese correnti;3;Acquisto di beni e servizi;2;Acquisto di servizi;19;Servizi informatici e di telecomunicazioni;1;Gestione e manutenzione applicazioni;12/04/2022
1428;1;9999999;483,12;483,12;SOLUZIONI OPENSOURCE M3 SNC;Z853500ECE;SALDO Fatt.n. 118  del 21/03/2022 SERVIZIO DI MANUTENZIONE DEL SERVER DI CONDIVISIONE DOCUMENTALE;07/04/2022;748;0;128;1;Spese correnti;3;Acquisto di beni e servizi;2;Acquisto di servizi;19;Servizi informatici e di telecomunicazioni;5;Servizi per i sistemi e relativa manutenzione;12/04/2022
1429;1;9999999;402;402;S.C.S.DI VALTER VETTORELLO;ZE93500F49;SALDO Fatt.n. FPA 7/22  del 31/03/2022 CANONE  ASSISTENZA TECNICA E MANUTENZIONE  PROGRAMMA PRISMA ANNO 2022;07/04/2022;748;0;130;1;Spese correnti;3;Acquisto di beni e servizi;2;Acquisto di servizi;19;Servizi informatici e di telecomunicazioni;1;Gestione e manutenzione applicazioni;12/04/2022
1430;1;9999999;1.220,00;1.220,00;SYSTEMDOC SRL;Z793575080;SALDO Fatt.n. 8-PA  del 08/03/2022 RICARICA CREDITI SERVIZIO DICO;07/04/2022;748;0;230;1;Spese correnti;3;Acquisto di beni e servizi;2;Acquisto di servizi;19;Servizi informatici e di telecomunicazioni;1;Gestione e manutenzione applicazioni;12/04/2022
1431;1;9999999;145,49;145,49;MG SAS DI MANIGHETTI KATIA, ALBERTO E C.;Z95336499F;SALDO Fatt.n. 1I-328  del 17/03/2022 FORNITURA N. 25 RISME CARTA BIANCA A3 GR.80;07/04/2022;1121;6;898;1;Spese correnti;3;Acquisto di beni e servizi;1;Acquisto di beni;2;Altri beni di consumo;1;Carta, cancelleria e stampati;12/04/2022
1432;1;9999999;31,48;31,48;MEB SRL;Z87350143F;SALDO Fatt.n. 010852  del 29/03/2022 MATERIALE ELETTRICO PER MANUTENZIONI;07/04/2022;3538;0;120;1;Spese correnti;3;Acquisto di beni e servizi;2;Acquisto di servizi;9;Manutenzione ordinaria e riparazioni;4;Manutenzione ordinaria e riparazioni di impianti e macchinari;12/04/2022
1433;1;9999999;3.809,43;3.809,43;ARTEA  SNC DI LION & SALVIATO;90182921FD;SALDO Fatt.n. 05-2022/PA  del 15/03/2022 OPERAZIONI EFFETTUATE NEI CIMITERI DEL COMUNE DI SANTA MARIA DI SALA NEL MESE DI GENNAIO 2022;07/04/2022;4438;0;1152;1;Spese correnti;3;Acquisto di beni e servizi;2;Acquisto di servizi;9;Manutenzione ordinaria e riparazioni;8;Manutenzione ordinaria e riparazioni di beni immobili;12/04/2022
1434;1;9999999;2.644,56;2.644,56;ARTEA  SNC DI LION & SALVIATO;90182921FD;SALDO Fatt.n. 06-2022/PA  del 15/03/2022 OPERAZIONI EFFETTUATE NEI CIMITERI DEL COMUNE DI SANTA MARIA DI SALA NEL MESE DI FEBBRAIO 2022.;07/04/2022;4438;0;1152;1;Spese correnti;3;Acquisto di beni e servizi;2;Acquisto di servizi;9;Manutenzione ordinaria e riparazioni;8;Manutenzione ordinaria e riparazioni di beni immobili;12/04/2022
1435;1;9999999;21.137,45;21.137,45;MASIERO CRISTIAN IMPRESA INDIVIDUALE;Z4532EC302;SALDO Fatt.n. 1/PA  del 15/03/2022 INTERVENTI STRAORDINARI DI RIPRISTINO INFRASTRUTTURE STRADALI E ADEGUAMENTO NORMATIVO STRADE COMUNALI  ANNO 2021;07/04/2022;8503;0;729;2;Spese in conto capitale;2;Investimenti fissi lordi e acquisto di terreni;1;Beni materiali;9;Beni immobili;12;Infrastrutture stradali;12/04/2022
1437;1;9999999;250;250;OMESSO NOMINATIVO NEL RISPETTO DELLA NORMATIVA SULLA PROTEZIONE DATI PERSONALI; ;PROGETTO RIA - MESE DI GENNAIO 2022;07/04/2022;3957;54;373;1;Spese correnti;4;Trasferimenti correnti;2;Trasferimenti correnti a Famiglie;5;Altri trasferimenti a famiglie;999;Altri trasferimenti a famiglie n.a.c.;19/04/2022
1438;1;9999999;250;250;OMESSO NOMINATIVO NEL RISPETTO DELLA NORMATIVA SULLA PROTEZIONE DATI PERSONALI; ;PROGETTO RIA - FEBBRAIO 2022;07/04/2022;3957;54;373;1;Spese correnti;4;Trasferimenti correnti;2;Trasferimenti correnti a Famiglie;5;Altri trasferimenti a famiglie;999;Altri trasferimenti a famiglie n.a.c.;19/04/2022
1439;1;9999999;250;250;OMESSO NOMINATIVO NEL RISPETTO DELLA NORMATIVA SULLA PROTEZIONE DATI PERSONALI; ;PROGETTO RIA - FEBBRAIO 2022;07/04/2022;3957;54;373;1;Spese correnti;4;Trasferimenti correnti;2;Trasferimenti correnti a Famiglie;5;Altri trasferimenti a famiglie;999;Altri trasferimenti a famiglie n.a.c.;12/04/2022
1440;1;9999999;250;250;OMESSO NOMINATIVO NEL RISPETTO DELLA NORMATIVA SULLA PROTEZIONE DATI PERSONALI; ;PROGETTO RIA - FEBBRAIO 2022;07/04/2022;3957;54;373;1;Spese correnti;4;Trasferimenti correnti;2;Trasferimenti correnti a Famiglie;5;Altri trasferimenti a famiglie;999;Altri trasferimenti a famiglie n.a.c.;02/05/2022
1441;1;9999999;250;250;OMESSO NOMINATIVO NEL RISPETTO DELLA NORMATIVA SULLA PROTEZIONE DATI PERSONALI; ;PROGETTO RIA - FEBBRAIO 2022;07/04/2022;3957;54;373;1;Spese correnti;4;Trasferimenti correnti;2;Trasferimenti correnti a Famiglie;5;Altri trasferimenti a famiglie;999;Altri trasferimenti a famiglie n.a.c.;12/04/2022
1442;1;9999999;150;150;OMESSO NOMINATIVO NEL RISPETTO DELLA NORMATIVA SULLA PROTEZIONE DATI PERSONALI; ;APRILE 2022 - AFFIDAMENTO FAMILIARE.;07/04/2022;3757;50;282;1;Spese correnti;4;Trasferimenti correnti;2;Trasferimenti correnti a Famiglie;2;Interventi assistenziali;999;Altri assegni e sussidi assistenziali;12/04/2022
1443;1;9999999;720;720;OMESSO NOMINATIVO NEL RISPETTO DELLA NORMATIVA SULLA PROTEZIONE DATI PERSONALI; ;ARRETRATI CONTRIBUTO ICD  B  - 2 SEMESTRE 2021;07/04/2022;3957;50;268;1;Spese correnti;4;Trasferimenti correnti;2;Trasferimenti correnti a Famiglie;2;Interventi assistenziali;999;Altri assegni e sussidi assistenziali;12/04/2022
1447;1;9999999;134,7;134,7;OMESSO NOMINATIVO NEL RISPETTO DELLA NORMATIVA SULLA PROTEZIONE DATI PERSONALI; ;riproposizione mandato non andato a buon fine LIQUIDAZIONE E PAGAMENTO CONTRIBUTO REGIONALE BUONO LIBRI A.S. 2021/22;11/04/2022;1357;50;333;1;Spese correnti;4;Trasferimenti correnti;2;Trasferimenti correnti a Famiglie;5;Altri trasferimenti a famiglie;999;Altri trasferimenti a famiglie n.a.c.;14/04/2022
1448;1;9999999;791,94;791,94;AGENZIA DELLE ENTRATE - IVA; ;LIQUIDAZIONE IVA COMMERCIALE MESE DI MARZO 2022;11/04/2022;291;0;392;1;Spese correnti;10;Altre spese correnti;3;Versamenti IVA a debito;1;Versamenti IVA a debito per le gestioni commerciali;1;Versamenti IVA a debito per le gestioni commerciali;19/04/2022
1449;1;9999999;-54,14;104,66;V.E.R.I.T.A.S. SPA; ;SALDO Fatt.n. 600006408496  del 14/03/2022 PERIODO  03.07.2021-28.02.2022 - NOTA DI ACCREDITO PER CONGUAGLIO CONSUMI;11/04/2022;1334;30;129;1;Spese correnti;3;Acquisto di beni e servizi;2;Acquisto di servizi;5;Utenze e canoni;5;Acqua;14/04/2022
1449;2;9999999;-25,5;104,66;V.E.R.I.T.A.S. SPA; ;SALDO Fatt.n. 600006408490  del 14/03/2022 PERIODO 02.07.2021- 28.02.2022 NOTA DI ACCREDITO PER CONGUAGLIO CONSUMI;11/04/2022;1334;30;129;1;Spese correnti;3;Acquisto di beni e servizi;2;Acquisto di servizi;5;Utenze e canoni;5;Acqua;14/04/2022
1449;3;9999999;-25,02;104,66;V.E.R.I.T.A.S. SPA; ;SALDO Fatt.n. 600006408491  del 14/03/2022 PERIODO  02.07.2021-28.02.2022 - NOTA DI ACCREDITO PER CONGUAGLIO CONSUMI;11/04/2022;1334;30;129;1;Spese correnti;3;Acquisto di beni e servizi;2;Acquisto di servizi;5;Utenze e canoni;5;Acqua;14/04/2022
1449;4;9999999;209,32;104,66;V.E.R.I.T.A.S. SPA; ;SALDO Fatt.n. 600006408497  del 14/03/2022 PERIODO 03.07.2021-28.02.2022 - ANTINCENDIO SCUOLA MEDIA SMS;11/04/2022;1334;30;129;1;Spese correnti;3;Acquisto di beni e servizi;2;Acquisto di servizi;5;Utenze e canoni;5;Acqua;14/04/2022
1450;1;9999999;-27,58;72,94;V.E.R.I.T.A.S. SPA; ;SALDO Fatt.n. 600006408498  del 14/03/2022 PERIODO  03.07.2021-28.02.2022 - NOTA DI ACCREDITO PER CONGUAGLIO CONSUMI;11/04/2022;1334;30;129;1;Spese correnti;3;Acquisto di beni e servizi;2;Acquisto di servizi;5;Utenze e canoni;5;Acqua;14/04/2022
1450;2;9999999;100,52;72,94;V.E.R.I.T.A.S. SPA; ;SALDO Fatt.n. 600006408489  del 14/03/2022 PERIODO 08.07.2021-28.02.2022 - CONSUMI SC. ELEM. CALTANA;11/04/2022;1334;30;129;1;Spese correnti;3;Acquisto di beni e servizi;2;Acquisto di servizi;5;Utenze e canoni;5;Acqua;14/04/2022
1451;1;9999999;-105,08;40,47;V.E.R.I.T.A.S. SPA; ;SALDO Fatt.n. 600006408493  del 14/03/2022 PERIODO  02.07.2021-28.02.2022 - NOTA DI ACCREDITO PER CONGUAGLIO CONSUMI;11/04/2022;1334;30;129;1;Spese correnti;3;Acquisto di beni e servizi;2;Acquisto di servizi;5;Utenze e canoni;5;Acqua;14/04/2022
1451;2;9999999;145,55;40,47;V.E.R.I.T.A.S. SPA; ;SALDO Fatt.n. 600006408494  del 14/03/2022 PERIODO 09.07.2021-28.02.2022 - CONSUMI MERCATO CALTANA;11/04/2022;1334;30;129;1;Spese correnti;3;Acquisto di beni e servizi;2;Acquisto di servizi;5;Utenze e canoni;5;Acqua;14/04/2022
1452;1;9999999;-48,51;66,86;V.E.R.I.T.A.S. SPA; ;SALDO Fatt.n. 600006408506  del 14/03/2022 PERIODO  26.01.2021-28.02.2022 - NOTA DI ACCREDITO PER CONGUAGLIO CONSUMI;11/04/2022;1334;30;129;1;Spese correnti;3;Acquisto di beni e servizi;2;Acquisto di servizi;5;Utenze e canoni;5;Acqua;14/04/2022
1452;2;9999999;-1,77;66,86;V.E.R.I.T.A.S. SPA; ;SALDO Fatt.n. 600006408515  del 14/03/2022 PERIODO  09.07.2021-28.02.2022 - NOTA DI ACCREDITO PER CONGUAGLIO CONSUMI;11/04/2022;1334;30;129;1;Spese correnti;3;Acquisto di beni e servizi;2;Acquisto di servizi;5;Utenze e canoni;5;Acqua;14/04/2022
1452;3;9999999;117,14;66,86;V.E.R.I.T.A.S. SPA; ;SALDO Fatt.n. 600006408525  del 14/03/2022 PERIODO 02.07.2021-28.02.2022 - CONSUMI PER MANIFESTAZIONI SMS;11/04/2022;1334;30;129;1;Spese correnti;3;Acquisto di beni e servizi;2;Acquisto di servizi;5;Utenze e canoni;5;Acqua;14/04/2022
1453;1;9999999;-49,37;36,1;V.E.R.I.T.A.S. SPA; ;SALDO Fatt.n. 600006408510  del 14/03/2022 PERIODO  08.07.2021-28.02.2022 - NOTA DI ACCREDITO PER CONGUAGLIO CONSUMI;11/04/2022;1334;30;129;1;Spese correnti;3;Acquisto di beni e servizi;2;Acquisto di servizi;5;Utenze e canoni;5;Acqua;14/04/2022
1453;2;9999999;-44,91;36,1;V.E.R.I.T.A.S. SPA; ;SALDO Fatt.n. 600006408513  del 14/03/2022 PERIODO  02.07.2021-28.02.2022 - NOTA DI ACCREDITO PER CONGUAGLIO CONSUMI;11/04/2022;1334;30;129;1;Spese correnti;3;Acquisto di beni e servizi;2;Acquisto di servizi;5;Utenze e canoni;5;Acqua;14/04/2022
1453;3;9999999;130,38;36,1;V.E.R.I.T.A.S. SPA; ;SALDO Fatt.n. 600006408495  del 14/03/2022 PERIODO 01.01.2022-28.02.2022 - CONSUMI SEDE MUNICIPALE;11/04/2022;1334;30;129;1;Spese correnti;3;Acquisto di beni e servizi;2;Acquisto di servizi;5;Utenze e canoni;5;Acqua;14/04/2022
1454;1;9999999;10,65;210,58;V.E.R.I.T.A.S. SPA; ;SALDO Fatt.n. 600006408517  del 14/03/2022 PERIODO 14.07.2021-28.02.2022 - CONSUMI PER MANIFESTAZIONI CALTANA;11/04/2022;1334;30;129;1;Spese correnti;3;Acquisto di beni e servizi;2;Acquisto di servizi;5;Utenze e canoni;5;Acqua;14/04/2022
1454;2;9999999;11,1;210,58;V.E.R.I.T.A.S. SPA; ;SALDO Fatt.n. 600006408503  del 14/03/2022 PERIODO  02.07.2021-28.02.2022 - CONSUMI DISTRIBUTORE ACQUA CASELLE;11/04/2022;1334;30;129;1;Spese correnti;3;Acquisto di beni e servizi;2;Acquisto di servizi;5;Utenze e canoni;5;Acqua;14/04/2022
1454;3;9999999;45,33;210,58;V.E.R.I.T.A.S. SPA; ;SALDO Fatt.n. 600006408504  del 14/03/2022 PERIODO 01.01.2022-28.02.2022 - ANTINCENDIO PARCHEGGIO SMS;11/04/2022;1334;30;129;1;Spese correnti;3;Acquisto di beni e servizi;2;Acquisto di servizi;5;Utenze e canoni;5;Acqua;14/04/2022
1454;4;9999999;45,34;210,58;V.E.R.I.T.A.S. SPA; ;SALDO Fatt.n. 600006408516  del 14/03/2022 PERIODO 02.07.2021-28.02.2022 - ANTINCENDIO PARCHEGGIO STIGLIANO;11/04/2022;1334;30;129;1;Spese correnti;3;Acquisto di beni e servizi;2;Acquisto di servizi;5;Utenze e canoni;5;Acqua;14/04/2022
1454;5;9999999;98,16;210,58;V.E.R.I.T.A.S. SPA; ;SALDO Fatt.n. 600006408514  del 14/03/2022 PERIODO 13.07.2021-28.02.2022 - CONSUMI PIAZZA ACTV CALTANA;11/04/2022;1334;30;129;1;Spese correnti;3;Acquisto di beni e servizi;2;Acquisto di servizi;5;Utenze e canoni;5;Acqua;14/04/2022
1455;1;9999999;7,19;159,96;V.E.R.I.T.A.S. SPA; ;SALDO Fatt.n. 600006408536  del 14/03/2022 PERIODO 08.07.2021-28.02.2022 - CONSUMI FONTANA VERDE CASELLE;11/04/2022;1334;30;129;1;Spese correnti;3;Acquisto di beni e servizi;2;Acquisto di servizi;5;Utenze e canoni;5;Acqua;14/04/2022
1455;2;9999999;12,77;159,96;V.E.R.I.T.A.S. SPA; ;SALDO Fatt.n. 600006408532  del 14/03/2022 PERIODO 01.01.2022-28.02.2022 - CONSUMI PARCHEGGIO PRESSO C.C. PRISMA CASELLE;11/04/2022;1334;30;129;1;Spese correnti;3;Acquisto di beni e servizi;2;Acquisto di servizi;5;Utenze e canoni;5;Acqua;14/04/2022
1455;3;9999999;18,14;159,96;V.E.R.I.T.A.S. SPA; ;SALDO Fatt.n. 600006408533  del 14/03/2022 PERIODO 01.01.2022-28.02.2022  - CONSUMI PARCHEGGIO CASELLE;11/04/2022;1334;30;129;1;Spese correnti;3;Acquisto di beni e servizi;2;Acquisto di servizi;5;Utenze e canoni;5;Acqua;14/04/2022
1455;4;9999999;31,2;159,96;V.E.R.I.T.A.S. SPA; ;SALDO Fatt.n. 600006408535  del 14/03/2022 PERIODO 02.07.2021-28.02.2022 - CONSUMI PIAZZA CASELLE;11/04/2022;1334;30;129;1;Spese correnti;3;Acquisto di beni e servizi;2;Acquisto di servizi;5;Utenze e canoni;5;Acqua;14/04/2022
1455;5;9999999;45,33;159,96;V.E.R.I.T.A.S. SPA; ;SALDO Fatt.n. 600006408531  del 14/03/2022 PERIODO  01.01.2022-28.02.2022 - ANTINCENDIO PIAZZA BEVILACQUA;11/04/2022;1334;30;129;1;Spese correnti;3;Acquisto di beni e servizi;2;Acquisto di servizi;5;Utenze e canoni;5;Acqua;14/04/2022
1455;6;9999999;45,33;159,96;V.E.R.I.T.A.S. SPA; ;SALDO Fatt.n. 600006408534  del 14/03/2022 PERIODO 01.01.2022-28.02.2022 - ANTINCENDIO PARCHEGGIO CASELLE;11/04/2022;1334;30;129;1;Spese correnti;3;Acquisto di beni e servizi;2;Acquisto di servizi;5;Utenze e canoni;5;Acqua;14/04/2022
1456;1;9999999;9,94;236,59;V.E.R.I.T.A.S. SPA; ;SALDO Fatt.n. 600006408522  del 14/03/2022 PERIODO 07.07.2021-28.02.2022 - CONSUMI FONTANA VETERNIGO;11/04/2022;1334;30;129;1;Spese correnti;3;Acquisto di beni e servizi;2;Acquisto di servizi;5;Utenze e canoni;5;Acqua;14/04/2022
1456;2;9999999;45,33;236,59;V.E.R.I.T.A.S. SPA; ;SALDO Fatt.n. 600006408518  del 14/03/2022 PERIODO 01.01.2022-28.02.2022 - ANTINCENDIO Z.I. SMS;11/04/2022;1334;30;129;1;Spese correnti;3;Acquisto di beni e servizi;2;Acquisto di servizi;5;Utenze e canoni;5;Acqua;14/04/2022
1456;3;9999999;45,33;236,59;V.E.R.I.T.A.S. SPA; ;SALDO Fatt.n. 600006408519  del 14/03/2022 PERIODO 01.01.2022-28.02.2022 - ANTINCENDIO Z.I. SMS;11/04/2022;1334;30;129;1;Spese correnti;3;Acquisto di beni e servizi;2;Acquisto di servizi;5;Utenze e canoni;5;Acqua;14/04/2022
1456;4;9999999;45,33;236,59;V.E.R.I.T.A.S. SPA; ;SALDO Fatt.n. 600006408520  del 14/03/2022 PERIODO 01.01.2022-28.02.2022 - ANTINCENDIO PARCHEGGIO C.C. PRISMA CASELLE;11/04/2022;1334;30;129;1;Spese correnti;3;Acquisto di beni e servizi;2;Acquisto di servizi;5;Utenze e canoni;5;Acqua;14/04/2022
1456;5;9999999;45,33;236,59;V.E.R.I.T.A.S. SPA; ;SALDO Fatt.n. 600006408521  del 14/03/2022 PERIODO 01.01.2022-28.02.2022 - ANTINCENDIO STRADA PRESSO ALLOGGIO GUIOTTO;11/04/2022;1334;30;129;1;Spese correnti;3;Acquisto di beni e servizi;2;Acquisto di servizi;5;Utenze e canoni;5;Acqua;14/04/2022
1456;6;9999999;45,33;236,59;V.E.R.I.T.A.S. SPA; ;SALDO Fatt.n. 600006408524  del 14/03/2022 PERIODO 01.01.2022-28.02.2022 - ANTINCENDIO PER MANIFESTAZIONI SMS;11/04/2022;1334;30;129;1;Spese correnti;3;Acquisto di beni e servizi;2;Acquisto di servizi;5;Utenze e canoni;5;Acqua;14/04/2022
1457;1;9999999;12,39;30,9;V.E.R.I.T.A.S. SPA; ;SALDO Fatt.n. 600006408512  del 14/03/2022 PERIODO 09.07.2021-28.02.2022 - CONSUMI CIMITERO DI CASELLE;11/04/2022;1334;30;129;1;Spese correnti;3;Acquisto di beni e servizi;2;Acquisto di servizi;5;Utenze e canoni;5;Acqua;14/04/2022
1457;2;9999999;18,51;30,9;V.E.R.I.T.A.S. SPA; ;SALDO Fatt.n. 600006408511  del 14/03/2022 PERIODO 02.07.2021-28.02.2022 - CONSUMI CIMITERO S.ANGELO;11/04/2022;1334;30;129;1;Spese correnti;3;Acquisto di beni e servizi;2;Acquisto di servizi;5;Utenze e canoni;5;Acqua;14/04/2022
1458;1;9999999;45,34;45,34;V.E.R.I.T.A.S. SPA; ;SALDO Fatt.n. 600006408499  del 14/03/2022 PERIODO 08.07.2021-28.02.2022 - ANTINCENDIO SC. ELEM. CALTANA;11/04/2022;1334;30;129;1;Spese correnti;3;Acquisto di beni e servizi;2;Acquisto di servizi;5;Utenze e canoni;5;Acqua;14/04/2022
1459;1;9999999;22,67;22,67;V.E.R.I.T.A.S. SPA; ;ACCONTO Fatt.n. 600006408529  del 14/03/2022 PERIODO 09.07.2021 - 28.02.2022 - ANTINCENDIO PALESTRA DI CALTANA;11/04/2022;1334;30;129;1;Spese correnti;3;Acquisto di beni e servizi;2;Acquisto di servizi;5;Utenze e canoni;5;Acqua;14/04/2022
1460;1;9999999;41,22;41,22;V.E.R.I.T.A.S. SPA; ;ACCONTO Fatt.n. 600006408528  del 14/03/2022 PERIODO  09.07.2021-28.02.2022 - CONSUMI PALESTRA CALTANA;11/04/2022;1334;30;129;1;Spese correnti;3;Acquisto di beni e servizi;2;Acquisto di servizi;5;Utenze e canoni;5;Acqua;14/04/2022
1461;1;9999999;12,5;12,5;V.E.R.I.T.A.S. SPA; ;ACCONTO Fatt.n. 600006408501  del 14/03/2022 PERIODO 16.01.2021-28.02.2022 - ANTINCENDIO SC. ELEM - PALESTRA VETERNIGO;11/04/2022;1334;30;129;1;Spese correnti;3;Acquisto di beni e servizi;2;Acquisto di servizi;5;Utenze e canoni;5;Acqua;14/04/2022
1462;1;9999999;20,35;20,35;V.E.R.I.T.A.S. SPA; ;ACCONTO Fatt.n. 600006408501  del 14/03/2022 PERIODO 16.01.2021-28.02.2022 - ANTINCENDIO SC. ELEM - PALESTRA VETERNIGO;11/04/2022;1334;30;129;1;Spese correnti;3;Acquisto di beni e servizi;2;Acquisto di servizi;5;Utenze e canoni;5;Acqua;14/04/2022
1463;1;9999999;3,92;3,92;V.E.R.I.T.A.S. SPA; ;ACCONTO Fatt.n. 600006408502  del 14/03/2022 PERIODO 02.07.2021-28.02.2022 ANTICENDIO SCUOLA ELEMENTARE -PALESTRA-ASILO S.ANGELO;11/04/2022;1334;30;129;1;Spese correnti;3;Acquisto di beni e servizi;2;Acquisto di servizi;5;Utenze e canoni;5;Acqua;14/04/2022
1464;1;9999999;-1.294,60;2.791,83;V.E.R.I.T.A.S. SPA; ;SALDO Fatt.n. 600006408492  del 14/03/2022 PERIODO  16.01.2021-28.02.2022 - NOTA DI ACCREDITO PER CONGUAGLIO CONSUMI;11/04/2022;1934;0;131;1;Spese correnti;3;Acquisto di beni e servizi;2;Acquisto di servizi;5;Utenze e canoni;5;Acqua;14/04/2022
1464;2;9999999;-471,23;2.791,83;V.E.R.I.T.A.S. SPA; ;SALDO Fatt.n. 610000023447  del 15/03/2022 PERIODO  05.03.2020-28.02.2022 - NOTA DI ACCREDITO PER CONGUAGLIO CONSUMI;11/04/2022;1934;0;131;1;Spese correnti;3;Acquisto di beni e servizi;2;Acquisto di servizi;5;Utenze e canoni;5;Acqua;14/04/2022
1464;3;9999999;-243,32;2.791,83;V.E.R.I.T.A.S. SPA; ;SALDO Fatt.n. 610000023448  del 15/03/2022 PERIODO 13.10.2021- 28.02.2022 - NOTA DI ACCREDITO PER CONGUAGLIO CONSUMI;11/04/2022;1934;0;131;1;Spese correnti;3;Acquisto di beni e servizi;2;Acquisto di servizi;5;Utenze e canoni;5;Acqua;14/04/2022
1464;4;9999999;-199,38;2.791,83;V.E.R.I.T.A.S. SPA; ;SALDO Fatt.n. 600006408508  del 14/03/2022 PERIODO 02.07.2021- 28.02.2022 NOTA DI ACCREDITO PER CONGUAGLIO CONSUMI;11/04/2022;1934;0;131;1;Spese correnti;3;Acquisto di beni e servizi;2;Acquisto di servizi;5;Utenze e canoni;5;Acqua;14/04/2022
1464;5;9999999;-159,65;2.791,83;V.E.R.I.T.A.S. SPA; ;SALDO Fatt.n. 600006408509  del 14/03/2022 PERIODO  09.07.2021-28.02.2022 - NOTA DI ACCREDITO PER CONGUAGLIO CONSUMI;11/04/2022;1934;0;131;1;Spese correnti;3;Acquisto di beni e servizi;2;Acquisto di servizi;5;Utenze e canoni;5;Acqua;14/04/2022
1464;6;9999999;5.160,01;2.791,83;V.E.R.I.T.A.S. SPA; ;SALDO Fatt.n. 600006408530  del 14/03/2022 PERIODO 03.07.2021-28.02.2022 - CONSUMI VILLA FARSETTI;11/04/2022;1934;0;131;1;Spese correnti;3;Acquisto di beni e servizi;2;Acquisto di servizi;5;Utenze e canoni;5;Acqua;14/04/2022
1465;1;9999999;22,67;22,67;V.E.R.I.T.A.S. SPA; ;SALDO Fatt.n. 600006408529  del 14/03/2022 PERIODO 09.07.2021 - 28.02.2022 - ANTINCENDIO PALESTRA DI CALTANA;11/04/2022;1934;0;131;1;Spese correnti;3;Acquisto di beni e servizi;2;Acquisto di servizi;5;Utenze e canoni;5;Acqua;14/04/2022
1466;1;9999999;41,22;41,22;V.E.R.I.T.A.S. SPA; ;SALDO Fatt.n. 600006408528  del 14/03/2022 PERIODO  09.07.2021-28.02.2022 - CONSUMI PALESTRA CALTANA;11/04/2022;1934;0;131;1;Spese correnti;3;Acquisto di beni e servizi;2;Acquisto di servizi;5;Utenze e canoni;5;Acqua;14/04/2022
1467;1;9999999;12,5;12,5;V.E.R.I.T.A.S. SPA; ;SALDO Fatt.n. 600006408501  del 14/03/2022 PERIODO 16.01.2021-28.02.2022 - ANTINCENDIO SC. ELEM - PALESTRA VETERNIGO;11/04/2022;1934;0;131;1;Spese correnti;3;Acquisto di beni e servizi;2;Acquisto di servizi;5;Utenze e canoni;5;Acqua;14/04/2022
1468;1;9999999;9;9;V.E.R.I.T.A.S. SPA; ;ACCONTO Fatt.n. 600006408500  del 14/03/2022 PERIODO 01.01.2022-28.02.2022 - ANTINCENDIO SC. ELEM - PALESTRA CASELLE;11/04/2022;1934;0;131;1;Spese correnti;3;Acquisto di beni e servizi;2;Acquisto di servizi;5;Utenze e canoni;5;Acqua;14/04/2022
1469;1;9999999;24,98;115,66;V.E.R.I.T.A.S. SPA; ;SALDO Fatt.n. 600006408527  del 14/03/2022 PERIODO  01.01.2022-28.02.2022 - CONSUMI ECOCENTRO;11/04/2022;3534;0;132;1;Spese correnti;3;Acquisto di beni e servizi;2;Acquisto di servizi;5;Utenze e canoni;5;Acqua;14/04/2022
1469;2;9999999;45,33;115,66;V.E.R.I.T.A.S. SPA; ;SALDO Fatt.n. 600006408526  del 14/03/2022 PERIODO 01.01.2022-28.02.2022 - ANTINCENDIO ECOCENTRO COMUNALE;11/04/2022;3534;0;132;1;Spese correnti;3;Acquisto di beni e servizi;2;Acquisto di servizi;5;Utenze e canoni;5;Acqua;14/04/2022
1469;3;9999999;45,35;115,66;V.E.R.I.T.A.S. SPA; ;SALDO Fatt.n. 600006408507  del 14/03/2022 PERIODO 26.01.2021-28.02.2022 - ANTINCENDIO MAGAZZINO COMUNALE;11/04/2022;3534;0;132;1;Spese correnti;3;Acquisto di beni e servizi;2;Acquisto di servizi;5;Utenze e canoni;5;Acqua;14/04/2022
1470;1;9999999;9;9;V.E.R.I.T.A.S. SPA; ;ACCONTO Fatt.n. 600006408500  del 14/03/2022 PERIODO 01.01.2022-28.02.2022 - ANTINCENDIO SC. ELEM - PALESTRA CASELLE;11/04/2022;3534;0;132;1;Spese correnti;3;Acquisto di beni e servizi;2;Acquisto di servizi;5;Utenze e canoni;5;Acqua;14/04/2022
1471;1;9999999;27,33;27,33;V.E.R.I.T.A.S. SPA; ;SALDO Fatt.n. 600006408500  del 14/03/2022 PERIODO 01.01.2022-28.02.2022 - ANTINCENDIO SC. ELEM - PALESTRA CASELLE;11/04/2022;3534;0;132;1;Spese correnti;3;Acquisto di beni e servizi;2;Acquisto di servizi;5;Utenze e canoni;5;Acqua;14/04/2022
1472;1;9999999;21,52;66,86;V.E.R.I.T.A.S. SPA; ;SALDO Fatt.n. 600006408523  del 14/03/2022 PERIODO 10.07.2021-28.02.2022 - CONSUMI VILLA FARSETTI;11/04/2022;4234;0;133;1;Spese correnti;3;Acquisto di beni e servizi;2;Acquisto di servizi;5;Utenze e canoni;5;Acqua;14/04/2022
1472;2;9999999;45,34;66,86;V.E.R.I.T.A.S. SPA; ;SALDO Fatt.n. 600006408505  del 14/03/2022 PERIODO 03.07.2021-28.02.2022 - ANTINCENDIO VILLA FARSETTI;11/04/2022;4234;0;133;1;Spese correnti;3;Acquisto di beni e servizi;2;Acquisto di servizi;5;Utenze e canoni;5;Acqua;14/04/2022
1473;1;9999999;23,42;23,42;V.E.R.I.T.A.S. SPA; ;ACCONTO Fatt.n. 600006408502  del 14/03/2022 PERIODO 02.07.2021-28.02.2022 ANTICENDIO SCUOLA ELEMENTARE -PALESTRA-ASILO S.ANGELO;11/04/2022;4234;0;133;1;Spese correnti;3;Acquisto di beni e servizi;2;Acquisto di servizi;5;Utenze e canoni;5;Acqua;14/04/2022
1474;1;9999999;9;9;V.E.R.I.T.A.S. SPA; ;ACCONTO Fatt.n. 600006408502  del 14/03/2022 PERIODO 02.07.2021-28.02.2022 ANTICENDIO SCUOLA ELEMENTARE -PALESTRA-ASILO S.ANGELO;11/04/2022;4434;0;134;1;Spese correnti;3;Acquisto di beni e servizi;2;Acquisto di servizi;5;Utenze e canoni;5;Acqua;14/04/2022
1475;1;9999999;9;9;V.E.R.I.T.A.S. SPA; ;SALDO Fatt.n. 600006408502  del 14/03/2022 PERIODO 02.07.2021-28.02.2022 ANTICENDIO SCUOLA ELEMENTARE -PALESTRA-ASILO S.ANGELO;11/04/2022;4434;0;134;1;Spese correnti;3;Acquisto di beni e servizi;2;Acquisto di servizi;5;Utenze e canoni;5;Acqua;14/04/2022
1476;1;9999999;250;250;OMESSO NOMINATIVO NEL RISPETTO DELLA NORMATIVA SULLA PROTEZIONE DATI PERSONALI; ;PROGETTO RIA - MARZO 2022;11/04/2022;3957;54;373;1;Spese correnti;4;Trasferimenti correnti;2;Trasferimenti correnti a Famiglie;5;Altri trasferimenti a famiglie;999;Altri trasferimenti a famiglie n.a.c.;19/04/2022
1477;1;9999999;250;250;OMESSO NOMINATIVO NEL RISPETTO DELLA NORMATIVA SULLA PROTEZIONE DATI PERSONALI; ;PROGETTO RIA - MARZO 2022;11/04/2022;3957;54;373;1;Spese correnti;4;Trasferimenti correnti;2;Trasferimenti correnti a Famiglie;5;Altri trasferimenti a famiglie;999;Altri trasferimenti a famiglie n.a.c.;14/04/2022
1478;1;9999999;250;250;OMESSO NOMINATIVO NEL RISPETTO DELLA NORMATIVA SULLA PROTEZIONE DATI PERSONALI; ;PROGETTO RIA - MARZO 2022;11/04/2022;3957;54;373;1;Spese correnti;4;Trasferimenti correnti;2;Trasferimenti correnti a Famiglie;5;Altri trasferimenti a famiglie;999;Altri trasferimenti a famiglie n.a.c.;14/04/2022
1479;1;9999999;250;250;OMESSO NOMINATIVO NEL RISPETTO DELLA NORMATIVA SULLA PROTEZIONE DATI PERSONALI; ;PROGETTO RIA - MARZO 2022;11/04/2022;3957;54;373;1;Spese correnti;4;Trasferimenti correnti;2;Trasferimenti correnti a Famiglie;5;Altri trasferimenti a famiglie;999;Altri trasferimenti a famiglie n.a.c.;02/05/2022
1480;1;9999999;250;250;OMESSO NOMINATIVO NEL RISPETTO DELLA NORMATIVA SULLA PROTEZIONE DATI PERSONALI; ;PROGETTO RIA - MARZO 2022;11/04/2022;3957;54;373;1;Spese correnti;4;Trasferimenti correnti;2;Trasferimenti correnti a Famiglie;5;Altri trasferimenti a famiglie;999;Altri trasferimenti a famiglie n.a.c.;22/04/2022
1481;1;9999999;32,33;32,33;C/C/P 15453301 SERVIZIO DI TESORERIA COM; ;SPESE GESTIONE CONTO CORRENTE POSTALE FEBBRAIO 2022;12/04/2022;146;0;382;1;Spese correnti;3;Acquisto di beni e servizi;2;Acquisto di servizi;17;Servizi finanziari;999;Spese per servizi finanziari n.a.c.;15/04/2022
1482;1;9999999;32,53;32,53;C/C/P 15453301 SERVIZIO DI TESORERIA COM; ;SPESE GESTIONE CONTO CORRENTE POSTALE MARZO 2022;12/04/2022;146;0;382;1;Spese correnti;3;Acquisto di beni e servizi;2;Acquisto di servizi;17;Servizi finanziari;999;Spese per servizi finanziari n.a.c.;15/04/2022
1483;1;9999999;1.239,00;1.239,00;VALEX SPA; ;LIQUIDAZIONE A DITTA VALEX RIMBORSO ASSENZE RETRIBUITE VICE SINDACO ARPI ALESSANDRO USUFRUITE NEI MESI DI GENNAIO E FEBBRAIO 2022.;12/04/2022;30;99;46;1;Spese correnti;3;Acquisto di beni e servizi;2;Acquisto di servizi;1;Organi e incarichi istituzionali dell'amministrazione;2;Organi istituzionali dell'amministrazione - Rimborsi;15/04/2022
1484;1;9999999;78,5;78,5;BARBATO BARBARA ECONOMO COMUNALE; ;Rimborso bollette;12/04/2022;121;6;136;1;Spese correnti;3;Acquisto di beni e servizi;1;Acquisto di beni;2;Altri beni di consumo;1;Carta, cancelleria e stampati;15/04/2022
1485;1;9999999;448,55;448,55;BARBATO BARBARA ECONOMO COMUNALE; ;Rimborso bollette;12/04/2022;1821;0;25;1;Spese correnti;3;Acquisto di beni e servizi;1;Acquisto di beni;2;Altri beni di consumo;999;Altri beni e materiali di consumo n.a.c.;15/04/2022
1486;1;9999999;24,03;24,03;C/C/P 1039683022 -RISCOSSIONE COATTIVA EX ICP DPA; ;SPESE GESTIONE MARZO 2022 CONTI CORRENTI POSTALI RISCOSSIONE COATTIVA CCP 001039683022;12/04/2022;146;0;382;1;Spese correnti;3;Acquisto di beni e servizi;2;Acquisto di servizi;17;Servizi finanziari;999;Spese per servizi finanziari n.a.c.;15/04/2022
1487;1;9999999;324,28;324,28;QUADIENT RENTAL ITALY SRL;ZDA34B864A;SALDO Fatt.n. 2021.6338  del 28/12/2021 CANONE NOLEGGIO ANNO 2022  AFFRANCATRICE  IS 280;12/04/2022;145;0;9;1;Spese correnti;3;Acquisto di beni e servizi;2;Acquisto di servizi;16;Servizi amministrativi;2;Spese postali;15/04/2022
1488;1;9999999;324,28;324,28;QUADIENT RENTAL ITALY SRL;Z7D300BC1F;SALDO Fatt.n. 2021.5279  del 28/10/2021 CANONE NOLEGGIO ANNO 2021  AFFRANCATRICE  IS 280;12/04/2022;145;0;372;1;Spese correnti;3;Acquisto di beni e servizi;2;Acquisto di servizi;16;Servizi amministrativi;2;Spese postali;15/04/2022
1489;1;9999999;5.978,00;5.978,00;FONDAZIONE FENICE ONLUS;Z6835846EB;SALDO Fatt.n. 6 FEP  del 21/03/2022 DIAGNOSI ENERGETICA E REDAZIONE APE INTERVENTO ED EFFICIENTAMENTO ENERGETICO SALA TEATRALE;12/04/2022;540;0;334;1;Spese correnti;3;Acquisto di beni e servizi;2;Acquisto di servizi;11;Prestazioni professionali e specialistiche;999;Altre prestazioni professionali e specialistiche n.a.c.;15/04/2022
1490;1;9999999;138,92;138,92;IDRONORD SRL;Z4B3500027;SALDO Fatt.n. 621  del 24/03/2022 MATERIALE EDILE PER MANUTENZIONI;12/04/2022;3538;0;117;1;Spese correnti;3;Acquisto di beni e servizi;2;Acquisto di servizi;9;Manutenzione ordinaria e riparazioni;8;Manutenzione ordinaria e riparazioni di beni immobili;15/04/2022
1491;1;9999999;1.070,72;1.070,72;E.N.P.A. ONLUS SEZ. DI MIRA; ;SALDO Fatt.n. 487/PA  del 24/03/2022 CUSTODIA CANI VAGANTI GENNAIO - FEBBRAIO 2022;12/04/2022;3659;0;5;1;Spese correnti;4;Trasferimenti correnti;4;Trasferimenti correnti a Istituzioni Sociali Private;1;Trasferimenti correnti a Istituzioni Sociali Private;1;Trasferimenti correnti a Istituzioni Sociali Private;15/04/2022
1492;1;9999999;17.935,02;17.935,02;TENDA DESIGNE SNC;Z7C343E16E;SALDO Fatt.n. 9  del 11/03/2022 INTERVENTI PER CONTRASTO DIFFUSIONE CONTAGIO COVID - REALIZZAZIONE SCHERMATURE SOLARI PRESSO PLESSO SCOLASTICO S.ANGELO;12/04/2022;7681;0;1019;2;Spese in conto capitale;2;Investimenti fissi lordi e acquisto di terreni;1;Beni materiali;9;Beni immobili;3;Fabbricati ad uso scolastico;15/04/2022
1493;1;9999999;450;450;LABS LABORATORIO SOLIDALE ONLUS; ;LIQUIDAZIONE E PAGAMENTO CONTRIBUTO ECONOMICO  PER LA MESSA A DISPOSIZIONE DI PERSONALE A COLLABORAZIONE DELLAREA SERVIZI CULTURALI.;12/04/2022;4059;0;358;1;Spese correnti;4;Trasferimenti correnti;4;Trasferimenti correnti a Istituzioni Sociali Private;1;Trasferimenti correnti a Istituzioni Sociali Private;1;Trasferimenti correnti a Istituzioni Sociali Private;15/04/2022
1494;1;9999999;150;150;ASILO INFANTILE F.T.CROVATO; ;EROGAZIONE CONTRIBUTI ALLE SCUOLE DEL TERRITORIO PER LA PARTECIPAZIONE AL CONCORSO APERTO A TUTTI I BAMBINI E RAGAZZI DI SANTA MARIA DI SALA IL BELLO DELLA SOLIDARIETA: AIUTARE CI PIACE!.;12/04/2022;1259;0;389;1;Spese correnti;4;Trasferimenti correnti;4;Trasferimenti correnti a Istituzioni Sociali Private;1;Trasferimenti correnti a Istituzioni Sociali Private;1;Trasferimenti correnti a Istituzioni Sociali Private;15/04/2022
1495;1;9999999;150;150;SCUOLA MATERNA MARIA BAMBINA; ;EROGAZIONE CONTRIBUTI ALLE SCUOLE DEL TERRITORIO PER LA PARTECIPAZIONE AL CONCORSO APERTO A TUTTI I BAMBINI E RAGAZZI DI SANTA MARIA DI SALA IL BELLO DELLA SOLIDARIETA: AIUTARE CI PIACE!.;12/04/2022;1259;0;390;1;Spese correnti;4;Trasferimenti correnti;4;Trasferimenti correnti a Istituzioni Sociali Private;1;Trasferimenti correnti a Istituzioni Sociali Private;1;Trasferimenti correnti a Istituzioni Sociali Private;15/04/2022
1496;1;9999999;600;600;IST.COMPR.STAT.F.E P.CORDENONS; ;EROGAZIONE CONTRIBUTI ALLE SCUOLE DEL TERRITORIO PER LA PARTECIPAZIONE AL CONCORSO APERTO A TUTTI I BAMBINI E RAGAZZI DI SANTA MARIA DI SALA IL BELLO DELLA SOLIDARIETA: AIUTARE CI PIACE!.;12/04/2022;1350;0;391;1;Spese correnti;4;Trasferimenti correnti;1;Trasferimenti correnti a Amministrazioni Pubbliche;1;Trasferimenti correnti a Amministrazioni Centrali;2;Trasferimenti correnti a Ministero dell'Istruzione - Istituzioni scolastiche;15/04/2022
1497;1;9999999;7.000,00;7.000,00;UNIONE GRATICOLATO GELSI SSDARL; ;ANNO 2022 ASSEGNAZIONE CONTRIBUTI ECONOMICI ALLE ASSOCIAZIONI SPORTIVE DEL TERRITORIO A SOSTEGNO DELLA RIPRESA DELLE ATTIVITA A SEGUITO DELLEPIDEMIA DA COVID;13/04/2022;1959;0;404;1;Spese correnti;4;Trasferimenti correnti;4;Trasferimenti correnti a Istituzioni Sociali Private;1;Trasferimenti correnti a Istituzioni Sociali Private;1;Trasferimenti correnti a Istituzioni Sociali Private;15/04/2022
1498;1;9999999;3.500,00;3.500,00;A.S.D. OLIMPIA SALESE; ;ANNO 2022 ASSEGNAZIONE DI CONTRIBUTI ECONOMICI ALLE ASSOCIAZIONI SPORTIVE DEL TERRITORIO A SOSTEGNO DELLA RIPRESA DELLE ATTIVIT A SEGUITO DELLEPIDEMIA DA COVID-19;13/04/2022;1959;0;405;1;Spese correnti;4;Trasferimenti correnti;4;Trasferimenti correnti a Istituzioni Sociali Private;1;Trasferimenti correnti a Istituzioni Sociali Private;1;Trasferimenti correnti a Istituzioni Sociali Private;15/04/2022
1499;1;9999999;3.500,00;3.500,00;UNIONE SPORTIVA SAN MARCO STIGLIANO A.S.D.; ;ANNO 2022 ASSEGNAZIONE DI CONTRIBUTI ECONOMICI ALLE ASSOCIAZIONI SPORTIVE DEL TERRITORIO A SOSTEGNO DELLA RIPRESA DELLE ATTIVIT A SEGUITO DELLEPIDEMIA DA COVID-19 -;13/04/2022;1959;0;406;1;Spese correnti;4;Trasferimenti correnti;4;Trasferimenti correnti a Istituzioni Sociali Private;1;Trasferimenti correnti a Istituzioni Sociali Private;1;Trasferimenti correnti a Istituzioni Sociali Private;15/04/2022
1500;1;9999999;1.500,00;1.500,00;A.S.D.CENTRO KARATE INTERSTILE; ;ANNO 2022 ASSEGNAZIONE DI CONTRIBUTI ECONOMICI ALLE ASSOCIAZIONI SPORTIVE DEL TERRITORIO A SOSTEGNO DELLA RIPRESA DELLE ATTIVIT A SEGUITO DELLEPIDEMIA DA COVID-19 -;13/04/2022;1959;0;407;1;Spese correnti;4;Trasferimenti correnti;4;Trasferimenti correnti a Istituzioni Sociali Private;1;Trasferimenti correnti a Istituzioni Sociali Private;1;Trasferimenti correnti a Istituzioni Sociali Private;15/04/2022
1501;1;9999999;2.500,00;2.500,00;G.S. VOLLEY SALESE A.S.D.; ;ANNO 2022 ASSEGNAZIONE DI CONTRIBUTI ECONOMICI ALLE ASSOCIAZIONI SPORTIVE DEL TERRITORIO A SOSTEGNO DELLA RIPRESA DELLE ATTIVIT A SEGUITO DELLEPIDEMIA DA COVID-19 -;13/04/2022;1959;0;408;1;Spese correnti;4;Trasferimenti correnti;4;Trasferimenti correnti a Istituzioni Sociali Private;1;Trasferimenti correnti a Istituzioni Sociali Private;1;Trasferimenti correnti a Istituzioni Sociali Private;15/04/2022
1502;1;9999999;2.500,00;2.500,00;G.S. S. ANGELO A.S.D.; ;ANNO 2022 ASSEGNAZIONE DI CONTRIBUTI ECONOMICI ALLE ASSOCIAZIONI SPORTIVE DEL TERRITORIO A SOSTEGNO DELLA RIPRESA DELLE ATTIVIT A SEGUITO DELLEPIDEMIA DA COVID-19 -;13/04/2022;1959;0;409;1;Spese correnti;4;Trasferimenti correnti;4;Trasferimenti correnti a Istituzioni Sociali Private;1;Trasferimenti correnti a Istituzioni Sociali Private;1;Trasferimenti correnti a Istituzioni Sociali Private;15/04/2022
1503;1;9999999;1.500,00;1.500,00;A.S.D. G.S. SAN MARCO STIGLIANO; ;ANNO 2022 ASSEGNAZIONE DI CONTRIBUTI ECONOMICI ALLE ASSOCIAZIONI SPORTIVE DEL TERRITORIO A SOSTEGNO DELLA RIPRESA DELLE ATTIVIT A SEGUITO DELLEPIDEMIA DA COVID-19 -;13/04/2022;1959;0;410;1;Spese correnti;4;Trasferimenti correnti;4;Trasferimenti correnti a Istituzioni Sociali Private;1;Trasferimenti correnti a Istituzioni Sociali Private;1;Trasferimenti correnti a Istituzioni Sociali Private;15/04/2022
1504;1;9999999;9.812,24;9.812,24;DIVERSI-AMMINISTRATORI COM.LI; ;STIPENDI MESE DI APRILE 22;15/04/2022;30;99;0;1;Spese correnti;3;Acquisto di beni e servizi;2;Acquisto di servizi;1;Organi e incarichi istituzionali dell'amministrazione;1;Organi istituzionali dell'amministrazione - Indennità;27/04/2022
1601;1;9999999;6.500,00;6.500,00;LABS LABORATORIO SOLIDALE ONLUS; ;PRIMO ACCONTO PROGETTI DI PUBBLICA UTILITA SOCIALE - (sfalcio erba villa farsetti e cimiteri - pulizia localiu e serv.igenici e cim.-puliza spazi comunali;15/04/2022;4059;10;413;1;Spese correnti;4;Trasferimenti correnti;4;Trasferimenti correnti a Istituzioni Sociali Private;1;Trasferimenti correnti a Istituzioni Sociali Private;1;Trasferimenti correnti a Istituzioni Sociali Private;20/04/2022
1602;1;9999999;5.354,54;5.354,54;STUDIO LEGALE ZAMBELLI E TASSETTO;Z2B1F9C691;ACCONTO Fatt.n. 105/2022/EL  del 21/03/2022 COMPENSI PRATICA COMUNE DI SANTA MARIA DI SALA/IMMOBILIARE AURORA CONTRORICORSO PER CASSAZIONE SENT. N. 1028/20017 DELLA CORTE D'APPELLO DI VENEZIA;19/04/2022;40;0;523;1;Spese correnti;3;Acquisto di beni e servizi;2;Acquisto di servizi;11;Prestazioni professionali e specialistiche;6;Patrocinio legale;21/04/2022
1603;1;9999999;5.175,23;5.175,23;STUDIO LEGALE ZAMBELLI E TASSETTO;Z2B1F9C691;SALDO Fatt.n. 105/2022/EL  del 21/03/2022 COMPENSI PRATICA COMUNE DI SANTA MARIA DI SALA/IMMOBILIARE AURORA CONTRORICORSO PER CASSAZIONE SENT. N. 1028/20017 DELLA CORTE DAPPELLO DI VENEZIA;19/04/2022;40;0;1435;1;Spese correnti;3;Acquisto di beni e servizi;2;Acquisto di servizi;11;Prestazioni professionali e specialistiche;6;Patrocinio legale;21/04/2022
1604;1;9999999;5.062,51;5.062,51;BACCAN VINCENZO;Z563478F39;SALDO Fatt.n. 29  del 26/03/2022 STESURA DEL PIANO DI CLASSIFICAZIONE ACUSTICA DEL TERRITORIO COMUNALE;19/04/2022;540;0;1119;1;Spese correnti;3;Acquisto di beni e servizi;2;Acquisto di servizi;11;Prestazioni professionali e specialistiche;999;Altre prestazioni professionali e specialistiche n.a.c.;21/04/2022
1605;1;9999999;5.162,11;5.162,11;STUDIO PROGETTAZIONI AGORA';Z2632A0A8F;SALDO Fatt.n. 16  del 21/03/2022 AFFIDAMENTO DI ATTIVITA DI SERVICE ESTERNO A SUPPORTO DELLE ATTIVIT DI PROGETTAZIONE DEL SETTORE TECNICO;19/04/2022;540;0;687;1;Spese correnti;3;Acquisto di beni e servizi;2;Acquisto di servizi;11;Prestazioni professionali e specialistiche;999;Altre prestazioni professionali e specialistiche n.a.c.;21/04/2022
1606;1;9999999;6.193,43;6.193,43;DANIELE LUCA - VIVAI PIANTE;Z402FA5ECF;SALDO Fatt.n. 37  del 27/03/2022 INTERVENTI DI MNAUTENZIONE SUL PATRIMONIO ARBOREO E AREE VERDI - SALDO LAVORI ESEGUITI;19/04/2022;2549;0;1237;1;Spese correnti;3;Acquisto di beni e servizi;2;Acquisto di servizi;99;Altri servizi;9;Acquisto di sevizi per verde e arredo urbano;21/04/2022
1607;1;9999999;2.288,00;2.288,00;GOBBATO AMBRA MARIA;Z582F2A1DE;SALDO Fatt.n. 2PA  del 28/03/2022 MESSA IN SICUREZZA CENTRO ABITATO SMS  - SECONDO STRALCIO - PRIMO INTERVENTO (PISTA CICLO PEDONALE VIA NOALESE) - DIREZIONE LAVORI 1 SAL;19/04/2022;8563;0;1015;2;Spese in conto capitale;2;Investimenti fissi lordi e acquisto di terreni;1;Beni materiali;9;Beni immobili;12;Infrastrutture stradali;21/04/2022
1608;1;9999999;127.072,00;127.072,00;COSTRUZIONI GENERALI BIASUZZI SRL;8810720427;ACCONTO Fatt.n. 9 PA  del 28/03/2022 REALIZZAZIONE DEL TRATTO N.1 DELLA PISTA CICLO-PEDONALE LUNGO VIA NOALESE-SR 515.CERTIFICATO DI PAGAMENTO N.1.;19/04/2022;8563;0;1362;2;Spese in conto capitale;2;Investimenti fissi lordi e acquisto di terreni;1;Beni materiali;9;Beni immobili;12;Infrastrutture stradali;21/04/2022
1609;1;9999999;165.458,49;165.458,49;COSTRUZIONI GENERALI BIASUZZI SRL;8810720427;SALDO Fatt.n. 9 PA  del 28/03/2022 REALIZZAZIONE DEL TRATTO N.1 DELLA PISTA CICLO-PEDONALE LUNGO VIA NOALESE-SR 515.CERTIFICATO DI PAGAMENTO N.1.;19/04/2022;8563;0;1362;2;Spese in conto capitale;2;Investimenti fissi lordi e acquisto di terreni;1;Beni materiali;9;Beni immobili;12;Infrastrutture stradali;21/04/2022
1610;1;9999999;278,17;278,17;ARIA SPA;Z723261797;ACCONTO Fatt.n. 1622004590  del 28/03/2022 UTILIZZO PIATTAFORMA DI EPROCUREMENT SINTEL;19/04/2022;549;0;689;1;Spese correnti;3;Acquisto di beni e servizi;2;Acquisto di servizi;99;Altri servizi;999;Altri servizi diversi n.a.c.;20/04/2022
1611;1;9999999;61,2;61,2;ARIA SPA;Z723261797;SALDO Fatt.n. 1622004590  del 28/03/2022 UTILIZZO PIATTAFORMA DI EPROCUREMENT SINTEL;19/04/2022;549;0;689;1;Spese correnti;3;Acquisto di beni e servizi;2;Acquisto di servizi;99;Altri servizi;999;Altri servizi diversi n.a.c.;27/04/2022
1612;1;9999999;101,79;101,79;ENI SPA DIVISIONE REFINING & MARKETING;Z0234B8009;ACCONTO Fatt.n. 29180801  del 28/02/2022 FEBBRAIO 2022 - FORNITURA METANO;20/04/2022;4121;0;8;1;Spese correnti;3;Acquisto di beni e servizi;1;Acquisto di beni;2;Altri beni di consumo;2;Carburanti, combustibili e lubrificanti;21/04/2022
1613;1;9999999;22,39;22,39;ENI SPA DIVISIONE REFINING & MARKETING;Z0234B8009;SALDO Fatt.n. 29180801  del 28/02/2022 FEBBRAIO 2022 - FORNITURA METANO;20/04/2022;4121;0;8;1;Spese correnti;3;Acquisto di beni e servizi;1;Acquisto di beni;2;Altri beni di consumo;2;Carburanti, combustibili e lubrificanti;27/04/2022
1614;1;9999999;1,29;5,81;BANCA MPS SPA; ;16520 COMUNE DI SANTA MARIA DI-COMMISSIONI DEL 03/02/2022 (P. 4 -R. del 04/02/2022);20/04/2022;146;0;418;1;Spese correnti;3;Acquisto di beni e servizi;2;Acquisto di servizi;17;Servizi finanziari;1;Commissioni per servizi finanziari;21/04/2022
1614;2;9999999;0,58;5,81;BANCA MPS SPA; ;16520 COMUNE DI SANTA MARIA DI-COMMISSIONI DEL 08/03/2022 (P. 6 -R. del 09/03/2022);20/04/2022;146;0;418;1;Spese correnti;3;Acquisto di beni e servizi;2;Acquisto di servizi;17;Servizi finanziari;1;Commissioni per servizi finanziari;21/04/2022
1614;3;9999999;0,09;5,81;BANCA MPS SPA; ;16520 COMUNE DI SANTA MARIA DI-COMMISSIONI DAL 11/03/2022 AL 13/03/2022 (P. 7 -R. del 14/03/2022);20/04/2022;146;0;418;1;Spese correnti;3;Acquisto di beni e servizi;2;Acquisto di servizi;17;Servizi finanziari;1;Commissioni per servizi finanziari;21/04/2022
1614;4;9999999;2,16;5,81;BANCA MPS SPA; ;COMUNE SANTA MARIA DI SALA-RIVERSAMENTO COMMISSIONI DA 16520.48 (P. 8 -R. del 18/03/2022);20/04/2022;146;0;418;1;Spese correnti;3;Acquisto di beni e servizi;2;Acquisto di servizi;17;Servizi finanziari;1;Commissioni per servizi finanziari;21/04/2022
1614;5;9999999;0,44;5,81;BANCA MPS SPA; ;16520 COMUNE DI SANTA MARIA DI-COMMISSIONI DEL 05/04/2022 (P. 11 -R. del 06/04/2022);20/04/2022;146;0;418;1;Spese correnti;3;Acquisto di beni e servizi;2;Acquisto di servizi;17;Servizi finanziari;1;Commissioni per servizi finanziari;21/04/2022
1614;6;9999999;1,25;5,81;BANCA MPS SPA; ;16520 COMUNE DI SANTA MARIA DI-COMMISSIONI DAL 08/04/2022 AL 10/04/2022 (P. 12 -R. del 11/04/2022);20/04/2022;146;0;418;1;Spese correnti;3;Acquisto di beni e servizi;2;Acquisto di servizi;17;Servizi finanziari;1;Commissioni per servizi finanziari;21/04/2022
1622;1;9999999;500;500;OMESSO NOMINATIVO NEL RISPETTO DELLA NORMATIVA SULLA PROTEZIONE DATI PERSONALI; ;APRILE 2022 CONTRIBUTO MINIMO VITALE;20/04/2022;4157;0;393;1;Spese correnti;4;Trasferimenti correnti;2;Trasferimenti correnti a Famiglie;2;Interventi assistenziali;999;Altri assegni e sussidi assistenziali;03/05/2022
1623;1;9999999;150;150;OMESSO NOMINATIVO NEL RISPETTO DELLA NORMATIVA SULLA PROTEZIONE DATI PERSONALI; ;APRILE 2022 CONTRIBUTO MINIMO VITALE;20/04/2022;4157;0;359;1;Spese correnti;4;Trasferimenti correnti;2;Trasferimenti correnti a Famiglie;2;Interventi assistenziali;999;Altri assegni e sussidi assistenziali;27/04/2022
1624;1;9999999;945;945;OMESSO NOMINATIVO NEL RISPETTO DELLA NORMATIVA SULLA PROTEZIONE DATI PERSONALI; ;APRILE 2022 CONTRIBUTO MINIMO VITALE;20/04/2022;4157;0;398;1;Spese correnti;4;Trasferimenti correnti;2;Trasferimenti correnti a Famiglie;2;Interventi assistenziali;999;Altri assegni e sussidi assistenziali;05/05/2022
1625;1;9999999;150;150;OMESSO NOMINATIVO NEL RISPETTO DELLA NORMATIVA SULLA PROTEZIONE DATI PERSONALI; ;APRILE 2022 MINIMO VITALE;20/04/2022;4157;0;190;1;Spese correnti;4;Trasferimenti correnti;2;Trasferimenti correnti a Famiglie;2;Interventi assistenziali;999;Altri assegni e sussidi assistenziali;09/05/2022
1626;1;9999999;300;300;OMESSO NOMINATIVO NEL RISPETTO DELLA NORMATIVA SULLA PROTEZIONE DATI PERSONALI; ;APRILE 2022 MINIMO VITALE;20/04/2022;4157;0;394;1;Spese correnti;4;Trasferimenti correnti;2;Trasferimenti correnti a Famiglie;2;Interventi assistenziali;999;Altri assegni e sussidi assistenziali;27/05/2022
1627;1;9999999;500;500;OMESSO NOMINATIVO NEL RISPETTO DELLA NORMATIVA SULLA PROTEZIONE DATI PERSONALI; ;APRILE 2022 MINIMO VITALE;20/04/2022;4157;0;400;1;Spese correnti;4;Trasferimenti correnti;2;Trasferimenti correnti a Famiglie;2;Interventi assistenziali;999;Altri assegni e sussidi assistenziali;09/05/2022
1628;1;9999999;200;200;OMESSO NOMINATIVO NEL RISPETTO DELLA NORMATIVA SULLA PROTEZIONE DATI PERSONALI; ;APRILE 2022 MINIMO VITALE E ARRETRATI MARZO;20/04/2022;4157;0;399;1;Spese correnti;4;Trasferimenti correnti;2;Trasferimenti correnti a Famiglie;2;Interventi assistenziali;999;Altri assegni e sussidi assistenziali;02/05/2022
1629;1;9999999;500;500;OMESSO NOMINATIVO NEL RISPETTO DELLA NORMATIVA SULLA PROTEZIONE DATI PERSONALI; ;APRILE 2022 MINIMO VITALE;20/04/2022;4157;0;395;1;Spese correnti;4;Trasferimenti correnti;2;Trasferimenti correnti a Famiglie;2;Interventi assistenziali;999;Altri assegni e sussidi assistenziali;04/05/2022
1630;1;9999999;150;150;OMESSO NOMINATIVO NEL RISPETTO DELLA NORMATIVA SULLA PROTEZIONE DATI PERSONALI; ;APRILE 2022 MINIMO VITALE;20/04/2022;4157;0;412;1;Spese correnti;4;Trasferimenti correnti;2;Trasferimenti correnti a Famiglie;2;Interventi assistenziali;999;Altri assegni e sussidi assistenziali;27/04/2022
1631;1;9999999;150;150;OMESSO NOMINATIVO NEL RISPETTO DELLA NORMATIVA SULLA PROTEZIONE DATI PERSONALI; ;APRILE 2022 MINIMO VITALE;20/04/2022;4157;0;363;1;Spese correnti;4;Trasferimenti correnti;2;Trasferimenti correnti a Famiglie;2;Interventi assistenziali;999;Altri assegni e sussidi assistenziali;27/04/2022
1632;1;9999999;130;130;OMESSO NOMINATIVO NEL RISPETTO DELLA NORMATIVA SULLA PROTEZIONE DATI PERSONALI; ;APRILE 2022 MINIMO VITALE;20/04/2022;4157;0;396;1;Spese correnti;4;Trasferimenti correnti;2;Trasferimenti correnti a Famiglie;2;Interventi assistenziali;999;Altri assegni e sussidi assistenziali;06/05/2022
1633;1;9999999;700;700;OMESSO NOMINATIVO NEL RISPETTO DELLA NORMATIVA SULLA PROTEZIONE DATI PERSONALI; ;APRILE 2022 PROGETTO RILEVANZA SOCIALE;20/04/2022;4157;0;91;1;Spese correnti;4;Trasferimenti correnti;2;Trasferimenti correnti a Famiglie;2;Interventi assistenziali;999;Altri assegni e sussidi assistenziali;22/04/2022
1634;1;9999999;100;100;OMESSO NOMINATIVO NEL RISPETTO DELLA NORMATIVA SULLA PROTEZIONE DATI PERSONALI; ;APRILE 2022 MINIMO VITALE;20/04/2022;4157;0;397;1;Spese correnti;4;Trasferimenti correnti;2;Trasferimenti correnti a Famiglie;2;Interventi assistenziali;999;Altri assegni e sussidi assistenziali;05/05/2022
1635;1;9999999;150;150;OMESSO NOMINATIVO NEL RISPETTO DELLA NORMATIVA SULLA PROTEZIONE DATI PERSONALI; ;APRILE 2022 MINIMO VITALE;20/04/2022;4157;0;365;1;Spese correnti;4;Trasferimenti correnti;2;Trasferimenti correnti a Famiglie;2;Interventi assistenziali;999;Altri assegni e sussidi assistenziali;28/04/2022
1636;1;9999999;100;100;OMESSO NOMINATIVO NEL RISPETTO DELLA NORMATIVA SULLA PROTEZIONE DATI PERSONALI; ;APRILE 2022 MINIMO VITALE;20/04/2022;4157;0;366;1;Spese correnti;4;Trasferimenti correnti;2;Trasferimenti correnti a Famiglie;2;Interventi assistenziali;999;Altri assegni e sussidi assistenziali;22/04/2022
1637;1;9999999;100;100;OMESSO NOMINATIVO NEL RISPETTO DELLA NORMATIVA SULLA PROTEZIONE DATI PERSONALI; ;APRILE 2022 MINIMO VITALE;20/04/2022;4157;0;197;1;Spese correnti;4;Trasferimenti correnti;2;Trasferimenti correnti a Famiglie;2;Interventi assistenziali;999;Altri assegni e sussidi assistenziali;22/04/2022
1638;1;9999999;90,16;90,16;KIT UFFICIO SNC DI CODATO MICHELE & C.;Z1D35BF390;SALDO Fatt.n. 2022SP000365  del 31/03/2022 CARTUCCIA HP DESIGNJET N. 730 NERO;20/04/2022;522;0;377;1;Spese correnti;3;Acquisto di beni e servizi;1;Acquisto di beni;2;Altri beni di consumo;999;Altri beni e materiali di consumo n.a.c.;22/04/2022
1639;1;9999999;109,8;109,8;JOLLY BOX SRL;Z642E237DF;SALDO Fatt.n. 1639-V0-2022  del 31/03/2022 NOLEGGIO DI CONTAINER NAVALE SC. ELEM. VETERNIGO - MESE DI MARZO 2022;20/04/2022;1336;0;679;1;Spese correnti;3;Acquisto di beni e servizi;2;Acquisto di servizi;7;Utilizzo di beni di terzi;8;Noleggi di impianti e macchinari;22/04/2022
1640;1;9999999;147,06;147,06;DOLOMITI ENERGIA SPA;8922150718;ACCONTO Fatt.n. 42201481628  del 31/03/2022 FEBBRAIO 2022 - CONSUMI SC. MEDIA - ELEMENTARI SMS;20/04/2022;134;30;161;1;Spese correnti;3;Acquisto di beni e servizi;2;Acquisto di servizi;5;Utenze e canoni;6;Gas;22/04/2022
1641;1;9999999;604,54;604,54;DOLOMITI ENERGIA SPA;8922150718;ACCONTO Fatt.n. 42201481628  del 31/03/2022 FEBBRAIO 2022 - CONSUMI SC. MEDIA - ELEMENTARI SMS;20/04/2022;134;31;162;1;Spese correnti;3;Acquisto di beni e servizi;2;Acquisto di servizi;5;Utenze e canoni;6;Gas;22/04/2022
1642;1;9999999;2,65;2,65;DOLOMITI ENERGIA SPA;8922150718;SALDO Fatt.n. 42201481626  del 31/03/2022 FEBBRAIO 2022 - CONSUMI ALLOGGIO VIA OLIMPIA SMS;20/04/2022;134;31;162;1;Spese correnti;3;Acquisto di beni e servizi;2;Acquisto di servizi;5;Utenze e canoni;6;Gas;22/04/2022
1643;1;9999999;1.972,94;1.972,94;DOLOMITI ENERGIA SPA;8922150718;SALDO Fatt.n. 42201481622  del 31/03/2022 FEBBRAIO 2022 - CONSUMI SC. ELEM. CALTANA;20/04/2022;134;31;162;1;Spese correnti;3;Acquisto di beni e servizi;2;Acquisto di servizi;5;Utenze e canoni;6;Gas;22/04/2022
1644;1;9999999;1.820,12;1.820,12;DOLOMITI ENERGIA SPA;8922150718;SALDO Fatt.n. 42201481624  del 31/03/2022 FEBBRAIO 2022 - CONSUMI SEDE MUNICIPALE;20/04/2022;134;31;162;1;Spese correnti;3;Acquisto di beni e servizi;2;Acquisto di servizi;5;Utenze e canoni;6;Gas;22/04/2022
1645;1;9999999;527,42;527,42;DOLOMITI ENERGIA SPA;8922150718;ACCONTO Fatt.n. 42201481621  del 31/03/2022 FEBBRAIO 2022 - CONSUMI VILLA FARSETTI;20/04/2022;134;31;162;1;Spese correnti;3;Acquisto di beni e servizi;2;Acquisto di servizi;5;Utenze e canoni;6;Gas;22/04/2022
1646;1;9999999;166,04;166,04;DOLOMITI ENERGIA SPA;8922150718;SALDO Fatt.n. 42201481627  del 31/03/2022 FEBBRAIO 2022 - CONSUMI ALLOGGIO VIA DON GALLERANI CALTANA;20/04/2022;134;31;162;1;Spese correnti;3;Acquisto di beni e servizi;2;Acquisto di servizi;5;Utenze e canoni;6;Gas;22/04/2022
1647;1;9999999;685,65;685,65;DOLOMITI ENERGIA SPA;8922150718;ACCONTO Fatt.n. 42201481631  del 31/03/2022 FEBBRAIO 2022 - CONSUMI PALESTRA CALTANA;20/04/2022;134;31;162;1;Spese correnti;3;Acquisto di beni e servizi;2;Acquisto di servizi;5;Utenze e canoni;6;Gas;22/04/2022
1648;1;9999999;506;506;DOLOMITI ENERGIA SPA;8922150718;ACCONTO Fatt.n. 42201481623  del 31/03/2022 FEBBRAIO 2022 - CONSUMI SC. ELEM - PALESTRA CASELLE;20/04/2022;134;31;162;1;Spese correnti;3;Acquisto di beni e servizi;2;Acquisto di servizi;5;Utenze e canoni;6;Gas;22/04/2022
1649;1;9999999;1.518,94;1.518,94;DOLOMITI ENERGIA SPA;8922150718;ACCONTO Fatt.n. 42201481623  del 31/03/2022 FEBBRAIO 2022 - CONSUMI SC. ELEM - PALESTRA CASELLE;20/04/2022;134;31;162;1;Spese correnti;3;Acquisto di beni e servizi;2;Acquisto di servizi;5;Utenze e canoni;6;Gas;22/04/2022
1650;1;9999999;730;730;DOLOMITI ENERGIA SPA;8922150718;ACCONTO Fatt.n. 42201481619  del 31/03/2022 FEBBRAIO 2022 - CONSUMI SC. ELEM - PALESTRA STIGLIANO;20/04/2022;134;31;162;1;Spese correnti;3;Acquisto di beni e servizi;2;Acquisto di servizi;5;Utenze e canoni;6;Gas;22/04/2022
1651;1;9999999;619,62;619,62;DOLOMITI ENERGIA SPA;8922150718;ACCONTO Fatt.n. 42201481619  del 31/03/2022 FEBBRAIO 2022 - CONSUMI SC. ELEM - PALESTRA STIGLIANO;20/04/2022;134;31;162;1;Spese correnti;3;Acquisto di beni e servizi;2;Acquisto di servizi;5;Utenze e canoni;6;Gas;22/04/2022
1652;1;9999999;395;395;DOLOMITI ENERGIA SPA;8922150718;ACCONTO Fatt.n. 42201481625  del 31/03/2022 FEBBRAIO 2022 - CONSUMI SC. ELEM-ASILO-PALESTRA S.ANGELO;20/04/2022;134;31;162;1;Spese correnti;3;Acquisto di beni e servizi;2;Acquisto di servizi;5;Utenze e canoni;6;Gas;22/04/2022
1653;1;9999999;1.186,57;1.186,57;DOLOMITI ENERGIA SPA;8922150718;ACCONTO Fatt.n. 42201481625  del 31/03/2022 FEBBRAIO 2022 - CONSUMI SC. ELEM-ASILO-PALESTRA S.ANGELO;20/04/2022;134;31;162;1;Spese correnti;3;Acquisto di beni e servizi;2;Acquisto di servizi;5;Utenze e canoni;6;Gas;22/04/2022
1654;1;9999999;2.643,85;2.643,85;DOLOMITI ENERGIA SPA;8922150718;SALDO Fatt.n. 42201481628  del 31/03/2022 FEBBRAIO 2022 - CONSUMI SC. MEDIA - ELEMENTARI SMS;20/04/2022;1334;30;163;1;Spese correnti;3;Acquisto di beni e servizi;2;Acquisto di servizi;5;Utenze e canoni;6;Gas;22/04/2022
1655;1;9999999;376,35;376,35;DOLOMITI ENERGIA SPA;8922150718;SALDO Fatt.n. 42201481632  del 31/03/2022 FEBBRAIO 2022 - CONSUMI IMP. SPORT. CASELLE;20/04/2022;1934;0;165;1;Spese correnti;3;Acquisto di beni e servizi;2;Acquisto di servizi;5;Utenze e canoni;6;Gas;22/04/2022
1656;1;9999999;685,65;685,65;DOLOMITI ENERGIA SPA;8922150718;SALDO Fatt.n. 42201481631  del 31/03/2022 FEBBRAIO 2022 - CONSUMI PALESTRA CALTANA;20/04/2022;1934;0;165;1;Spese correnti;3;Acquisto di beni e servizi;2;Acquisto di servizi;5;Utenze e canoni;6;Gas;22/04/2022
1657;1;9999999;506;506;DOLOMITI ENERGIA SPA;8922150718;SALDO Fatt.n. 42201481623  del 31/03/2022 FEBBRAIO 2022 - CONSUMI SC. ELEM - PALESTRA CASELLE;20/04/2022;1934;0;165;1;Spese correnti;3;Acquisto di beni e servizi;2;Acquisto di servizi;5;Utenze e canoni;6;Gas;22/04/2022
1658;1;9999999;730;730;DOLOMITI ENERGIA SPA;8922150718;SALDO Fatt.n. 42201481619  del 31/03/2022 FEBBRAIO 2022 - CONSUMI SC. ELEM - PALESTRA STIGLIANO;20/04/2022;1934;0;165;1;Spese correnti;3;Acquisto di beni e servizi;2;Acquisto di servizi;5;Utenze e canoni;6;Gas;22/04/2022
1659;1;9999999;395;395;DOLOMITI ENERGIA SPA;8922150718;SALDO Fatt.n. 42201481625  del 31/03/2022 FEBBRAIO 2022 - CONSUMI SC. ELEM-ASILO-PALESTRA S.ANGELO;20/04/2022;1934;0;165;1;Spese correnti;3;Acquisto di beni e servizi;2;Acquisto di servizi;5;Utenze e canoni;6;Gas;22/04/2022
1660;1;9999999;522,34;522,34;DOLOMITI ENERGIA SPA;8922150718;ACCONTO Fatt.n. 42201481629  del 31/03/2022 FEBBRAIO 2022 - CONSUMI PALESTRA SMS;20/04/2022;1934;0;165;1;Spese correnti;3;Acquisto di beni e servizi;2;Acquisto di servizi;5;Utenze e canoni;6;Gas;22/04/2022
1661;1;9999999;522,34;522,34;DOLOMITI ENERGIA SPA;8922150718;SALDO Fatt.n. 42201481629  del 31/03/2022 FEBBRAIO 2022 - CONSUMI PALESTRA SMS;20/04/2022;1934;0;165;1;Spese correnti;3;Acquisto di beni e servizi;2;Acquisto di servizi;5;Utenze e canoni;6;Gas;22/04/2022
1662;1;9999999;680;680;DOLOMITI ENERGIA SPA;8922150718;ACCONTO Fatt.n. 42201481620  del 31/03/2022 FEBBRAIO 2022 - CONSUMI SC. ELEM - PALESTRA VETERNIGO;20/04/2022;1934;0;165;1;Spese correnti;3;Acquisto di beni e servizi;2;Acquisto di servizi;5;Utenze e canoni;6;Gas;22/04/2022
1663;1;9999999;680;680;DOLOMITI ENERGIA SPA;8922150718;ACCONTO Fatt.n. 42201481620  del 31/03/2022 FEBBRAIO 2022 - CONSUMI SC. ELEM - PALESTRA VETERNIGO;20/04/2022;1934;0;165;1;Spese correnti;3;Acquisto di beni e servizi;2;Acquisto di servizi;5;Utenze e canoni;6;Gas;22/04/2022
1664;1;9999999;1.108,80;1.108,80;DOLOMITI ENERGIA SPA;8922150718;SALDO Fatt.n. 42201481620  del 31/03/2022 FEBBRAIO 2022 - CONSUMI SC. ELEM - PALESTRA VETERNIGO;20/04/2022;1934;0;165;1;Spese correnti;3;Acquisto di beni e servizi;2;Acquisto di servizi;5;Utenze e canoni;6;Gas;22/04/2022
1665;1;9999999;477,81;477,81;DOLOMITI ENERGIA SPA;8922150718;SALDO Fatt.n. 42201481630  del 31/03/2022 FEBBRAIO 2022 - CONSUMI MAGAZZINO COMUNALE;20/04/2022;3534;0;166;1;Spese correnti;3;Acquisto di beni e servizi;2;Acquisto di servizi;5;Utenze e canoni;6;Gas;22/04/2022
1666;1;9999999;3.000,00;3.000,00;DOLOMITI ENERGIA SPA;8922150718;SALDO Fatt.n. 42201481621  del 31/03/2022 FEBBRAIO 2022 - CONSUMI VILLA FARSETTI;20/04/2022;4234;0;167;1;Spese correnti;3;Acquisto di beni e servizi;2;Acquisto di servizi;5;Utenze e canoni;6;Gas;22/04/2022
1669;1;9999999;120;120;OMESSO NOMINATIVO NEL RISPETTO DELLA NORMATIVA SULLA PROTEZIONE DATI PERSONALI; ;CONTRIBUTO REGIONALE IMPEGNATIVA DI CURA DOMICILIARE ICD B - 2 SEMESTRE 2021, ICD M e Mgs - 4 TRIMESTRE 2021.;21/04/2022;3957;50;286;1;Spese correnti;4;Trasferimenti correnti;2;Trasferimenti correnti a Famiglie;2;Interventi assistenziali;999;Altri assegni e sussidi assistenziali;27/04/2022
1670;1;9999999;2;2;ARMELLIN ROMANO; ;RIMBORSO QUOTA SPESE COMMISSIONI VERSAMENTO PAGO PA PER  PROGETTO DI DIGITALIZZAZIONE REGIONE VENETO;21/04/2022;146;0;0;1;Spese correnti;3;Acquisto di beni e servizi;2;Acquisto di servizi;17;Servizi finanziari;999;Spese per servizi finanziari n.a.c.;27/04/2022
1671;1;9999999;7,5;7,5;FAVARO PAOLO; ;RIMBORSO QUOTA SPESE COMMISSIONI VERSAMENTO PAGO PA PER  PROGETTO DI DIGITALIZZAZIONE REGIONE VENETO;21/04/2022;146;0;0;1;Spese correnti;3;Acquisto di beni e servizi;2;Acquisto di servizi;17;Servizi finanziari;999;Spese per servizi finanziari n.a.c.;27/04/2022
1672;1;9999999;6;6;SPINOZZI FABIO; ;RIMBORSO QUOTA SPESE COMMISSIONI VERSAMENTO PAGO PA PER  PROGETTO DI DIGITALIZZAZIONE REGIONE VENETO;21/04/2022;146;0;0;1;Spese correnti;3;Acquisto di beni e servizi;2;Acquisto di servizi;17;Servizi finanziari;999;Spese per servizi finanziari n.a.c.;27/04/2022
1673;1;9999999;1.630,00;1.630,00;PARROCCHIA DI  SAN GIACOMO CASELLE; ;GREST 2021 - LIQUIDAZIONE CONTRIBUTO ECONOMICO ALLE PARROCCHIE PER LORGANIZZAZIONE DELLE ATTIVITA;21/04/2022;3759;0;1049;1;Spese correnti;4;Trasferimenti correnti;4;Trasferimenti correnti a Istituzioni Sociali Private;1;Trasferimenti correnti a Istituzioni Sociali Private;1;Trasferimenti correnti a Istituzioni Sociali Private;27/04/2022
1674;1;9999999;1.300,00;1.300,00;PARROCCHIA DI  S.BIAGIO CALTANA; ;GREST 2021 - LIQUIDAZIONE CONTRIBUTO ECONOMICO ALLE PARROCCHIE PER LORGANIZZAZIONE DELLE ATTIVITA;21/04/2022;3759;0;1049;1;Spese correnti;4;Trasferimenti correnti;4;Trasferimenti correnti a Istituzioni Sociali Private;1;Trasferimenti correnti a Istituzioni Sociali Private;1;Trasferimenti correnti a Istituzioni Sociali Private;27/04/2022
1675;1;9999999;800;800;PARROCCHIA ANN.NE BEATA VERGINE MARIA STIGLIANO; ;GREST 2021 - LIQUIDAZIONE CONTRIBUTO ECONOMICO ALLE PARROCCHIE PER LORGANIZZAZIONE DELLE ATTIVITA;21/04/2022;3759;0;1049;1;Spese correnti;4;Trasferimenti correnti;4;Trasferimenti correnti a Istituzioni Sociali Private;1;Trasferimenti correnti a Istituzioni Sociali Private;1;Trasferimenti correnti a Istituzioni Sociali Private;27/04/2022
1676;1;9999999;500;500;PARROCCHIA DI S. MICHELE ARCANGELO S.ANGELO; ;GREST 2021 - LIQUIDAZIONE CONTRIBUTO ECONOMICO ALLE PARROCCHIE PER LORGANIZZAZIONE DELLE ATTIVITA;21/04/2022;3759;0;1049;1;Spese correnti;4;Trasferimenti correnti;4;Trasferimenti correnti a Istituzioni Sociali Private;1;Trasferimenti correnti a Istituzioni Sociali Private;1;Trasferimenti correnti a Istituzioni Sociali Private;27/04/2022
1677;1;9999999;750;750;PARROCCHIA DELLA  NATIVITA' B. VERGINE MARIA S.M.SALA; ;GREST 2021 - LIQUIDAZIONE CONTRIBUTO ECONOMICO ALLE PARROCCHIE PER LORGANIZZAZIONE DELLE ATTIVITA;21/04/2022;3759;0;1049;1;Spese correnti;4;Trasferimenti correnti;4;Trasferimenti correnti a Istituzioni Sociali Private;1;Trasferimenti correnti a Istituzioni Sociali Private;1;Trasferimenti correnti a Istituzioni Sociali Private;27/04/2022
1678;1;9999999;1.010,00;1.010,00;PARROCCHIA TRASFIGURAZIONE DEL SIGNORE  VETERNIGO; ;GREST 2021 - LIQUIDAZIONE CONTRIBUTO ECONOMICO ALLE PARROCCHIE PER LORGANIZZAZIONE DELLE ATTIVITA;21/04/2022;3759;0;1049;1;Spese correnti;4;Trasferimenti correnti;4;Trasferimenti correnti a Istituzioni Sociali Private;1;Trasferimenti correnti a Istituzioni Sociali Private;1;Trasferimenti correnti a Istituzioni Sociali Private;27/04/2022
1680;1;9999999;569;569;COMUNE DI DOLO; ;RATA GENNAIO 2022 OSPITALITA UTENTE CON DISAGIO PSICO-SOCIALE PRESSO GRUPPO APPARTAMENTO DEL COMUNE DI DOLO (VE) -;26/04/2022;4051;0;204;1;Spese correnti;4;Trasferimenti correnti;1;Trasferimenti correnti a Amministrazioni Pubbliche;2;Trasferimenti correnti a Amministrazioni Locali;3;Trasferimenti correnti a Comuni;28/04/2022
1681;1;9999999;1.375,00;3.450,00;OMESSO NOMINATIVO NEL RISPETTO DELLA NORMATIVA SULLA PROTEZIONE DATI PERSONALI; ;APRILE 2022 INT RETTA;26/04/2022;3844;0;386;1;Spese correnti;3;Acquisto di beni e servizi;2;Acquisto di servizi;15;Contratti di servizio pubblico;8;Contratti di servizio di assistenza sociale residenziale e semiresidenziale;28/04/2022
1681;2;9999999;2.075,00;3.450,00;OMESSO NOMINATIVO NEL RISPETTO DELLA NORMATIVA SULLA PROTEZIONE DATI PERSONALI; ;RATA ARRETRATI FEBBRAIO/MARZO 2022 INTEGRAZIONE RETTA CASA DI RIPOSO;26/04/2022;3844;0;386;1;Spese correnti;3;Acquisto di beni e servizi;2;Acquisto di servizi;15;Contratti di servizio pubblico;8;Contratti di servizio di assistenza sociale residenziale e semiresidenziale;28/04/2022
1682;1;9999999;484;484;OMESSO NOMINATIVO NEL RISPETTO DELLA NORMATIVA SULLA PROTEZIONE DATI PERSONALI; ;APRILE 2022 INTEGRAZIONE RETTA CASA DI RIPOSO DON ORIONE DI TREBASELEGHE.;26/04/2022;3844;0;202;1;Spese correnti;3;Acquisto di beni e servizi;2;Acquisto di servizi;15;Contratti di servizio pubblico;8;Contratti di servizio di assistenza sociale residenziale e semiresidenziale;28/04/2022
1683;1;9999999;1.000,00;1.000,00;OMESSO NOMINATIVO NEL RISPETTO DELLA NORMATIVA SULLA PROTEZIONE DATI PERSONALI; ;APRILE 2022  INTEGRAZIONE RETTA CASA DI RIPOSO LA SALUTE DI FIESSO DARTICO.;26/04/2022;3844;0;199;1;Spese correnti;3;Acquisto di beni e servizi;2;Acquisto di servizi;15;Contratti di servizio pubblico;8;Contratti di servizio di assistenza sociale residenziale e semiresidenziale;28/04/2022
1684;1;9999999;1.217,93;1.217,93;MEB SRL;Z87350143F;SALDO Fatt.n. 016201  del 31/03/2022 MATERIALE ELETTRICO PER MANUTENZIONI;26/04/2022;521;0;118;1;Spese correnti;3;Acquisto di beni e servizi;1;Acquisto di beni;2;Altri beni di consumo;999;Altri beni e materiali di consumo n.a.c.;28/04/2022
1685;1;9999999;272,24;272,24;C.E.I.F. DI BESSEGA VANNI;Z0934F37FF;SALDO Fatt.n. 1-5  del 31/03/2022 MATERIALE VARIO DI FERRAMENTA PER MANUTENZIONI;26/04/2022;522;0;115;1;Spese correnti;3;Acquisto di beni e servizi;1;Acquisto di beni;2;Altri beni di consumo;999;Altri beni e materiali di consumo n.a.c.;28/04/2022
1686;1;9999999;140,3;140,3;VEDETTA 2 MONDIALPOL SPA;ZD032B120B;SALDO Fatt.n. V9-841  del 08/04/2022 MARZO 2022 SERVIZIO DI VIGILANZA MAGAZZINO -PROTEZIONE CIVILE V.LE FERRARIS - VILLA FARSETTI;26/04/2022;548;0;688;1;Spese correnti;3;Acquisto di beni e servizi;2;Acquisto di servizi;9;Manutenzione ordinaria e riparazioni;8;Manutenzione ordinaria e riparazioni di beni immobili;28/04/2022
1687;1;9999999;732;732;ASTON ENERGY SRL;Z623507EF3;SALDO Fatt.n. 000017/PA  del 31/03/2022 CANONE ANUALE MANUTENZIONE UPS;26/04/2022;548;0;131;1;Spese correnti;3;Acquisto di beni e servizi;2;Acquisto di servizi;9;Manutenzione ordinaria e riparazioni;4;Manutenzione ordinaria e riparazioni di impianti e macchinari;28/04/2022
1688;1;9999999;43,85;43,85;MCTC MINISTERO INFRASTRUTTURE TRASPORTI; ;SALDO T000005855  del 12/04/2022 Avviso di pagamento relativo al 1 trimestre dell'anno 2022.;26/04/2022;1134;0;70;1;Spese correnti;3;Acquisto di beni e servizi;2;Acquisto di servizi;5;Utenze e canoni;3;Accesso a banche dati e a pubblicazioni on line;28/04/2022
1689;1;9999999;1.936,00;21.137,73;BONAVENTURA EXPRESS SRL;8704892021;SALDO Fatt.n. 78PA  del 31/03/2022 SANIFICAZIONE PER EMERGENZA COVID -19 - TRASPORTO SCOLASTICO MARZO 2022;26/04/2022;1344;0;388;1;Spese correnti;3;Acquisto di beni e servizi;2;Acquisto di servizi;15;Contratti di servizio pubblico;2;Contratti di servizio di trasporto scolastico;28/04/2022
1689;2;9999999;19.201,73;21.137,73;BONAVENTURA EXPRESS SRL;8704892021;SALDO Fatt.n. 77PA  del 31/03/2022 TRASPORTO SCOLASTICO MARZO 2022;26/04/2022;1344;0;388;1;Spese correnti;3;Acquisto di beni e servizi;2;Acquisto di servizi;15;Contratti di servizio pubblico;2;Contratti di servizio di trasporto scolastico;28/04/2022
1690;1;9999999;522,36;522,36;EPIU' SRL - COSTRUIRE INSIEME;Z9134FFF69;SALDO Fatt.n. 7485  del 31/03/2022 MATERIALE  EDILE - STADALE PER MANUTENZIONI;26/04/2022;3538;0;116;1;Spese correnti;3;Acquisto di beni e servizi;2;Acquisto di servizi;9;Manutenzione ordinaria e riparazioni;8;Manutenzione ordinaria e riparazioni di beni immobili;28/04/2022
1691;1;9999999;2.030,08;2.030,08;BUGGIN ANTONIO;Z9D23DE584;SALDO Fatt.n. FATTPA 8_22  del 31/03/2022 REDAZIONE VARIANTE TECNICA GENERALE AL P.I.;26/04/2022;8699;1;717;2;Spese in conto capitale;2;Investimenti fissi lordi e acquisto di terreni;3;Beni immateriali;99;Spese di investimento per beni immateriali n.a.c.;1;Spese di investimento per beni immateriali n.a.c.;28/04/2022
1692;1;9999999;5.075,20;5.075,20;BUGGIN ANTONIO;ZFA2AF1CBA;SALDO Fatt.n. FATTPA 9_22  del 31/03/2022  REDAZIONE VARIANTE GENERALE AL PIANO DEGLI INTERVENTI;26/04/2022;8699;1;1265;2;Spese in conto capitale;2;Investimenti fissi lordi e acquisto di terreni;3;Beni immateriali;99;Spese di investimento per beni immateriali n.a.c.;1;Spese di investimento per beni immateriali n.a.c.;28/04/2022
1694;1;9999999;500;6.750,00;MANO AMICA - GRUPPO SALESE DI IMPEGNO SOCIALE O.D.V.; ;QUOTA PROGETTO RACCOLTA DEL FARMACO;28/04/2022;4059;0;385;1;Spese correnti;4;Trasferimenti correnti;4;Trasferimenti correnti a Istituzioni Sociali Private;1;Trasferimenti correnti a Istituzioni Sociali Private;1;Trasferimenti correnti a Istituzioni Sociali Private;04/05/2022
1694;2;9999999;1.000,00;6.750,00;MANO AMICA - GRUPPO SALESE DI IMPEGNO SOCIALE O.D.V.; ;QUOTA SOGGIORNI PER TERZA ETA;28/04/2022;4059;0;385;1;Spese correnti;4;Trasferimenti correnti;4;Trasferimenti correnti a Istituzioni Sociali Private;1;Trasferimenti correnti a Istituzioni Sociali Private;1;Trasferimenti correnti a Istituzioni Sociali Private;04/05/2022
1694;3;9999999;1.250,00;6.750,00;MANO AMICA - GRUPPO SALESE DI IMPEGNO SOCIALE O.D.V.; ;QUOTA PROGETTO ORTO SOLIDALE;28/04/2022;4059;0;385;1;Spese correnti;4;Trasferimenti correnti;4;Trasferimenti correnti a Istituzioni Sociali Private;1;Trasferimenti correnti a Istituzioni Sociali Private;1;Trasferimenti correnti a Istituzioni Sociali Private;04/05/2022
1694;4;9999999;2.000,00;6.750,00;MANO AMICA - GRUPPO SALESE DI IMPEGNO SOCIALE O.D.V.; ;QUOTA PROGETTO TRASPORTO SOCIALE;28/04/2022;4059;0;385;1;Spese correnti;4;Trasferimenti correnti;4;Trasferimenti correnti a Istituzioni Sociali Private;1;Trasferimenti correnti a Istituzioni Sociali Private;1;Trasferimenti correnti a Istituzioni Sociali Private;04/05/2022
1694;5;9999999;2.000,00;6.750,00;MANO AMICA - GRUPPO SALESE DI IMPEGNO SOCIALE O.D.V.; ;QUOTA CORSO DI ITALIANO PER DONNE STRANIERE;28/04/2022;4059;0;385;1;Spese correnti;4;Trasferimenti correnti;4;Trasferimenti correnti a Istituzioni Sociali Private;1;Trasferimenti correnti a Istituzioni Sociali Private;1;Trasferimenti correnti a Istituzioni Sociali Private;04/05/2022
1695;1;9999999;1.500,00;1.500,00;QUADIENT ITALY SRL;Z9234B8874;FONDO SPESE PER UTILIZZO MACCHINA AFFRANCATRICE IN USO ALLUFFICIO PROTOCOLLO - ULTERIORE RICARICA;28/04/2022;145;0;38;1;Spese correnti;3;Acquisto di beni e servizi;2;Acquisto di servizi;16;Servizi amministrativi;999;Altre spese per servizi amministrativi;04/05/2022
1696;1;9999999;616,22;616,22;ABACO S.P.A.;766214493F;SALDO Fatt.n. 2022120001681  del 07/04/2022 AGGIO ESPOSIZIONI PUBBLICITARIE RENDICONTO DELLA GESTIONE DAL 01/03/2022 AL 31/03/2022 cig. 766214493F;28/04/2022;332;0;1228;1;Spese correnti;3;Acquisto di beni e servizi;2;Acquisto di servizi;3;Aggi di riscossione;999;Altri aggi di riscossione n.a.c.;04/05/2022
1697;1;9999999;264,2;264,2;ABACO S.P.A.;766214493F;SALDO Fatt.n. 2022140001378  del 08/04/2022 AGGIO RISCOSSIONE INCASSI ICI IMU TASI LOTTO 10- 11-12-13-14-15-16 PUBBLICITARIE RENDICONTO DELLA GESTIONE DAL 01/03/2022 AL 31/03/2022 cig. 766214493F;28/04/2022;332;0;28;1;Spese correnti;3;Acquisto di beni e servizi;2;Acquisto di servizi;3;Aggi di riscossione;999;Altri aggi di riscossione n.a.c.;04/05/2022
1698;1;9999999;2.782,66;2.782,66;ABACO S.P.A.;766214493F;SALDO Fatt.n. 2022120001683  del 07/04/2022 AGGIO RISCOSSIONE OCCUPAZIONE SUOLO PUBBLICO RENDICONTO DELLA GESTIONE DAL 01/03/2022 AL 31/03/2022 cig.766214493F;28/04/2022;332;0;1228;1;Spese correnti;3;Acquisto di beni e servizi;2;Acquisto di servizi;3;Aggi di riscossione;999;Altri aggi di riscossione n.a.c.;04/05/2022
1699;1;9999999;22,24;460,12;SONEPAR ITALIA  SPA;Z6B350148B;SALDO Fatt.n. 0031080300  del 31/03/2022 MATERIALE ELETTRICO PER MANUTENZIONI;28/04/2022;521;0;122;1;Spese correnti;3;Acquisto di beni e servizi;1;Acquisto di beni;2;Altri beni di consumo;999;Altri beni e materiali di consumo n.a.c.;04/05/2022
1699;2;9999999;40,54;460,12;SONEPAR ITALIA  SPA;Z6B350148B;SALDO Fatt.n. 0031080296  del 31/03/2022 MATERIALE ELETTRICO PER MANUTENZIONI;28/04/2022;521;0;122;1;Spese correnti;3;Acquisto di beni e servizi;1;Acquisto di beni;2;Altri beni di consumo;999;Altri beni e materiali di consumo n.a.c.;04/05/2022
1699;3;9999999;40,76;460,12;SONEPAR ITALIA  SPA;Z6B350148B;SALDO Fatt.n. 0031080299  del 31/03/2022 MATERIALE ELETTRICO PER MANUTENZIONI;28/04/2022;521;0;122;1;Spese correnti;3;Acquisto di beni e servizi;1;Acquisto di beni;2;Altri beni di consumo;999;Altri beni e materiali di consumo n.a.c.;04/05/2022
1699;4;9999999;59,24;460,12;SONEPAR ITALIA  SPA;Z6B350148B;SALDO Fatt.n. 0031080298  del 31/03/2022 MATERIALE ELETTRICO PER MANUTENZIONI;28/04/2022;521;0;122;1;Spese correnti;3;Acquisto di beni e servizi;1;Acquisto di beni;2;Altri beni di consumo;999;Altri beni e materiali di consumo n.a.c.;04/05/2022
1699;5;9999999;72,03;460,12;SONEPAR ITALIA  SPA;Z6B350148B;SALDO Fatt.n. 0031080301  del 31/03/2022 MATERIALE ELETTRICO PER MANUTENZIONI;28/04/2022;521;0;122;1;Spese correnti;3;Acquisto di beni e servizi;1;Acquisto di beni;2;Altri beni di consumo;999;Altri beni e materiali di consumo n.a.c.;04/05/2022
1699;6;9999999;225,31;460,12;SONEPAR ITALIA  SPA;Z6B350148B;SALDO Fatt.n. 0031080297  del 31/03/2022 MATERIALE ELETTRICO PER MANUTENZIONI;28/04/2022;521;0;122;1;Spese correnti;3;Acquisto di beni e servizi;1;Acquisto di beni;2;Altri beni di consumo;999;Altri beni e materiali di consumo n.a.c.;04/05/2022
1700;1;9999999;784,58;784,58;ABACO S.P.A.;766214493F;SALDO Fatt.n. 2022140001379  del 08/04/2022 AGGIO RISCOSSIONE COATTIVA INCASSI CDS LOTTO 2 PUBBLICITARIE RENDICONTO DELLA GESTIONE DAL 01/03/2022 AL 31/03/2022 cig. 766214493F;28/04/2022;1132;0;30;1;Spese correnti;3;Acquisto di beni e servizi;2;Acquisto di servizi;3;Aggi di riscossione;999;Altri aggi di riscossione n.a.c.;04/05/2022
1701;1;9999999;3.516,37;3.516,37;CEOLIN DANIELE;Z6632EA2B9;SALDO Fatt.n. 18  del 08/04/2022 INCARICO PER SERVIZIO PROGETTAZIONE ESECUTIVA E DIREZIONE LAVORI MANUTENZIONE STRAORDINARIA STRADE TERRITORIO COMUNALE;28/04/2022;8558;0;1033;2;Spese in conto capitale;2;Investimenti fissi lordi e acquisto di terreni;1;Beni materiali;9;Beni immobili;12;Infrastrutture stradali;04/05/2022
1702;1;9999999;120;120;MAGGIOLI SPA;ZBD34B71BA;SALDO Fatt.n. 0002114274  del 28/03/2022 FORNITURA ONLINE DELLA RIVISTA MENSILE I SERVIZI DEMOGRAFICI ANNO 2022;28/04/2022;649;0;36;1;Spese correnti;3;Acquisto di beni e servizi;2;Acquisto di servizi;99;Altri servizi;999;Altri servizi diversi n.a.c.;04/05/2022
1703;1;9999999;84,18;926,78;TOP CAR S.R.L.;Z803501743;SALDO Fatt.n. 246/E  del 14/04/2022 ONERI DI CUSTODIA DEI VEICOLI SEQUESTRATI O FERMATI PER VIOLAZIONI AL CODICE DELLA STRADA;28/04/2022;1142;0;411;1;Spese correnti;3;Acquisto di beni e servizi;2;Acquisto di servizi;13;Servizi ausiliari per il funzionamento dell'ente;1;Servizi di sorveglianza, custodia e accoglienza;04/05/2022
1703;2;9999999;128,3;926,78;TOP CAR S.R.L.;Z803501743;SALDO Fatt.n. 247/E  del 14/04/2022 ONERI DI CUSTODIA DEI VEICOLI SEQUESTRATI O FERMATI PER VIOLAZIONI AL CODICE DELLA STRADA;28/04/2022;1142;0;411;1;Spese correnti;3;Acquisto di beni e servizi;2;Acquisto di servizi;13;Servizi ausiliari per il funzionamento dell'ente;1;Servizi di sorveglianza, custodia e accoglienza;04/05/2022
1703;3;9999999;154,32;926,78;TOP CAR S.R.L.;Z803501743;SALDO Fatt.n. 249/E  del 14/04/2022 ONERI DI CUSTODIA DEI VEICOLI SEQUESTRATI O FERMATI PER VIOLAZIONI AL CODICE DELLA STRADA;28/04/2022;1142;0;411;1;Spese correnti;3;Acquisto di beni e servizi;2;Acquisto di servizi;13;Servizi ausiliari per il funzionamento dell'ente;1;Servizi di sorveglianza, custodia e accoglienza;04/05/2022
1703;4;9999999;178,55;926,78;TOP CAR S.R.L.;Z803501743;SALDO Fatt.n. 248/E  del 14/04/2022 ONERI DI CUSTODIA DEI VEICOLI SEQUESTRATI O FERMATI PER VIOLAZIONI AL CODICE DELLA STRADA;28/04/2022;1142;0;411;1;Spese correnti;3;Acquisto di beni e servizi;2;Acquisto di servizi;13;Servizi ausiliari per il funzionamento dell'ente;1;Servizi di sorveglianza, custodia e accoglienza;04/05/2022
1703;5;9999999;184,16;926,78;TOP CAR S.R.L.;Z803501743;SALDO Fatt.n. 245/E  del 14/04/2022 ONERI DI CUSTODIA DEI VEICOLI SEQUESTRATI O FERMATI PER VIOLAZIONI AL CODICE DELLA STRADA;28/04/2022;1142;0;411;1;Spese correnti;3;Acquisto di beni e servizi;2;Acquisto di servizi;13;Servizi ausiliari per il funzionamento dell'ente;1;Servizi di sorveglianza, custodia e accoglienza;04/05/2022
1703;6;9999999;197,27;926,78;TOP CAR S.R.L.;Z803501743;SALDO Fatt.n. 244/E  del 14/04/2022 ONERI DI CUSTODIA DEI VEICOLI SEQUESTRATI O FERMATI PER VIOLAZIONI AL CODICE DELLA STRADA;28/04/2022;1142;0;411;1;Spese correnti;3;Acquisto di beni e servizi;2;Acquisto di servizi;13;Servizi ausiliari per il funzionamento dell'ente;1;Servizi di sorveglianza, custodia e accoglienza;04/05/2022
1704;1;9999999;12,44;12,44;COMUNE DI S.MARIA DI SALA; ;CONTRIBUTO IFEL AGGIO RISCOSSIONE IMU PRELEV 28-04-2022;28/04/2022;332;0;0;1;Spese correnti;3;Acquisto di beni e servizi;2;Acquisto di servizi;3;Aggi di riscossione;999;Altri aggi di riscossione n.a.c.;05/05/2022
1705;1;9999999;126,38;126,38;ENI SPA DIVISIONE REFINING & MARKETING;Z0234B8009;ACCONTO Fatt.n. 29310384  del 31/03/2022 MARZO 2022 - FORNITURA METANO;03/05/2022;4121;0;8;1;Spese correnti;3;Acquisto di beni e servizi;1;Acquisto di beni;2;Altri beni di consumo;2;Carburanti, combustibili e lubrificanti;04/05/2022
1706;1;9999999;24,5;24,5;ENI SPA DIVISIONE REFINING & MARKETING;Z0234B8009;SALDO Fatt.n. 29310384  del 31/03/2022 MARZO 2022 - FORNITURA METANO;03/05/2022;4121;0;8;1;Spese correnti;3;Acquisto di beni e servizi;1;Acquisto di beni;2;Altri beni di consumo;2;Carburanti, combustibili e lubrificanti;05/05/2022
1707;1;9999999;3.457,71;3.457,71;COOP.SOCIALE LIBERTA' ONLUS;Z05313C21F;SALDO Fatt.n. 325  del 04/04/2022 SERVIZIO DI PULIZIA E SANIFICAZIONE UFFICI COMUNALI MARZO 2022;03/05/2022;142;0;358;1;Spese correnti;3;Acquisto di beni e servizi;2;Acquisto di servizi;13;Servizi ausiliari per il funzionamento dell'ente;2;Servizi di pulizia e lavanderia;05/05/2022
1708;1;9999999;333,79;333,79;MG SAS DI MANIGHETTI KATIA, ALBERTO E C.;Z95336499F;SALDO Fatt.n. 1I-427  del 30/03/2022 FORNITURA SECONDO ACCONTO DI CARTA BIANCA A4 PER GLI UFFICI COMUNALI;03/05/2022;1121;6;898;1;Spese correnti;3;Acquisto di beni e servizi;1;Acquisto di beni;2;Altri beni di consumo;1;Carta, cancelleria e stampati;05/05/2022
1709;1;9999999;4.451,19;24.755,93;SODEXO ITALIA SPA;78886743B9;SALDO Fatt.n. 7400013054  del 31/03/2022 MARZO 2022 - PASTI SCUOLE MATERNE BAMBINI E INSEGNANTI;03/05/2022;1344;0;543;1;Spese correnti;3;Acquisto di beni e servizi;2;Acquisto di servizi;15;Contratti di servizio pubblico;6;Contratti di servizio per le mense scolastiche;05/05/2022
1709;2;9999999;20.304,74;24.755,93;SODEXO ITALIA SPA;78886743B9;SALDO Fatt.n. 7400013055  del 31/03/2022 MARZO 2022 - PASTI TRASPORTATI SCUOLE BAMBINI E INSEGNANTI;03/05/2022;1344;0;543;1;Spese correnti;3;Acquisto di beni e servizi;2;Acquisto di servizi;15;Contratti di servizio pubblico;6;Contratti di servizio per le mense scolastiche;05/05/2022
1710;1;9999999;2.008,94;2.008,94;ARTEA  SNC DI LION & SALVIATO;90182921FD;SALDO Fatt.n. 08-2022/PA  del 10/04/2022 OPERAZIONI EFFETTUATE NEI CIMITERI DEL COMUNE DI SANTA MARIA DI SALA NEL MESE DI MARZO 2022;03/05/2022;4438;0;1152;1;Spese correnti;3;Acquisto di beni e servizi;2;Acquisto di servizi;9;Manutenzione ordinaria e riparazioni;8;Manutenzione ordinaria e riparazioni di beni immobili;05/05/2022
1712;1;9999999;150;150;OMESSO NOMINATIVO NEL RISPETTO DELLA NORMATIVA SULLA PROTEZIONE DATI PERSONALI; ;MAGGIO 2022 AFFIDAMENTO FAMILIARE;03/05/2022;3757;50;282;1;Spese correnti;4;Trasferimenti correnti;2;Trasferimenti correnti a Famiglie;2;Interventi assistenziali;999;Altri assegni e sussidi assistenziali;05/05/2022
1713;1;9999999;150;150;OMESSO NOMINATIVO NEL RISPETTO DELLA NORMATIVA SULLA PROTEZIONE DATI PERSONALI; ;MAGGIO 2022 AFFIDO FAMILIARE;03/05/2022;3757;50;225;1;Spese correnti;4;Trasferimenti correnti;2;Trasferimenti correnti a Famiglie;2;Interventi assistenziali;999;Altri assegni e sussidi assistenziali;05/05/2022
1714;1;9999999;1.000,00;1.000,00;OMESSO NOMINATIVO NEL RISPETTO DELLA NORMATIVA SULLA PROTEZIONE DATI PERSONALI; ;MAGGIO 2022 CONTRIBUTO A FAVORE DI UTENTE DISABILE A SOSTEGNO DI PROGETTO DI DOMICILIARITA;03/05/2022;4157;0;328;1;Spese correnti;4;Trasferimenti correnti;2;Trasferimenti correnti a Famiglie;2;Interventi assistenziali;999;Altri assegni e sussidi assistenziali;05/05/2022
1715;1;9999999;73,22;1.232,39;TIM SPA - TELECOM ITALIA SPA;Z502F0ADA2;SALDO Fatt.n. 8E00204364  del 11/04/2022 PERIODO  3-2022 FEB-MAR - UTENZA CENTRO PRELIEVI;03/05/2022;134;0;944;1;Spese correnti;3;Acquisto di beni e servizi;2;Acquisto di servizi;5;Utenze e canoni;1;Telefonia fissa;05/05/2022
1715;2;9999999;73,22;1.232,39;TIM SPA - TELECOM ITALIA SPA;Z502F0ADA2;SALDO Fatt.n. 8E00205260  del 11/04/2022 PERIODO  3-2022 FEB-MAR  - FAX SEDE MUNICIPALE;03/05/2022;134;0;944;1;Spese correnti;3;Acquisto di beni e servizi;2;Acquisto di servizi;5;Utenze e canoni;1;Telefonia fissa;05/05/2022
1715;3;9999999;97,6;1.232,39;TIM SPA - TELECOM ITALIA SPA;Z502F0ADA2;SALDO Fatt.n. 8E00202156  del 11/04/2022 PERIODO  3-2022 FEB-MAR - FAX POLIZIA LOCALE;03/05/2022;134;0;944;1;Spese correnti;3;Acquisto di beni e servizi;2;Acquisto di servizi;5;Utenze e canoni;1;Telefonia fissa;05/05/2022
1715;4;9999999;109,8;1.232,39;TIM SPA - TELECOM ITALIA SPA;Z502F0ADA2;SALDO Fatt.n. 8E00202455  del 11/04/2022 PERIODO  3-2022 FEB-MAR - UTENZA SERVIZI SOCIALI;03/05/2022;134;0;944;1;Spese correnti;3;Acquisto di beni e servizi;2;Acquisto di servizi;5;Utenze e canoni;1;Telefonia fissa;05/05/2022
1715;5;9999999;110,49;1.232,39;TIM SPA - TELECOM ITALIA SPA;Z502F0ADA2;SALDO Fatt.n. 8E00205267  del 11/04/2022 PERIODO  3-2022 FEB-MAR - FAX BIBLIOTECA COMUNALE;03/05/2022;134;0;944;1;Spese correnti;3;Acquisto di beni e servizi;2;Acquisto di servizi;5;Utenze e canoni;1;Telefonia fissa;05/05/2022
1715;6;9999999;121,98;1.232,39;TIM SPA - TELECOM ITALIA SPA;Z502F0ADA2;SALDO Fatt.n. 8E00205604  del 11/04/2022 PERIODO  3-2022 FEB-MAR - UTENZA SEDE MUNICIPALE;03/05/2022;134;0;944;1;Spese correnti;3;Acquisto di beni e servizi;2;Acquisto di servizi;5;Utenze e canoni;1;Telefonia fissa;05/05/2022
1715;7;9999999;123,04;1.232,39;TIM SPA - TELECOM ITALIA SPA;Z502F0ADA2;SALDO Fatt.n. 8E00205830  del 11/04/2022 PERIODO  3-2022 FEB-MAR - UTENZA BIBLIOTECA COMUNALE;03/05/2022;134;0;944;1;Spese correnti;3;Acquisto di beni e servizi;2;Acquisto di servizi;5;Utenze e canoni;1;Telefonia fissa;05/05/2022
1715;8;9999999;123,04;1.232,39;TIM SPA - TELECOM ITALIA SPA;Z502F0ADA2;SALDO Fatt.n. 8E00206350  del 11/04/2022 PERIODO  3-2022 FEB-MAR - UTENZA POLIZIA LOCALE;03/05/2022;134;0;944;1;Spese correnti;3;Acquisto di beni e servizi;2;Acquisto di servizi;5;Utenze e canoni;1;Telefonia fissa;05/05/2022
1715;9;9999999;123,25;1.232,39;TIM SPA - TELECOM ITALIA SPA;Z502F0ADA2;SALDO Fatt.n. 8E00205204  del 11/04/2022 PERIODO  3-2022 FEB-MAR - UTENZA SEDE MUNICIPALE;03/05/2022;134;0;944;1;Spese correnti;3;Acquisto di beni e servizi;2;Acquisto di servizi;5;Utenze e canoni;1;Telefonia fissa;05/05/2022
1715;10;9999999;136,37;1.232,39;TIM SPA - TELECOM ITALIA SPA;Z502F0ADA2;SALDO Fatt.n. 8E00205761  del 11/04/2022 PERIODO  3-2022 FEB-MAR - FAX CENTRO PRELIEVI;03/05/2022;134;0;944;1;Spese correnti;3;Acquisto di beni e servizi;2;Acquisto di servizi;5;Utenze e canoni;1;Telefonia fissa;05/05/2022
1715;11;9999999;140,38;1.232,39;TIM SPA - TELECOM ITALIA SPA;Z502F0ADA2;SALDO Fatt.n. 8E00205134  del 11/04/2022 PERIODO  3-2022 FEB-MAR - UTENZA SEDE MUNICIPALE;03/05/2022;134;0;944;1;Spese correnti;3;Acquisto di beni e servizi;2;Acquisto di servizi;5;Utenze e canoni;1;Telefonia fissa;05/05/2022
1716;1;9999999;1.098,23;1.098,23;TIM SPA - TELECOM ITALIA SPA;ZE027DF92B;SALDO Fatt.n. 4220422800012931  del 11/04/2022 PERIODO  3-2022 FEB-MAR - CONNETTIVITA FIBRA GBE;03/05/2022;134;0;179;1;Spese correnti;3;Acquisto di beni e servizi;2;Acquisto di servizi;5;Utenze e canoni;999;Utenze e canoni per altri servizi n.a.c.;05/05/2022
1717;1;9999999;533,19;533,19;TIM SPA - TELECOM ITALIA SPA;ZC0320B772;SALDO Fatt.n. 7X01189838  del 11/04/2022 PERIODO  3-2022 FEB-MAR - CONVENZIONE CONSIP TELEFONIA MOBILE 8;03/05/2022;134;32;178;1;Spese correnti;3;Acquisto di beni e servizi;2;Acquisto di servizi;5;Utenze e canoni;2;Telefonia mobile;05/05/2022
1718;1;9999999;1.573,80;1.573,80;FORNITECNICA S.R.L.;ZA934CBAAD;SALDO Fatt.n. 000135PA22  del 01/04/2022 COSTO COPIA PERIODO APRILE - GIUGNO 2022;03/05/2022;748;0;62;1;Spese correnti;3;Acquisto di beni e servizi;2;Acquisto di servizi;19;Servizi informatici e di telecomunicazioni;9;Servizi per le postazioni di lavoro e relativa manutenzione;05/05/2022
1719;1;9999999;292,79;292,79;CONVERGE SPA;Z9D1FAB040;SALDO Fatt.n. 22301970  del 30/04/2022 NOLEGGIO APPARECCHIATURE MULTIFUNZIONE PER UTC -  PERIODO DAL 01-02 AL 30-04-2022;03/05/2022;748;0;534;1;Spese correnti;3;Acquisto di beni e servizi;2;Acquisto di servizi;19;Servizi informatici e di telecomunicazioni;9;Servizi per le postazioni di lavoro e relativa manutenzione;05/05/2022
1720;1;9999999;2.409,50;2.409,50;TELEGAMMA SAS DI GAMMA DIVIDINO & C.;Z77352D2DA;SALDO Fatt.n. 2022150000032  del 23/03/2022 FIREBOX T20 WTG PER SISTEMAZIONE UFFICIO MAGAZZINO COMUNALE;03/05/2022;7440;0;157;2;Spese in conto capitale;2;Investimenti fissi lordi e acquisto di terreni;1;Beni materiali;7;Hardware;4;Apparati di telecomunicazione;05/05/2022
1721;1;9999999;2.000,00;5.000,00;LABS LABORATORIO SOLIDALE ONLUS; ;PROGETTI DI SOLIDARIETA SOCIALE;03/05/2022;4059;0;388;1;Spese correnti;4;Trasferimenti correnti;4;Trasferimenti correnti a Istituzioni Sociali Private;1;Trasferimenti correnti a Istituzioni Sociali Private;1;Trasferimenti correnti a Istituzioni Sociali Private;05/05/2022
1721;2;9999999;3.000,00;5.000,00;LABS LABORATORIO SOLIDALE ONLUS; ;PROGETTO CENTRO ANZIANI IN GIRO PER LE FRAZIONI;03/05/2022;4059;0;388;1;Spese correnti;4;Trasferimenti correnti;4;Trasferimenti correnti a Istituzioni Sociali Private;1;Trasferimenti correnti a Istituzioni Sociali Private;1;Trasferimenti correnti a Istituzioni Sociali Private;05/05/2022
1722;1;9999999;4.200,00;4.200,00;LABS LABORATORIO SOLIDALE ONLUS; ;MARZO APRILE 2022 CONTRIBUTO ECONOMICO DA DESTINARE AGLI ENTI DEL TERZO SETTORE PER LA COLLABORAZIONE AD ATTIVITA E SERVIZI DI PUBBLICA UTILITA COLLEGATI ALLA SCUOLA.;03/05/2022;1257;0;206;1;Spese correnti;4;Trasferimenti correnti;4;Trasferimenti correnti a Istituzioni Sociali Private;1;Trasferimenti correnti a Istituzioni Sociali Private;1;Trasferimenti correnti a Istituzioni Sociali Private;05/05/2022
1723;1;9999999;1.300,00;1.300,00;MANO AMICA - GRUPPO SALESE DI IMPEGNO SOCIALE O.D.V.; ;MARZO APRILE 2022 CONTRIBUTO ECONOMICO DA DESTINARE AGLI ENTI DEL TERZO SETTORE PER LA COLLABORAZIONE AD ATTIVITA E SERVIZI DI PUBBLICA UTILITA COLLEGATI ALLA SCUOLA.;03/05/2022;1257;0;207;1;Spese correnti;4;Trasferimenti correnti;4;Trasferimenti correnti a Istituzioni Sociali Private;1;Trasferimenti correnti a Istituzioni Sociali Private;1;Trasferimenti correnti a Istituzioni Sociali Private;05/05/2022
1724;1;9999999;650;650;MANO AMICA - GRUPPO SALESE DI IMPEGNO SOCIALE O.D.V.; ;RATA MARZO 2022  CONTRIBUTO ECONOMICO PER LORGANIZZAZIONE E LA GESTIONE DEL SERVIZIO AUSILIARIO DEL TRASPORTO SCOLASTICO ANNO SCOLASTICO 2021/22 RIVOLTO AGLI ALUNNI DELLISTITUTO COMPRENSIVO CORDENONS.;03/05/2022;1257;0;112;1;Spese correnti;4;Trasferimenti correnti;4;Trasferimenti correnti a Istituzioni Sociali Private;1;Trasferimenti correnti a Istituzioni Sociali Private;1;Trasferimenti correnti a Istituzioni Sociali Private;05/05/2022
1725;1;9999999;1.335,60;1.335,60;OMESSO NOMINATIVO NEL RISPETTO DELLA NORMATIVA SULLA PROTEZIONE DATI PERSONALI; ;GENNAIO FEBBRAIO MARZO 2022 PROGETTO PERSONALIZZATO DINTERVENTO SOCIO-ASSISTENZIALE A SOSTEGNO DI MINORE;03/05/2022;3957;54;373;1;Spese correnti;4;Trasferimenti correnti;2;Trasferimenti correnti a Famiglie;5;Altri trasferimenti a famiglie;999;Altri trasferimenti a famiglie n.a.c.;05/05/2022
1726;1;9999999;27,15;230,03;ENEL ENERGIA SPA;8426072694;SALDO Fatt.n. 004213628802  del 07/04/2022 MARZO 2022 - CONSUMI ALLOGGIO VIA DON GALLERANI CALTANA;04/05/2022;134;31;348;1;Spese correnti;3;Acquisto di beni e servizi;2;Acquisto di servizi;5;Utenze e canoni;4;Energia elettrica;06/05/2022
1726;2;9999999;32,73;230,03;ENEL ENERGIA SPA;8426072694;SALDO Fatt.n. 004213628814  del 07/04/2022 MARZO 2022 - CONSUMI PARCHEGGIO SMS;04/05/2022;134;31;348;1;Spese correnti;3;Acquisto di beni e servizi;2;Acquisto di servizi;5;Utenze e canoni;4;Energia elettrica;06/05/2022
1726;3;9999999;47,86;230,03;ENEL ENERGIA SPA;8426072694;SALDO Fatt.n. 004213628819  del 07/04/2022 MARZO 2022 - CONSUMI FONTANA VETERNIGO;04/05/2022;134;31;348;1;Spese correnti;3;Acquisto di beni e servizi;2;Acquisto di servizi;5;Utenze e canoni;4;Energia elettrica;06/05/2022
1726;4;9999999;52,73;230,03;ENEL ENERGIA SPA;8426072694;SALDO Fatt.n. 004213628772  del 07/04/2022 MARZO 2022 - CONSUMI MERCATO SMS;04/05/2022;134;31;348;1;Spese correnti;3;Acquisto di beni e servizi;2;Acquisto di servizi;5;Utenze e canoni;4;Energia elettrica;06/05/2022
1726;5;9999999;69,56;230,03;ENEL ENERGIA SPA;8426072694;SALDO Fatt.n. 004213628765  del 07/04/2022 MARZO 2022 - CONSUMI MERCATO CASELLE;04/05/2022;134;31;348;1;Spese correnti;3;Acquisto di beni e servizi;2;Acquisto di servizi;5;Utenze e canoni;4;Energia elettrica;06/05/2022
1727;1;9999999;12,38;211,13;ENEL ENERGIA SPA;8426072694;SALDO Fatt.n. 004220803997  del 14/04/2022 MARZO 2022 - CONSUMI ALLOGGIO VIA OLIMPIA SMS;04/05/2022;134;31;348;1;Spese correnti;3;Acquisto di beni e servizi;2;Acquisto di servizi;5;Utenze e canoni;4;Energia elettrica;06/05/2022
1727;2;9999999;17,41;211,13;ENEL ENERGIA SPA;8426072694;SALDO Fatt.n. 004213628851  del 07/04/2022 MARZO 2022 - CONSUMI PARCHEGGIO C.C. PRISMA CASELLE;04/05/2022;134;31;348;1;Spese correnti;3;Acquisto di beni e servizi;2;Acquisto di servizi;5;Utenze e canoni;4;Energia elettrica;06/05/2022
1727;3;9999999;40,76;211,13;ENEL ENERGIA SPA;8426072694;SALDO Fatt.n. 004213628854  del 07/04/2022 MARZO 2022 - CONSUMI MERCATO CALTANA;04/05/2022;134;31;348;1;Spese correnti;3;Acquisto di beni e servizi;2;Acquisto di servizi;5;Utenze e canoni;4;Energia elettrica;06/05/2022
1727;4;9999999;58,3;211,13;ENEL ENERGIA SPA;8426072694;SALDO Fatt.n. 004213628829  del 07/04/2022 MARZO 2022 - CONSUMI PARCHEGGIO OVALE SMS;04/05/2022;134;31;348;1;Spese correnti;3;Acquisto di beni e servizi;2;Acquisto di servizi;5;Utenze e canoni;4;Energia elettrica;06/05/2022
1727;5;9999999;82,28;211,13;ENEL ENERGIA SPA;8426072694;SALDO Fatt.n. 004213628826  del 07/04/2022 MARZO 2022 - CONSUMI PIAZZA S.D.A. CALTANA;04/05/2022;134;31;348;1;Spese correnti;3;Acquisto di beni e servizi;2;Acquisto di servizi;5;Utenze e canoni;4;Energia elettrica;06/05/2022
1728;1;9999999;756,68;756,68;ENEL ENERGIA SPA;8426072694;SALDO Fatt.n. 004213628788  del 07/04/2022 MARZO 2022 - CONSUMI SEDE MUNICIPALE;04/05/2022;134;31;348;1;Spese correnti;3;Acquisto di beni e servizi;2;Acquisto di servizi;5;Utenze e canoni;4;Energia elettrica;06/05/2022
1729;1;9999999;4,96;4,96;ENEL ENERGIA SPA;8426072694;ACCONTO Fatt.n. 004219891245  del 13/04/2022 MARZO 2022 - CONSUMI CIMITERO SMS - LAMPADE VOTIVE;04/05/2022;134;31;348;1;Spese correnti;3;Acquisto di beni e servizi;2;Acquisto di servizi;5;Utenze e canoni;4;Energia elettrica;06/05/2022
1730;1;9999999;7,43;7,43;ENEL ENERGIA SPA;8426072694;ACCONTO Fatt.n. 004213628768  del 07/04/2022 MARZO 2022 - CONSUMI CIMITERO CASELLE - LAMPADE VOTIVE;04/05/2022;134;31;348;1;Spese correnti;3;Acquisto di beni e servizi;2;Acquisto di servizi;5;Utenze e canoni;4;Energia elettrica;06/05/2022
1731;1;9999999;5,32;5,32;ENEL ENERGIA SPA;8426072694;ACCONTO Fatt.n. 004213628837  del 07/04/2022 MARZO 2022 - CONSUMI CIMITERO S.ANGELO - LAMPADE VOTIVE;04/05/2022;134;31;348;1;Spese correnti;3;Acquisto di beni e servizi;2;Acquisto di servizi;5;Utenze e canoni;4;Energia elettrica;06/05/2022
1732;1;9999999;9,86;9,86;ENEL ENERGIA SPA;8426072694;ACCONTO Fatt.n. 004213628791  del 07/04/2022 MARZO 2022 - CONSUMI CIMITERO CALTANA - LAMPADE VOTIVE;04/05/2022;134;31;348;1;Spese correnti;3;Acquisto di beni e servizi;2;Acquisto di servizi;5;Utenze e canoni;4;Energia elettrica;06/05/2022
1733;1;9999999;5,77;5,77;ENEL ENERGIA SPA;8426072694;ACCONTO Fatt.n. 004213628841  del 07/04/2022 MARZO 2022 - CONSUMI CIMITERO VETERNIGO - LAMPADE VOTIVE;04/05/2022;134;31;348;1;Spese correnti;3;Acquisto di beni e servizi;2;Acquisto di servizi;5;Utenze e canoni;4;Energia elettrica;06/05/2022
1734;1;9999999;275,42;2.199,93;ENEL ENERGIA SPA;8426072694;SALDO Fatt.n. 004213628836  del 07/04/2022 MARZO 2022 - CONSUMI SC. ELEM. CALTANA;04/05/2022;1334;30;349;1;Spese correnti;3;Acquisto di beni e servizi;2;Acquisto di servizi;5;Utenze e canoni;4;Energia elettrica;06/05/2022
1734;2;9999999;296,98;2.199,93;ENEL ENERGIA SPA;8426072694;SALDO Fatt.n. 004213628818  del 07/04/2022 MARZO 2022 - CONSUMI SC. ELEM. CASELLE;04/05/2022;1334;30;349;1;Spese correnti;3;Acquisto di beni e servizi;2;Acquisto di servizi;5;Utenze e canoni;4;Energia elettrica;06/05/2022
1734;3;9999999;1.627,53;2.199,93;ENEL ENERGIA SPA;8426072694;SALDO Fatt.n. 004213628846  del 07/04/2022 MARZO 2022 - CONSUMI SC. ELEM - SC. MEDIA SMS;04/05/2022;1334;30;349;1;Spese correnti;3;Acquisto di beni e servizi;2;Acquisto di servizi;5;Utenze e canoni;4;Energia elettrica;06/05/2022
1735;1;9999999;142,33;142,33;ENEL ENERGIA SPA;8426072694;ACCONTO Fatt.n. 004214096403  del 08/04/2022 MARZO 2022 - CONSUMI PALESTRA SMS;04/05/2022;1334;30;349;1;Spese correnti;3;Acquisto di beni e servizi;2;Acquisto di servizi;5;Utenze e canoni;4;Energia elettrica;06/05/2022
1736;1;9999999;77,96;77,96;ENEL ENERGIA SPA;8426072694;ACCONTO Fatt.n. 004213628811  del 07/04/2022 MARZO 2022 - CONSUMI  PALESTRA CASELLE;04/05/2022;1334;30;349;1;Spese correnti;3;Acquisto di beni e servizi;2;Acquisto di servizi;5;Utenze e canoni;4;Energia elettrica;06/05/2022
1737;1;9999999;240,55;240,55;ENEL ENERGIA SPA;8426072694;ACCONTO Fatt.n. 004213628830  del 07/04/2022 MARZO 2022 - CONSUMI PALESTRA CALTANA;04/05/2022;1334;30;349;1;Spese correnti;3;Acquisto di beni e servizi;2;Acquisto di servizi;5;Utenze e canoni;4;Energia elettrica;06/05/2022
1738;1;9999999;147;147;ENEL ENERGIA SPA;8426072694;ACCONTO Fatt.n. 004213628821  del 07/04/2022 MARZO 2022 - CONSUMI SC. ELEM-PALESTRA STIGLIANO;04/05/2022;1334;30;349;1;Spese correnti;3;Acquisto di beni e servizi;2;Acquisto di servizi;5;Utenze e canoni;4;Energia elettrica;06/05/2022
1739;1;9999999;126,18;126,18;ENEL ENERGIA SPA;8426072694;ACCONTO Fatt.n. 004213628821  del 07/04/2022 MARZO 2022 - CONSUMI SC. ELEM-PALESTRA STIGLIANO;04/05/2022;1334;30;349;1;Spese correnti;3;Acquisto di beni e servizi;2;Acquisto di servizi;5;Utenze e canoni;4;Energia elettrica;06/05/2022
1740;1;9999999;194;194;ENEL ENERGIA SPA;8426072694;ACCONTO Fatt.n. 004213628770  del 07/04/2022 MARZO 2022 - CONSUMI SC. ELEM - PALESTRA VETERNIGO;04/05/2022;1334;30;349;1;Spese correnti;3;Acquisto di beni e servizi;2;Acquisto di servizi;5;Utenze e canoni;4;Energia elettrica;06/05/2022
1741;1;9999999;317,37;317,37;ENEL ENERGIA SPA;8426072694;ACCONTO Fatt.n. 004213628770  del 07/04/2022 MARZO 2022 - CONSUMI SC. ELEM - PALESTRA VETERNIGO;04/05/2022;1334;30;349;1;Spese correnti;3;Acquisto di beni e servizi;2;Acquisto di servizi;5;Utenze e canoni;4;Energia elettrica;06/05/2022
1742;1;9999999;230;230;ENEL ENERGIA SPA;8426072694;ACCONTO Fatt.n. 004218587149  del 12/04/2022 MARZO 2022 - CONSUMI SC. ELEM - PALESTRA - ASILO S.ANGELO;04/05/2022;1334;30;349;1;Spese correnti;3;Acquisto di beni e servizi;2;Acquisto di servizi;5;Utenze e canoni;4;Energia elettrica;06/05/2022
1743;1;9999999;692,18;692,18;ENEL ENERGIA SPA;8426072694;ACCONTO Fatt.n. 004218587149  del 12/04/2022 MARZO 2022 - CONSUMI SC. ELEM - PALESTRA - ASILO S.ANGELO;04/05/2022;1334;30;349;1;Spese correnti;3;Acquisto di beni e servizi;2;Acquisto di servizi;5;Utenze e canoni;4;Energia elettrica;06/05/2022
1744;1;9999999;356,51;879,77;ENEL ENERGIA SPA;8426072694;SALDO Fatt.n. 004219891249  del 13/04/2022 MARZO 2022 - CONSUMI VILLA FARSETTI;04/05/2022;1834;0;350;1;Spese correnti;3;Acquisto di beni e servizi;2;Acquisto di servizi;5;Utenze e canoni;4;Energia elettrica;06/05/2022
1744;2;9999999;523,26;879,77;ENEL ENERGIA SPA;8426072694;SALDO Fatt.n. 004216050435  del 10/04/2022 MARZO 2022 - CONSUMI VILLA FARSETTI;04/05/2022;1834;0;350;1;Spese correnti;3;Acquisto di beni e servizi;2;Acquisto di servizi;5;Utenze e canoni;4;Energia elettrica;06/05/2022
1745;1;9999999;107,99;107,99;ENEL ENERGIA SPA;8426072694;SALDO Fatt.n. 004213628790  del 07/04/2022 MARZO 2022 - CONSUMI IMP. SPORT. CASELLE;04/05/2022;1934;0;351;1;Spese correnti;3;Acquisto di beni e servizi;2;Acquisto di servizi;5;Utenze e canoni;4;Energia elettrica;06/05/2022
1746;1;9999999;96,29;96,29;ENEL ENERGIA SPA;8426072694;SALDO Fatt.n. 004220803999  del 14/04/2022 MARZO 2022 - CONSUMI IMP. SPORT. CASELLE;04/05/2022;1934;0;351;1;Spese correnti;3;Acquisto di beni e servizi;2;Acquisto di servizi;5;Utenze e canoni;4;Energia elettrica;06/05/2022
1747;1;9999999;125,88;125,88;ENEL ENERGIA SPA;8426072694;SALDO Fatt.n. 004218587148  del 12/04/2022 MARZO 2022 - CONSUMI CAMPO DA CALCIO SMS;04/05/2022;1934;0;351;1;Spese correnti;3;Acquisto di beni e servizi;2;Acquisto di servizi;5;Utenze e canoni;4;Energia elettrica;06/05/2022
1748;1;9999999;142,32;142,32;ENEL ENERGIA SPA;8426072694;SALDO Fatt.n. 004214096403  del 08/04/2022 MARZO 2022 - CONSUMI PALESTRA SMS;04/05/2022;1934;0;351;1;Spese correnti;3;Acquisto di beni e servizi;2;Acquisto di servizi;5;Utenze e canoni;4;Energia elettrica;06/05/2022
1749;1;9999999;77,96;77,96;ENEL ENERGIA SPA;8426072694;SALDO Fatt.n. 004213628811  del 07/04/2022 MARZO 2022 - CONSUMI  PALESTRA CASELLE;04/05/2022;1934;0;351;1;Spese correnti;3;Acquisto di beni e servizi;2;Acquisto di servizi;5;Utenze e canoni;4;Energia elettrica;06/05/2022
1750;1;9999999;240,56;240,56;ENEL ENERGIA SPA;8426072694;SALDO Fatt.n. 004213628830  del 07/04/2022 MARZO 2022 - CONSUMI PALESTRA CALTANA;04/05/2022;1934;0;351;1;Spese correnti;3;Acquisto di beni e servizi;2;Acquisto di servizi;5;Utenze e canoni;4;Energia elettrica;06/05/2022
1751;1;9999999;147;147;ENEL ENERGIA SPA;8426072694;SALDO Fatt.n. 004213628821  del 07/04/2022 MARZO 2022 - CONSUMI SC. ELEM-PALESTRA STIGLIANO;04/05/2022;1934;0;351;1;Spese correnti;3;Acquisto di beni e servizi;2;Acquisto di servizi;5;Utenze e canoni;4;Energia elettrica;06/05/2022
1752;1;9999999;194;194;ENEL ENERGIA SPA;8426072694;SALDO Fatt.n. 004213628770  del 07/04/2022 MARZO 2022 - CONSUMI SC. ELEM - PALESTRA VETERNIGO;04/05/2022;1934;0;351;1;Spese correnti;3;Acquisto di beni e servizi;2;Acquisto di servizi;5;Utenze e canoni;4;Energia elettrica;06/05/2022
1753;1;9999999;230;230;ENEL ENERGIA SPA;8426072694;SALDO Fatt.n. 004218587149  del 12/04/2022 MARZO 2022 - CONSUMI SC. ELEM - PALESTRA - ASILO S.ANGELO;04/05/2022;1934;0;351;1;Spese correnti;3;Acquisto di beni e servizi;2;Acquisto di servizi;5;Utenze e canoni;4;Energia elettrica;06/05/2022
1754;1;9999999;189,22;189,22;ENEL ENERGIA SPA;8426072694;SALDO Fatt.n. 004213628817  del 07/04/2022 MARZO 2022 - CONSUMI MAGAZZINO COMUNALE;04/05/2022;3534;0;352;1;Spese correnti;3;Acquisto di beni e servizi;2;Acquisto di servizi;5;Utenze e canoni;4;Energia elettrica;06/05/2022
1755;1;9999999;21,95;21,95;ENEL ENERGIA SPA;8426072694;SALDO Fatt.n. 004213628752  del 07/04/2022 MARZO 2022 - CONSUMI ECOCENTRO COMUNALE;04/05/2022;3534;0;352;1;Spese correnti;3;Acquisto di beni e servizi;2;Acquisto di servizi;5;Utenze e canoni;4;Energia elettrica;06/05/2022
1756;1;9999999;4,29;524,77;ENEL ENERGIA SPA;8426072694;SALDO Fatt.n. 004213628751  del 07/04/2022 MARZO 2022 - CONSUMI ILLUMINAZIONE PUBBLICA;04/05/2022;3544;0;354;1;Spese correnti;3;Acquisto di beni e servizi;2;Acquisto di servizi;15;Contratti di servizio pubblico;15;Contratti di servizio per l'illuminazione pubblica;06/05/2022
1756;2;9999999;5,45;524,77;ENEL ENERGIA SPA;8426072694;SALDO Fatt.n. 004213628755  del 07/04/2022 MARZO 2022 - CONSUMI ILLUMINAZIONE PUBBLICA;04/05/2022;3544;0;354;1;Spese correnti;3;Acquisto di beni e servizi;2;Acquisto di servizi;15;Contratti di servizio pubblico;15;Contratti di servizio per l'illuminazione pubblica;06/05/2022
1756;3;9999999;69,39;524,77;ENEL ENERGIA SPA;8426072694;SALDO Fatt.n. 004213628753  del 07/04/2022 MARZO 2022 - CONSUMI ILLUMINAZIONE PUBBLICA;04/05/2022;3544;0;354;1;Spese correnti;3;Acquisto di beni e servizi;2;Acquisto di servizi;15;Contratti di servizio pubblico;15;Contratti di servizio per l'illuminazione pubblica;06/05/2022
1756;4;9999999;107,03;524,77;ENEL ENERGIA SPA;8426072694;SALDO Fatt.n. 004213628754  del 07/04/2022 MARZO 2022 - CONSUMI ILLUMINAZIONE PUBBLICA;04/05/2022;3544;0;354;1;Spese correnti;3;Acquisto di beni e servizi;2;Acquisto di servizi;15;Contratti di servizio pubblico;15;Contratti di servizio per l'illuminazione pubblica;06/05/2022
1756;5;9999999;338,61;524,77;ENEL ENERGIA SPA;8426072694;SALDO Fatt.n. 004213628750  del 07/04/2022 MARZO 2022 - CONSUMI ILLUMINAZIONE PUBBLICA;04/05/2022;3544;0;354;1;Spese correnti;3;Acquisto di beni e servizi;2;Acquisto di servizi;15;Contratti di servizio pubblico;15;Contratti di servizio per l'illuminazione pubblica;06/05/2022
1757;1;9999999;71,31;1.029,57;ENEL ENERGIA SPA;8426072694;SALDO Fatt.n. 004213628757  del 07/04/2022 MARZO 2022 - CONSUMI ILLUMINAZIONE PUBBLICA;04/05/2022;3544;0;354;1;Spese correnti;3;Acquisto di beni e servizi;2;Acquisto di servizi;15;Contratti di servizio pubblico;15;Contratti di servizio per l'illuminazione pubblica;06/05/2022
1757;2;9999999;162,16;1.029,57;ENEL ENERGIA SPA;8426072694;SALDO Fatt.n. 004213628756  del 07/04/2022 MARZO 2022 - CONSUMI ILLUMINAZIONE PUBBLICA;04/05/2022;3544;0;354;1;Spese correnti;3;Acquisto di beni e servizi;2;Acquisto di servizi;15;Contratti di servizio pubblico;15;Contratti di servizio per l'illuminazione pubblica;06/05/2022
1757;3;9999999;196,97;1.029,57;ENEL ENERGIA SPA;8426072694;SALDO Fatt.n. 004213628758  del 07/04/2022 MARZO 2022 - CONSUMI ILLUMINAZIONE PUBBLICA;04/05/2022;3544;0;354;1;Spese correnti;3;Acquisto di beni e servizi;2;Acquisto di servizi;15;Contratti di servizio pubblico;15;Contratti di servizio per l'illuminazione pubblica;06/05/2022
1757;4;9999999;292,43;1.029,57;ENEL ENERGIA SPA;8426072694;SALDO Fatt.n. 004213628759  del 07/04/2022 MARZO 2022 - CONSUMI ILLUMINAZIONE PUBBLICA;04/05/2022;3544;0;354;1;Spese correnti;3;Acquisto di beni e servizi;2;Acquisto di servizi;15;Contratti di servizio pubblico;15;Contratti di servizio per l'illuminazione pubblica;06/05/2022
1757;5;9999999;306,7;1.029,57;ENEL ENERGIA SPA;8426072694;SALDO Fatt.n. 004213628760  del 07/04/2022 MARZO 2022 - CONSUMI ILLUMINAZIONE PUBBLICA;04/05/2022;3544;0;354;1;Spese correnti;3;Acquisto di beni e servizi;2;Acquisto di servizi;15;Contratti di servizio pubblico;15;Contratti di servizio per l'illuminazione pubblica;06/05/2022
1758;1;9999999;5,1;900,22;ENEL ENERGIA SPA;8426072694;SALDO Fatt.n. 004213628766  del 07/04/2022 MARZO 2022 - CONSUMI ILLUMINAZIONE PUBBLICA;04/05/2022;3544;0;354;1;Spese correnti;3;Acquisto di beni e servizi;2;Acquisto di servizi;15;Contratti di servizio pubblico;15;Contratti di servizio per l'illuminazione pubblica;06/05/2022
1758;2;9999999;13,75;900,22;ENEL ENERGIA SPA;8426072694;SALDO Fatt.n. 004213628763  del 07/04/2022 MARZO 2022 - CONSUMI ILLUMINAZIONE PUBBLICA;04/05/2022;3544;0;354;1;Spese correnti;3;Acquisto di beni e servizi;2;Acquisto di servizi;15;Contratti di servizio pubblico;15;Contratti di servizio per l'illuminazione pubblica;06/05/2022
1758;3;9999999;134,74;900,22;ENEL ENERGIA SPA;8426072694;SALDO Fatt.n. 004213628764  del 07/04/2022 MARZO 2022 - CONSUMI ILLUMINAZIONE PUBBLICA;04/05/2022;3544;0;354;1;Spese correnti;3;Acquisto di beni e servizi;2;Acquisto di servizi;15;Contratti di servizio pubblico;15;Contratti di servizio per l'illuminazione pubblica;06/05/2022
1758;4;9999999;299,52;900,22;ENEL ENERGIA SPA;8426072694;SALDO Fatt.n. 004213628761  del 07/04/2022 MARZO 2022 - CONSUMI ILLUMINAZIONE PUBBLICA;04/05/2022;3544;0;354;1;Spese correnti;3;Acquisto di beni e servizi;2;Acquisto di servizi;15;Contratti di servizio pubblico;15;Contratti di servizio per l'illuminazione pubblica;06/05/2022
1758;5;9999999;447,11;900,22;ENEL ENERGIA SPA;8426072694;SALDO Fatt.n. 004213628762  del 07/04/2022 MARZO 2022 - CONSUMI ILLUMINAZIONE PUBBLICA;04/05/2022;3544;0;354;1;Spese correnti;3;Acquisto di beni e servizi;2;Acquisto di servizi;15;Contratti di servizio pubblico;15;Contratti di servizio per l'illuminazione pubblica;06/05/2022
1759;1;9999999;6,66;670,74;ENEL ENERGIA SPA;8426072694;SALDO Fatt.n. 004213628771  del 07/04/2022 MARZO 2022 - CONSUMI ILLUMINAZIONE PUBBLICA;04/05/2022;3544;0;354;1;Spese correnti;3;Acquisto di beni e servizi;2;Acquisto di servizi;15;Contratti di servizio pubblico;15;Contratti di servizio per l'illuminazione pubblica;06/05/2022
1759;2;9999999;55,92;670,74;ENEL ENERGIA SPA;8426072694;SALDO Fatt.n. 004213628769  del 07/04/2022 MARZO 2022 - CONSUMI ILLUMINAZIONE PUBBLICA;04/05/2022;3544;0;354;1;Spese correnti;3;Acquisto di beni e servizi;2;Acquisto di servizi;15;Contratti di servizio pubblico;15;Contratti di servizio per l'illuminazione pubblica;06/05/2022
1759;3;9999999;109,01;670,74;ENEL ENERGIA SPA;8426072694;SALDO Fatt.n. 004213628767  del 07/04/2022 MARZO 2022 - CONSUMI ILLUMINAZIONE PUBBLICA;04/05/2022;3544;0;354;1;Spese correnti;3;Acquisto di beni e servizi;2;Acquisto di servizi;15;Contratti di servizio pubblico;15;Contratti di servizio per l'illuminazione pubblica;06/05/2022
1759;4;9999999;211,4;670,74;ENEL ENERGIA SPA;8426072694;SALDO Fatt.n. 004213628774  del 07/04/2022 MARZO 2022 - CONSUMI ILLUMINAZIONE PUBBLICA;04/05/2022;3544;0;354;1;Spese correnti;3;Acquisto di beni e servizi;2;Acquisto di servizi;15;Contratti di servizio pubblico;15;Contratti di servizio per l'illuminazione pubblica;06/05/2022
1759;5;9999999;287,75;670,74;ENEL ENERGIA SPA;8426072694;SALDO Fatt.n. 004213628773  del 07/04/2022 MARZO 2022 - CONSUMI ILLUMINAZIONE PUBBLICA;04/05/2022;3544;0;354;1;Spese correnti;3;Acquisto di beni e servizi;2;Acquisto di servizi;15;Contratti di servizio pubblico;15;Contratti di servizio per l'illuminazione pubblica;06/05/2022
1760;1;9999999;9,25;336,49;ENEL ENERGIA SPA;8426072694;SALDO Fatt.n. 004213628778  del 07/04/2022 MARZO 2022 - CONSUMI ILLUMINAZIONE PUBBLICA;04/05/2022;3544;0;354;1;Spese correnti;3;Acquisto di beni e servizi;2;Acquisto di servizi;15;Contratti di servizio pubblico;15;Contratti di servizio per l'illuminazione pubblica;06/05/2022
1760;2;9999999;24,69;336,49;ENEL ENERGIA SPA;8426072694;SALDO Fatt.n. 004213628777  del 07/04/2022 MARZO 2022 - CONSUMI ILLUMINAZIONE PUBBLICA;04/05/2022;3544;0;354;1;Spese correnti;3;Acquisto di beni e servizi;2;Acquisto di servizi;15;Contratti di servizio pubblico;15;Contratti di servizio per l'illuminazione pubblica;06/05/2022
1760;3;9999999;46,36;336,49;ENEL ENERGIA SPA;8426072694;SALDO Fatt.n. 004213628775  del 07/04/2022 MARZO 2022 - CONSUMI ILLUMINAZIONE PUBBLICA;04/05/2022;3544;0;354;1;Spese correnti;3;Acquisto di beni e servizi;2;Acquisto di servizi;15;Contratti di servizio pubblico;15;Contratti di servizio per l'illuminazione pubblica;06/05/2022
1760;4;9999999;103,86;336,49;ENEL ENERGIA SPA;8426072694;SALDO Fatt.n. 004213628780  del 07/04/2022 MARZO 2022 - CONSUMI ILLUMINAZIONE PUBBLICA;04/05/2022;3544;0;354;1;Spese correnti;3;Acquisto di beni e servizi;2;Acquisto di servizi;15;Contratti di servizio pubblico;15;Contratti di servizio per l'illuminazione pubblica;06/05/2022
1760;5;9999999;152,33;336,49;ENEL ENERGIA SPA;8426072694;SALDO Fatt.n. 004213628776  del 07/04/2022 MARZO 2022 - CONSUMI ILLUMINAZIONE PUBBLICA;04/05/2022;3544;0;354;1;Spese correnti;3;Acquisto di beni e servizi;2;Acquisto di servizi;15;Contratti di servizio pubblico;15;Contratti di servizio per l'illuminazione pubblica;06/05/2022
1761;1;9999999;10;475,94;ENEL ENERGIA SPA;8426072694;SALDO Fatt.n. 004213628786  del 07/04/2022 MARZO 2022 - CONSUMI ILLUMINAZIONE PUBBLICA;04/05/2022;3544;0;354;1;Spese correnti;3;Acquisto di beni e servizi;2;Acquisto di servizi;15;Contratti di servizio pubblico;15;Contratti di servizio per l'illuminazione pubblica;06/05/2022
1761;2;9999999;16,1;475,94;ENEL ENERGIA SPA;8426072694;SALDO Fatt.n. 004213628782  del 07/04/2022 MARZO 2022 - CONSUMI ILLUMINAZIONE PUBBLICA;04/05/2022;3544;0;354;1;Spese correnti;3;Acquisto di beni e servizi;2;Acquisto di servizi;15;Contratti di servizio pubblico;15;Contratti di servizio per l'illuminazione pubblica;06/05/2022
1761;3;9999999;94,86;475,94;ENEL ENERGIA SPA;8426072694;SALDO Fatt.n. 004213628781  del 07/04/2022 MARZO 2022 - CONSUMI ILLUMINAZIONE PUBBLICA;04/05/2022;3544;0;354;1;Spese correnti;3;Acquisto di beni e servizi;2;Acquisto di servizi;15;Contratti di servizio pubblico;15;Contratti di servizio per l'illuminazione pubblica;06/05/2022
1761;4;9999999;120,29;475,94;ENEL ENERGIA SPA;8426072694;SALDO Fatt.n. 004213628785  del 07/04/2022 MARZO 2022 - CONSUMI ILLUMINAZIONE PUBBLICA;04/05/2022;3544;0;354;1;Spese correnti;3;Acquisto di beni e servizi;2;Acquisto di servizi;15;Contratti di servizio pubblico;15;Contratti di servizio per l'illuminazione pubblica;06/05/2022
1761;5;9999999;234,69;475,94;ENEL ENERGIA SPA;8426072694;SALDO Fatt.n. 004213628783  del 07/04/2022 MARZO 2022 - CONSUMI ILLUMINAZIONE PUBBLICA;04/05/2022;3544;0;354;1;Spese correnti;3;Acquisto di beni e servizi;2;Acquisto di servizi;15;Contratti di servizio pubblico;15;Contratti di servizio per l'illuminazione pubblica;06/05/2022
1762;1;9999999;11,44;316,29;ENEL ENERGIA SPA;8426072694;SALDO Fatt.n. 004213628794  del 07/04/2022 MARZO 2022 - CONSUMI ILLUMINAZIONE PUBBLICA;04/05/2022;3544;0;354;1;Spese correnti;3;Acquisto di beni e servizi;2;Acquisto di servizi;15;Contratti di servizio pubblico;15;Contratti di servizio per l'illuminazione pubblica;06/05/2022
1762;2;9999999;14,41;316,29;ENEL ENERGIA SPA;8426072694;SALDO Fatt.n. 004213628792  del 07/04/2022 MARZO 2022 - CONSUMI ILLUMINAZIONE PUBBLICA;04/05/2022;3544;0;354;1;Spese correnti;3;Acquisto di beni e servizi;2;Acquisto di servizi;15;Contratti di servizio pubblico;15;Contratti di servizio per l'illuminazione pubblica;06/05/2022
1762;3;9999999;65,81;316,29;ENEL ENERGIA SPA;8426072694;SALDO Fatt.n. 004213628793  del 07/04/2022 MARZO 2022 - CONSUMI ILLUMINAZIONE PUBBLICA;04/05/2022;3544;0;354;1;Spese correnti;3;Acquisto di beni e servizi;2;Acquisto di servizi;15;Contratti di servizio pubblico;15;Contratti di servizio per l'illuminazione pubblica;06/05/2022
1762;4;9999999;81,34;316,29;ENEL ENERGIA SPA;8426072694;SALDO Fatt.n. 004213628787  del 07/04/2022 MARZO 2022 - CONSUMI ILLUMINAZIONE PUBBLICA;04/05/2022;3544;0;354;1;Spese correnti;3;Acquisto di beni e servizi;2;Acquisto di servizi;15;Contratti di servizio pubblico;15;Contratti di servizio per l'illuminazione pubblica;06/05/2022
1762;5;9999999;143,29;316,29;ENEL ENERGIA SPA;8426072694;SALDO Fatt.n. 004213628789  del 07/04/2022 MARZO 2022 - CONSUMI ILLUMINAZIONE PUBBLICA;04/05/2022;3544;0;354;1;Spese correnti;3;Acquisto di beni e servizi;2;Acquisto di servizi;15;Contratti di servizio pubblico;15;Contratti di servizio per l'illuminazione pubblica;06/05/2022
1763;1;9999999;28,23;619,65;ENEL ENERGIA SPA;8426072694;SALDO Fatt.n. 004213628797  del 07/04/2022 MARZO 2022 - CONSUMI ILLUMINAZIONE PUBBLICA;04/05/2022;3544;0;354;1;Spese correnti;3;Acquisto di beni e servizi;2;Acquisto di servizi;15;Contratti di servizio pubblico;15;Contratti di servizio per l'illuminazione pubblica;06/05/2022
1763;2;9999999;69,67;619,65;ENEL ENERGIA SPA;8426072694;SALDO Fatt.n. 004213628796  del 07/04/2022 MARZO 2022 - CONSUMI ILLUMINAZIONE PUBBLICA;04/05/2022;3544;0;354;1;Spese correnti;3;Acquisto di beni e servizi;2;Acquisto di servizi;15;Contratti di servizio pubblico;15;Contratti di servizio per l'illuminazione pubblica;06/05/2022
1763;3;9999999;113,41;619,65;ENEL ENERGIA SPA;8426072694;SALDO Fatt.n. 004213628799  del 07/04/2022 MARZO 2022 - CONSUMI ILLUMINAZIONE PUBBLICA;04/05/2022;3544;0;354;1;Spese correnti;3;Acquisto di beni e servizi;2;Acquisto di servizi;15;Contratti di servizio pubblico;15;Contratti di servizio per l'illuminazione pubblica;06/05/2022
1763;4;9999999;159,37;619,65;ENEL ENERGIA SPA;8426072694;SALDO Fatt.n. 004213628798  del 07/04/2022 MARZO 2022 - CONSUMI ILLUMINAZIONE PUBBLICA;04/05/2022;3544;0;354;1;Spese correnti;3;Acquisto di beni e servizi;2;Acquisto di servizi;15;Contratti di servizio pubblico;15;Contratti di servizio per l'illuminazione pubblica;06/05/2022
1763;5;9999999;248,97;619,65;ENEL ENERGIA SPA;8426072694;SALDO Fatt.n. 004213628795  del 07/04/2022 MARZO 2022 - CONSUMI ILLUMINAZIONE PUBBLICA;04/05/2022;3544;0;354;1;Spese correnti;3;Acquisto di beni e servizi;2;Acquisto di servizi;15;Contratti di servizio pubblico;15;Contratti di servizio per l'illuminazione pubblica;06/05/2022
1764;1;9999999;27,74;265,17;ENEL ENERGIA SPA;8426072694;SALDO Fatt.n. 004213628806  del 07/04/2022 MARZO 2022 - CONSUMI ILLUMINAZIONE PUBBLICA;04/05/2022;3544;0;354;1;Spese correnti;3;Acquisto di beni e servizi;2;Acquisto di servizi;15;Contratti di servizio pubblico;15;Contratti di servizio per l'illuminazione pubblica;06/05/2022
1764;2;9999999;35,81;265,17;ENEL ENERGIA SPA;8426072694;SALDO Fatt.n. 004213628800  del 07/04/2022 MARZO 2022 - CONSUMI ILLUMINAZIONE PUBBLICA;04/05/2022;3544;0;354;1;Spese correnti;3;Acquisto di beni e servizi;2;Acquisto di servizi;15;Contratti di servizio pubblico;15;Contratti di servizio per l'illuminazione pubblica;06/05/2022
1764;3;9999999;51,92;265,17;ENEL ENERGIA SPA;8426072694;SALDO Fatt.n. 004213628805  del 07/04/2022 MARZO 2022 - CONSUMI ILLUMINAZIONE PUBBLICA;04/05/2022;3544;0;354;1;Spese correnti;3;Acquisto di beni e servizi;2;Acquisto di servizi;15;Contratti di servizio pubblico;15;Contratti di servizio per l'illuminazione pubblica;06/05/2022
1764;4;9999999;58,32;265,17;ENEL ENERGIA SPA;8426072694;SALDO Fatt.n. 004213628804  del 07/04/2022 MARZO 2022 - CONSUMI ILLUMINAZIONE PUBBLICA;04/05/2022;3544;0;354;1;Spese correnti;3;Acquisto di beni e servizi;2;Acquisto di servizi;15;Contratti di servizio pubblico;15;Contratti di servizio per l'illuminazione pubblica;06/05/2022
1764;5;9999999;91,38;265,17;ENEL ENERGIA SPA;8426072694;SALDO Fatt.n. 004213628807  del 07/04/2022 MARZO 2022 - CONSUMI ILLUMINAZIONE PUBBLICA;04/05/2022;3544;0;354;1;Spese correnti;3;Acquisto di beni e servizi;2;Acquisto di servizi;15;Contratti di servizio pubblico;15;Contratti di servizio per l'illuminazione pubblica;06/05/2022
1765;1;9999999;41,37;807,03;ENEL ENERGIA SPA;8426072694;SALDO Fatt.n. 004213628808  del 07/04/2022 MARZO 2022 - CONSUMI ILLUMINAZIONE PUBBLICA;04/05/2022;3544;0;354;1;Spese correnti;3;Acquisto di beni e servizi;2;Acquisto di servizi;15;Contratti di servizio pubblico;15;Contratti di servizio per l'illuminazione pubblica;06/05/2022
1765;2;9999999;60,62;807,03;ENEL ENERGIA SPA;8426072694;SALDO Fatt.n. 004213628812  del 07/04/2022 MARZO 2022 - CONSUMI ILLUMINAZIONE PUBBLICA;04/05/2022;3544;0;354;1;Spese correnti;3;Acquisto di beni e servizi;2;Acquisto di servizi;15;Contratti di servizio pubblico;15;Contratti di servizio per l'illuminazione pubblica;06/05/2022
1765;3;9999999;98,76;807,03;ENEL ENERGIA SPA;8426072694;SALDO Fatt.n. 004213628813  del 07/04/2022 MARZO 2022 - CONSUMI ILLUMINAZIONE PUBBLICA;04/05/2022;3544;0;354;1;Spese correnti;3;Acquisto di beni e servizi;2;Acquisto di servizi;15;Contratti di servizio pubblico;15;Contratti di servizio per l'illuminazione pubblica;06/05/2022
1765;4;9999999;204,39;807,03;ENEL ENERGIA SPA;8426072694;SALDO Fatt.n. 004213628810  del 07/04/2022 MARZO 2022 - CONSUMI ILLUMINAZIONE PUBBLICA;04/05/2022;3544;0;354;1;Spese correnti;3;Acquisto di beni e servizi;2;Acquisto di servizi;15;Contratti di servizio pubblico;15;Contratti di servizio per l'illuminazione pubblica;06/05/2022
1765;5;9999999;401,89;807,03;ENEL ENERGIA SPA;8426072694;SALDO Fatt.n. 004213628809  del 07/04/2022 MARZO 2022 - CONSUMI ILLUMINAZIONE PUBBLICA;04/05/2022;3544;0;354;1;Spese correnti;3;Acquisto di beni e servizi;2;Acquisto di servizi;15;Contratti di servizio pubblico;15;Contratti di servizio per l'illuminazione pubblica;06/05/2022
1766;1;9999999;4,84;53,63;ENEL ENERGIA SPA;8426072694;SALDO Fatt.n. 004213628815  del 07/04/2022 MARZO 2022 - CONSUMI ILLUMINAZIONE PUBBLICA;04/05/2022;3544;0;354;1;Spese correnti;3;Acquisto di beni e servizi;2;Acquisto di servizi;15;Contratti di servizio pubblico;15;Contratti di servizio per l'illuminazione pubblica;06/05/2022
1766;2;9999999;5,58;53,63;ENEL ENERGIA SPA;8426072694;SALDO Fatt.n. 004213628822  del 07/04/2022 MARZO 2022 - CONSUMI ILLUMINAZIONE PUBBLICA;04/05/2022;3544;0;354;1;Spese correnti;3;Acquisto di beni e servizi;2;Acquisto di servizi;15;Contratti di servizio pubblico;15;Contratti di servizio per l'illuminazione pubblica;06/05/2022
1766;3;9999999;5,58;53,63;ENEL ENERGIA SPA;8426072694;SALDO Fatt.n. 004213628823  del 07/04/2022 MARZO 2022 - CONSUMI ILLUMINAZIONE PUBBLICA;04/05/2022;3544;0;354;1;Spese correnti;3;Acquisto di beni e servizi;2;Acquisto di servizi;15;Contratti di servizio pubblico;15;Contratti di servizio per l'illuminazione pubblica;06/05/2022
1766;4;9999999;17,89;53,63;ENEL ENERGIA SPA;8426072694;SALDO Fatt.n. 004213628820  del 07/04/2022 MARZO 2022 - CONSUMI ILLUMINAZIONE PUBBLICA;04/05/2022;3544;0;354;1;Spese correnti;3;Acquisto di beni e servizi;2;Acquisto di servizi;15;Contratti di servizio pubblico;15;Contratti di servizio per l'illuminazione pubblica;06/05/2022
1766;5;9999999;19,74;53,63;ENEL ENERGIA SPA;8426072694;SALDO Fatt.n. 004213628816  del 07/04/2022 MARZO 2022 - CONSUMI ILLUMINAZIONE PUBBLICA;04/05/2022;3544;0;354;1;Spese correnti;3;Acquisto di beni e servizi;2;Acquisto di servizi;15;Contratti di servizio pubblico;15;Contratti di servizio per l'illuminazione pubblica;06/05/2022
1767;1;9999999;27,89;700,22;ENEL ENERGIA SPA;8426072694;SALDO Fatt.n. 004213628831  del 07/04/2022 MARZO 2022 - CONSUMI ILLUMINAZIONE PUBBLICA;04/05/2022;3544;0;354;1;Spese correnti;3;Acquisto di beni e servizi;2;Acquisto di servizi;15;Contratti di servizio pubblico;15;Contratti di servizio per l'illuminazione pubblica;06/05/2022
1767;2;9999999;31,09;700,22;ENEL ENERGIA SPA;8426072694;SALDO Fatt.n. 004213628828  del 07/04/2022 MARZO 2022 - CONSUMI ILLUMINAZIONE PUBBLICA;04/05/2022;3544;0;354;1;Spese correnti;3;Acquisto di beni e servizi;2;Acquisto di servizi;15;Contratti di servizio pubblico;15;Contratti di servizio per l'illuminazione pubblica;06/05/2022
1767;3;9999999;78,51;700,22;ENEL ENERGIA SPA;8426072694;SALDO Fatt.n. 004213628825  del 07/04/2022 MARZO 2022 - CONSUMI ILLUMINAZIONE PUBBLICA;04/05/2022;3544;0;354;1;Spese correnti;3;Acquisto di beni e servizi;2;Acquisto di servizi;15;Contratti di servizio pubblico;15;Contratti di servizio per l'illuminazione pubblica;06/05/2022
1767;4;9999999;238,72;700,22;ENEL ENERGIA SPA;8426072694;SALDO Fatt.n. 004213628824  del 07/04/2022 MARZO 2022 - CONSUMI ILLUMINAZIONE PUBBLICA;04/05/2022;3544;0;354;1;Spese correnti;3;Acquisto di beni e servizi;2;Acquisto di servizi;15;Contratti di servizio pubblico;15;Contratti di servizio per l'illuminazione pubblica;06/05/2022
1767;5;9999999;324,01;700,22;ENEL ENERGIA SPA;8426072694;SALDO Fatt.n. 004213628827  del 07/04/2022 MARZO 2022 - CONSUMI ILLUMINAZIONE PUBBLICA;04/05/2022;3544;0;354;1;Spese correnti;3;Acquisto di beni e servizi;2;Acquisto di servizi;15;Contratti di servizio pubblico;15;Contratti di servizio per l'illuminazione pubblica;06/05/2022
1768;1;9999999;3,12;775,12;ENEL ENERGIA SPA;8426072694;SALDO Fatt.n. 004213628832  del 07/04/2022 MARZO 2022 - CONSUMI ILLUMINAZIONE PUBBLICA;04/05/2022;3544;0;354;1;Spese correnti;3;Acquisto di beni e servizi;2;Acquisto di servizi;15;Contratti di servizio pubblico;15;Contratti di servizio per l'illuminazione pubblica;06/05/2022
1768;2;9999999;7,76;775,12;ENEL ENERGIA SPA;8426072694;SALDO Fatt.n. 004213628833  del 07/04/2022 MARZO 2022 - CONSUMI ILLUMINAZIONE PUBBLICA;04/05/2022;3544;0;354;1;Spese correnti;3;Acquisto di beni e servizi;2;Acquisto di servizi;15;Contratti di servizio pubblico;15;Contratti di servizio per l'illuminazione pubblica;06/05/2022
1768;3;9999999;22,05;775,12;ENEL ENERGIA SPA;8426072694;SALDO Fatt.n. 004213628838  del 07/04/2022 MARZO 2022 - CONSUMI ILLUMINAZIONE PUBBLICA;04/05/2022;3544;0;354;1;Spese correnti;3;Acquisto di beni e servizi;2;Acquisto di servizi;15;Contratti di servizio pubblico;15;Contratti di servizio per l'illuminazione pubblica;06/05/2022
1768;4;9999999;77,29;775,12;ENEL ENERGIA SPA;8426072694;SALDO Fatt.n. 004213628835  del 07/04/2022 MARZO 2022 - CONSUMI ILLUMINAZIONE PUBBLICA;04/05/2022;3544;0;354;1;Spese correnti;3;Acquisto di beni e servizi;2;Acquisto di servizi;15;Contratti di servizio pubblico;15;Contratti di servizio per l'illuminazione pubblica;06/05/2022
1768;5;9999999;664,9;775,12;ENEL ENERGIA SPA;8426072694;SALDO Fatt.n. 004213628834  del 07/04/2022 MARZO 2022 - CONSUMI ILLUMINAZIONE PUBBLICA;04/05/2022;3544;0;354;1;Spese correnti;3;Acquisto di beni e servizi;2;Acquisto di servizi;15;Contratti di servizio pubblico;15;Contratti di servizio per l'illuminazione pubblica;06/05/2022
1769;1;9999999;32,94;655,81;ENEL ENERGIA SPA;8426072694;SALDO Fatt.n. 004213628839  del 07/04/2022 MARZO 2022 - CONSUMI ILLUMINAZIONE PUBBLICA;04/05/2022;3544;0;354;1;Spese correnti;3;Acquisto di beni e servizi;2;Acquisto di servizi;15;Contratti di servizio pubblico;15;Contratti di servizio per l'illuminazione pubblica;06/05/2022
1769;2;9999999;38,3;655,81;ENEL ENERGIA SPA;8426072694;SALDO Fatt.n. 004213628844  del 07/04/2022 MARZO 2022 - CONSUMI ILLUMINAZIONE PUBBLICA;04/05/2022;3544;0;354;1;Spese correnti;3;Acquisto di beni e servizi;2;Acquisto di servizi;15;Contratti di servizio pubblico;15;Contratti di servizio per l'illuminazione pubblica;06/05/2022
1769;3;9999999;61,66;655,81;ENEL ENERGIA SPA;8426072694;SALDO Fatt.n. 004213628840  del 07/04/2022 MARZO 2022 - CONSUMI ILLUMINAZIONE PUBBLICA;04/05/2022;3544;0;354;1;Spese correnti;3;Acquisto di beni e servizi;2;Acquisto di servizi;15;Contratti di servizio pubblico;15;Contratti di servizio per l'illuminazione pubblica;06/05/2022
1769;4;9999999;191,69;655,81;ENEL ENERGIA SPA;8426072694;SALDO Fatt.n. 004213628842  del 07/04/2022 MARZO 2022 - CONSUMI ILLUMINAZIONE PUBBLICA;04/05/2022;3544;0;354;1;Spese correnti;3;Acquisto di beni e servizi;2;Acquisto di servizi;15;Contratti di servizio pubblico;15;Contratti di servizio per l'illuminazione pubblica;06/05/2022
1769;5;9999999;331,22;655,81;ENEL ENERGIA SPA;8426072694;SALDO Fatt.n. 004213628843  del 07/04/2022 MARZO 2022 - CONSUMI ILLUMINAZIONE PUBBLICA;04/05/2022;3544;0;354;1;Spese correnti;3;Acquisto di beni e servizi;2;Acquisto di servizi;15;Contratti di servizio pubblico;15;Contratti di servizio per l'illuminazione pubblica;06/05/2022
1770;1;9999999;9,25;317,06;ENEL ENERGIA SPA;8426072694;SALDO Fatt.n. 004213628845  del 07/04/2022 MARZO 2022 - CONSUMI ILLUMINAZIONE PUBBLICA;04/05/2022;3544;0;354;1;Spese correnti;3;Acquisto di beni e servizi;2;Acquisto di servizi;15;Contratti di servizio pubblico;15;Contratti di servizio per l'illuminazione pubblica;06/05/2022
1770;2;9999999;17,01;317,06;ENEL ENERGIA SPA;8426072694;SALDO Fatt.n. 004213628850  del 07/04/2022 MARZO 2022 - CONSUMI ILLUMINAZIONE PUBBLICA;04/05/2022;3544;0;354;1;Spese correnti;3;Acquisto di beni e servizi;2;Acquisto di servizi;15;Contratti di servizio pubblico;15;Contratti di servizio per l'illuminazione pubblica;06/05/2022
1770;3;9999999;21,9;317,06;ENEL ENERGIA SPA;8426072694;SALDO Fatt.n. 004213628848  del 07/04/2022 MARZO 2022 - CONSUMI ILLUMINAZIONE PUBBLICA;04/05/2022;3544;0;354;1;Spese correnti;3;Acquisto di beni e servizi;2;Acquisto di servizi;15;Contratti di servizio pubblico;15;Contratti di servizio per l'illuminazione pubblica;06/05/2022
1770;4;9999999;67,49;317,06;ENEL ENERGIA SPA;8426072694;SALDO Fatt.n. 004213628849  del 07/04/2022 MARZO 2022 - CONSUMI ILLUMINAZIONE PUBBLICA;04/05/2022;3544;0;354;1;Spese correnti;3;Acquisto di beni e servizi;2;Acquisto di servizi;15;Contratti di servizio pubblico;15;Contratti di servizio per l'illuminazione pubblica;06/05/2022
1770;5;9999999;201,41;317,06;ENEL ENERGIA SPA;8426072694;SALDO Fatt.n. 004213628847  del 07/04/2022 MARZO 2022 - CONSUMI ILLUMINAZIONE PUBBLICA;04/05/2022;3544;0;354;1;Spese correnti;3;Acquisto di beni e servizi;2;Acquisto di servizi;15;Contratti di servizio pubblico;15;Contratti di servizio per l'illuminazione pubblica;06/05/2022
1771;1;9999999;2,11;492,66;ENEL ENERGIA SPA;8426072694;SALDO Fatt.n. 004213628857  del 07/04/2022 MARZO 2022 - CONSUMI ILLUMINAZIONE PUBBLICA;04/05/2022;3544;0;354;1;Spese correnti;3;Acquisto di beni e servizi;2;Acquisto di servizi;15;Contratti di servizio pubblico;15;Contratti di servizio per l'illuminazione pubblica;06/05/2022
1771;2;9999999;18,41;492,66;ENEL ENERGIA SPA;8426072694;SALDO Fatt.n. 004213628853  del 07/04/2022 MARZO 2022 - CONSUMI ILLUMINAZIONE PUBBLICA;04/05/2022;3544;0;354;1;Spese correnti;3;Acquisto di beni e servizi;2;Acquisto di servizi;15;Contratti di servizio pubblico;15;Contratti di servizio per l'illuminazione pubblica;06/05/2022
1771;3;9999999;29,18;492,66;ENEL ENERGIA SPA;8426072694;SALDO Fatt.n. 004213628856  del 07/04/2022 MARZO 2022 - CONSUMI ILLUMINAZIONE PUBBLICA;04/05/2022;3544;0;354;1;Spese correnti;3;Acquisto di beni e servizi;2;Acquisto di servizi;15;Contratti di servizio pubblico;15;Contratti di servizio per l'illuminazione pubblica;06/05/2022
1771;4;9999999;54,5;492,66;ENEL ENERGIA SPA;8426072694;SALDO Fatt.n. 004213628855  del 07/04/2022 MARZO 2022 - CONSUMI ILLUMINAZIONE PUBBLICA;04/05/2022;3544;0;354;1;Spese correnti;3;Acquisto di beni e servizi;2;Acquisto di servizi;15;Contratti di servizio pubblico;15;Contratti di servizio per l'illuminazione pubblica;06/05/2022
1771;5;9999999;388,46;492,66;ENEL ENERGIA SPA;8426072694;SALDO Fatt.n. 004213628852  del 07/04/2022 MARZO 2022 - CONSUMI ILLUMINAZIONE PUBBLICA;04/05/2022;3544;0;354;1;Spese correnti;3;Acquisto di beni e servizi;2;Acquisto di servizi;15;Contratti di servizio pubblico;15;Contratti di servizio per l'illuminazione pubblica;06/05/2022
1772;1;9999999;10,58;199,47;ENEL ENERGIA SPA;8426072694;SALDO Fatt.n. 004213628860  del 07/04/2022 MARZO 2022 - CONSUMI ILLUMINAZIONE PUBBLICA;04/05/2022;3544;0;354;1;Spese correnti;3;Acquisto di beni e servizi;2;Acquisto di servizi;15;Contratti di servizio pubblico;15;Contratti di servizio per l'illuminazione pubblica;06/05/2022
1772;2;9999999;29,61;199,47;ENEL ENERGIA SPA;8426072694;SALDO Fatt.n. 004213628859  del 07/04/2022 MARZO 2022 - CONSUMI ILLUMINAZIONE PUBBLICA;04/05/2022;3544;0;354;1;Spese correnti;3;Acquisto di beni e servizi;2;Acquisto di servizi;15;Contratti di servizio pubblico;15;Contratti di servizio per l'illuminazione pubblica;06/05/2022
1772;3;9999999;30,44;199,47;ENEL ENERGIA SPA;8426072694;SALDO Fatt.n. 004213628862  del 07/04/2022 MARZO 2022 - CONSUMI ILLUMINAZIONE PUBBLICA;04/05/2022;3544;0;354;1;Spese correnti;3;Acquisto di beni e servizi;2;Acquisto di servizi;15;Contratti di servizio pubblico;15;Contratti di servizio per l'illuminazione pubblica;06/05/2022
1772;4;9999999;34,39;199,47;ENEL ENERGIA SPA;8426072694;SALDO Fatt.n. 004213628861  del 07/04/2022 MARZO 2022 - CONSUMI ILLUMINAZIONE PUBBLICA;04/05/2022;3544;0;354;1;Spese correnti;3;Acquisto di beni e servizi;2;Acquisto di servizi;15;Contratti di servizio pubblico;15;Contratti di servizio per l'illuminazione pubblica;06/05/2022
1772;5;9999999;94,45;199,47;ENEL ENERGIA SPA;8426072694;SALDO Fatt.n. 004213628858  del 07/04/2022 MARZO 2022 - CONSUMI ILLUMINAZIONE PUBBLICA;04/05/2022;3544;0;354;1;Spese correnti;3;Acquisto di beni e servizi;2;Acquisto di servizi;15;Contratti di servizio pubblico;15;Contratti di servizio per l'illuminazione pubblica;06/05/2022
1773;1;9999999;15,73;270,14;ENEL ENERGIA SPA;8426072694;SALDO Fatt.n. 004213628867  del 07/04/2022 MARZO 2022 - CONSUMI ILLUMINAZIONE PUBBLICA;04/05/2022;3544;0;354;1;Spese correnti;3;Acquisto di beni e servizi;2;Acquisto di servizi;15;Contratti di servizio pubblico;15;Contratti di servizio per l'illuminazione pubblica;06/05/2022
1773;2;9999999;18,48;270,14;ENEL ENERGIA SPA;8426072694;SALDO Fatt.n. 004213628864  del 07/04/2022 MARZO 2022 - CONSUMI ILLUMINAZIONE PUBBLICA;04/05/2022;3544;0;354;1;Spese correnti;3;Acquisto di beni e servizi;2;Acquisto di servizi;15;Contratti di servizio pubblico;15;Contratti di servizio per l'illuminazione pubblica;06/05/2022
1773;3;9999999;51,87;270,14;ENEL ENERGIA SPA;8426072694;SALDO Fatt.n. 004213628863  del 07/04/2022 MARZO 2022 - CONSUMI ILLUMINAZIONE PUBBLICA;04/05/2022;3544;0;354;1;Spese correnti;3;Acquisto di beni e servizi;2;Acquisto di servizi;15;Contratti di servizio pubblico;15;Contratti di servizio per l'illuminazione pubblica;06/05/2022
1773;4;9999999;63,9;270,14;ENEL ENERGIA SPA;8426072694;SALDO Fatt.n. 004213628866  del 07/04/2022 MARZO 2022 - CONSUMI ILLUMINAZIONE PUBBLICA;04/05/2022;3544;0;354;1;Spese correnti;3;Acquisto di beni e servizi;2;Acquisto di servizi;15;Contratti di servizio pubblico;15;Contratti di servizio per l'illuminazione pubblica;06/05/2022
1773;5;9999999;120,16;270,14;ENEL ENERGIA SPA;8426072694;SALDO Fatt.n. 004213628865  del 07/04/2022 MARZO 2022 - CONSUMI ILLUMINAZIONE PUBBLICA;04/05/2022;3544;0;354;1;Spese correnti;3;Acquisto di beni e servizi;2;Acquisto di servizi;15;Contratti di servizio pubblico;15;Contratti di servizio per l'illuminazione pubblica;06/05/2022
1774;1;9999999;2,65;288,89;ENEL ENERGIA SPA;8426072694;SALDO Fatt.n. 004213628868  del 07/04/2022 MARZO 2022 - CONSUMI ILLUMINAZIONE PUBBLICA;04/05/2022;3544;0;354;1;Spese correnti;3;Acquisto di beni e servizi;2;Acquisto di servizi;15;Contratti di servizio pubblico;15;Contratti di servizio per l'illuminazione pubblica;06/05/2022
1774;2;9999999;4,01;288,89;ENEL ENERGIA SPA;8426072694;SALDO Fatt.n. 004214096398  del 08/04/2022 MARZO 2022 - CONSUMI ILLUMINAZIONE PUBBLICA;04/05/2022;3544;0;354;1;Spese correnti;3;Acquisto di beni e servizi;2;Acquisto di servizi;15;Contratti di servizio pubblico;15;Contratti di servizio per l'illuminazione pubblica;06/05/2022
1774;3;9999999;14,69;288,89;ENEL ENERGIA SPA;8426072694;SALDO Fatt.n. 004213628801  del 07/04/2022 MARZO 2022 - CONSUMI ILLUMINAZIONE PUBBLICA;04/05/2022;3544;0;354;1;Spese correnti;3;Acquisto di beni e servizi;2;Acquisto di servizi;15;Contratti di servizio pubblico;15;Contratti di servizio per l'illuminazione pubblica;06/05/2022
1774;4;9999999;62,6;288,89;ENEL ENERGIA SPA;8426072694;SALDO Fatt.n. 004214096397  del 08/04/2022 MARZO 2022 - CONSUMI ILLUMINAZIONE PUBBLICA;04/05/2022;3544;0;354;1;Spese correnti;3;Acquisto di beni e servizi;2;Acquisto di servizi;15;Contratti di servizio pubblico;15;Contratti di servizio per l'illuminazione pubblica;06/05/2022
1774;5;9999999;204,94;288,89;ENEL ENERGIA SPA;8426072694;SALDO Fatt.n. 004214096396  del 08/04/2022 MARZO 2022 - CONSUMI ILLUMINAZIONE PUBBLICA;04/05/2022;3544;0;354;1;Spese correnti;3;Acquisto di beni e servizi;2;Acquisto di servizi;15;Contratti di servizio pubblico;15;Contratti di servizio per l'illuminazione pubblica;06/05/2022
1775;1;9999999;6,8;577,92;ENEL ENERGIA SPA;8426072694;SALDO Fatt.n. 004214096399  del 08/04/2022 MARZO 2022 - CONSUMI ILLUMINAZIONE PUBBLICA;04/05/2022;3544;0;354;1;Spese correnti;3;Acquisto di beni e servizi;2;Acquisto di servizi;15;Contratti di servizio pubblico;15;Contratti di servizio per l'illuminazione pubblica;06/05/2022
1775;2;9999999;18,14;577,92;ENEL ENERGIA SPA;8426072694;SALDO Fatt.n. 004214096400  del 08/04/2022 MARZO 2022 - CONSUMI ILLUMINAZIONE PUBBLICA;04/05/2022;3544;0;354;1;Spese correnti;3;Acquisto di beni e servizi;2;Acquisto di servizi;15;Contratti di servizio pubblico;15;Contratti di servizio per l'illuminazione pubblica;06/05/2022
1775;3;9999999;139,97;577,92;ENEL ENERGIA SPA;8426072694;SALDO Fatt.n. 004214096402  del 08/04/2022 MARZO 2022 - CONSUMI ILLUMINAZIONE PUBBLICA;04/05/2022;3544;0;354;1;Spese correnti;3;Acquisto di beni e servizi;2;Acquisto di servizi;15;Contratti di servizio pubblico;15;Contratti di servizio per l'illuminazione pubblica;06/05/2022
1775;4;9999999;152,88;577,92;ENEL ENERGIA SPA;8426072694;SALDO Fatt.n. 004214096401  del 08/04/2022 MARZO 2022 - CONSUMI ILLUMINAZIONE PUBBLICA;04/05/2022;3544;0;354;1;Spese correnti;3;Acquisto di beni e servizi;2;Acquisto di servizi;15;Contratti di servizio pubblico;15;Contratti di servizio per l'illuminazione pubblica;06/05/2022
1775;5;9999999;260,13;577,92;ENEL ENERGIA SPA;8426072694;SALDO Fatt.n. 004214096404  del 08/04/2022 MARZO 2022 - CONSUMI ILLUMINAZIONE PUBBLICA;04/05/2022;3544;0;354;1;Spese correnti;3;Acquisto di beni e servizi;2;Acquisto di servizi;15;Contratti di servizio pubblico;15;Contratti di servizio per l'illuminazione pubblica;06/05/2022
1776;1;9999999;40,21;558,87;ENEL ENERGIA SPA;8426072694;SALDO Fatt.n. 004216050433  del 10/04/2022 MARZO 2022 - CONSUMI ILLUMINAZIONE PUBBLICA;04/05/2022;3544;0;354;1;Spese correnti;3;Acquisto di beni e servizi;2;Acquisto di servizi;15;Contratti di servizio pubblico;15;Contratti di servizio per l'illuminazione pubblica;06/05/2022
1776;2;9999999;47,59;558,87;ENEL ENERGIA SPA;8426072694;SALDO Fatt.n. 004214993747  del 09/04/2022 MARZO 2022 - CONSUMI ILLUMINAZIONE PUBBLICA;04/05/2022;3544;0;354;1;Spese correnti;3;Acquisto di beni e servizi;2;Acquisto di servizi;15;Contratti di servizio pubblico;15;Contratti di servizio per l'illuminazione pubblica;06/05/2022
1776;3;9999999;56,19;558,87;ENEL ENERGIA SPA;8426072694;SALDO Fatt.n. 004214993745  del 09/04/2022 MARZO 2022 - CONSUMI ILLUMINAZIONE PUBBLICA;04/05/2022;3544;0;354;1;Spese correnti;3;Acquisto di beni e servizi;2;Acquisto di servizi;15;Contratti di servizio pubblico;15;Contratti di servizio per l'illuminazione pubblica;06/05/2022
1776;4;9999999;56,33;558,87;ENEL ENERGIA SPA;8426072694;SALDO Fatt.n. 004214993746  del 09/04/2022 MARZO 2022 - CONSUMI ILLUMINAZIONE PUBBLICA;04/05/2022;3544;0;354;1;Spese correnti;3;Acquisto di beni e servizi;2;Acquisto di servizi;15;Contratti di servizio pubblico;15;Contratti di servizio per l'illuminazione pubblica;06/05/2022
1776;5;9999999;358,55;558,87;ENEL ENERGIA SPA;8426072694;SALDO Fatt.n. 004216050432  del 10/04/2022 MARZO 2022 - CONSUMI ILLUMINAZIONE PUBBLICA;04/05/2022;3544;0;354;1;Spese correnti;3;Acquisto di beni e servizi;2;Acquisto di servizi;15;Contratti di servizio pubblico;15;Contratti di servizio per l'illuminazione pubblica;06/05/2022
1777;1;9999999;7,1;602,67;ENEL ENERGIA SPA;8426072694;SALDO Fatt.n. 004217507617  del 11/04/2022 MARZO 2022 - CONSUMI ILLUMINAZIONE PUBBLICA;04/05/2022;3544;0;354;1;Spese correnti;3;Acquisto di beni e servizi;2;Acquisto di servizi;15;Contratti di servizio pubblico;15;Contratti di servizio per l'illuminazione pubblica;06/05/2022
1777;2;9999999;10,93;602,67;ENEL ENERGIA SPA;8426072694;SALDO Fatt.n. 004218587145  del 12/04/2022 MARZO 2022 - CONSUMI ILLUMINAZIONE PUBBLICA;04/05/2022;3544;0;354;1;Spese correnti;3;Acquisto di beni e servizi;2;Acquisto di servizi;15;Contratti di servizio pubblico;15;Contratti di servizio per l'illuminazione pubblica;06/05/2022
1777;3;9999999;46,81;602,67;ENEL ENERGIA SPA;8426072694;SALDO Fatt.n. 004216050436  del 10/04/2022 MARZO 2022 - CONSUMI ILLUMINAZIONE PUBBLICA;04/05/2022;3544;0;354;1;Spese correnti;3;Acquisto di beni e servizi;2;Acquisto di servizi;15;Contratti di servizio pubblico;15;Contratti di servizio per l'illuminazione pubblica;06/05/2022
1777;4;9999999;84,45;602,67;ENEL ENERGIA SPA;8426072694;SALDO Fatt.n. 004217507616  del 11/04/2022 MARZO 2022 - CONSUMI ILLUMINAZIONE PUBBLICA;04/05/2022;3544;0;354;1;Spese correnti;3;Acquisto di beni e servizi;2;Acquisto di servizi;15;Contratti di servizio pubblico;15;Contratti di servizio per l'illuminazione pubblica;06/05/2022
1777;5;9999999;453,38;602,67;ENEL ENERGIA SPA;8426072694;SALDO Fatt.n. 004216050434  del 10/04/2022 MARZO 2022 - CONSUMI ILLUMINAZIONE PUBBLICA;04/05/2022;3544;0;354;1;Spese correnti;3;Acquisto di beni e servizi;2;Acquisto di servizi;15;Contratti di servizio pubblico;15;Contratti di servizio per l'illuminazione pubblica;06/05/2022
1778;1;9999999;23,89;565,26;ENEL ENERGIA SPA;8426072694;SALDO Fatt.n. 004218587147  del 12/04/2022 MARZO 2022 - CONSUMI ILLUMINAZIONE PUBBLICA;04/05/2022;3544;0;354;1;Spese correnti;3;Acquisto di beni e servizi;2;Acquisto di servizi;15;Contratti di servizio pubblico;15;Contratti di servizio per l'illuminazione pubblica;06/05/2022
1778;2;9999999;86,72;565,26;ENEL ENERGIA SPA;8426072694;SALDO Fatt.n. 004218587146  del 12/04/2022 MARZO 2022 - CONSUMI ILLUMINAZIONE PUBBLICA;04/05/2022;3544;0;354;1;Spese correnti;3;Acquisto di beni e servizi;2;Acquisto di servizi;15;Contratti di servizio pubblico;15;Contratti di servizio per l'illuminazione pubblica;06/05/2022
1778;3;9999999;107,73;565,26;ENEL ENERGIA SPA;8426072694;SALDO Fatt.n. 004219891247  del 13/04/2022 MARZO 2022 - CONSUMI ILLUMINAZIONE PUBBLICA;04/05/2022;3544;0;354;1;Spese correnti;3;Acquisto di beni e servizi;2;Acquisto di servizi;15;Contratti di servizio pubblico;15;Contratti di servizio per l'illuminazione pubblica;06/05/2022
1778;4;9999999;168,62;565,26;ENEL ENERGIA SPA;8426072694;SALDO Fatt.n. 004219891244  del 13/04/2022 MARZO 2022 - CONSUMI ILLUMINAZIONE PUBBLICA;04/05/2022;3544;0;354;1;Spese correnti;3;Acquisto di beni e servizi;2;Acquisto di servizi;15;Contratti di servizio pubblico;15;Contratti di servizio per l'illuminazione pubblica;06/05/2022
1778;5;9999999;178,3;565,26;ENEL ENERGIA SPA;8426072694;SALDO Fatt.n. 004219891246  del 13/04/2022 MARZO 2022 - CONSUMI ILLUMINAZIONE PUBBLICA;04/05/2022;3544;0;354;1;Spese correnti;3;Acquisto di beni e servizi;2;Acquisto di servizi;15;Contratti di servizio pubblico;15;Contratti di servizio per l'illuminazione pubblica;06/05/2022
1779;1;9999999;34,05;852,34;ENEL ENERGIA SPA;8426072694;SALDO Fatt.n. 004220803991  del 14/04/2022 MARZO 2022 - CONSUMI ILLUMINAZIONE PUBBLICA;04/05/2022;3544;0;354;1;Spese correnti;3;Acquisto di beni e servizi;2;Acquisto di servizi;15;Contratti di servizio pubblico;15;Contratti di servizio per l'illuminazione pubblica;06/05/2022
1779;2;9999999;63,01;852,34;ENEL ENERGIA SPA;8426072694;SALDO Fatt.n. 004219891251  del 13/04/2022 MARZO 2022 - CONSUMI ILLUMINAZIONE PUBBLICA;04/05/2022;3544;0;354;1;Spese correnti;3;Acquisto di beni e servizi;2;Acquisto di servizi;15;Contratti di servizio pubblico;15;Contratti di servizio per l'illuminazione pubblica;06/05/2022
